Workbook

Sheet Start
A2: Key Assumptions
A3: Feedstock | E3: Scenarios | F3: Corn Husk/Glycerin | G3: Rye/Glycerin | H3: Wheat/Glycerin | I3: Corn Husk | J3: Rye | K3: Wheat
A4: Cattle (heads) | B4: 945 | E4: Cattle (heads) | F4: 945 | G4: 1409 | H4: 1366.79751 | I4: 2392 | J4: 3564 | K4: 3458
A5: Corn Husk (tons) | B5: 8.526 | E5: Corn Husk (tons) | F5: 8.526 | G5: 0 | H5: 0 | I5: 8.526 | J5: 0 | K5: 0
A6: Rye (tons) | B6: 0 | E6: Rye (tons) | F6: 0 | G6: 8.526 | H6: 0 | I6: 0 | J6: 8.526 | K6: 0
A7: Wheat (tons) | B7: 0 | E7: Wheat (tons) | F7: 0 | G7: 0 | H7: 8.526 | I7: 0 | J7: 0 | K7: 8.526
A8: Glycerin (tons) | B8: 3.31 | E8: Glycerin (tons) | F8: 3.31 | G8: 4.93 | H8: 4.78 | I8: 0 | J8: 0 | K8: 0
A9: Manure (wet tons) | B9: ='Mass & Energy'!E7 -> 33.075 | E9: Manure (wet tons) | F9: 33.075 | G9: 49.315 | H9: 47.83791286 | I9: 83.72 | J9: 124.74 | K9: 121.03
A10: Power Capacity | B10: ='Mass & Energy'!C1 -> 833.9406652 | E10: Power Capacity | F10: 949.9511175 | G10: 949.9264919 | H10: 949.7342424 | I10: 949.9602805 | J10: 949.9081659 | K10: 950.0003686
A11: Internal Rate of Return | B11: =DCFROR!$B$30 -> 0.02931997061 | E11: Internal Rate of Return | F11: 0.02424883217 | G11: 0.04035283373 | H11: 0.04003399964 | I11: 0.02320459981 | J11: 0.04475085959 | K11: 0.0445714803
A12: Net Present Value | B12: =DCFROR!$B$38 -> 3.725290298e-09 | E12: Operating Cost | F12: -45361.7445 | G12: -94726.3769 | H12: -94500.826 | I12: -7019.9881 | J12: -58938.9395 | K12: -60801.6126
F14: Corn Husk/Glycerin | G14: Rye/Glycerin | H14: Wheat/Glycerin | I14: Corn Husk | J14: Rye | K14: Wheat
E15: Manure | F15: 51307.5938 | G15: 76499.8938 | H15: 74208.5623 | I15: 129870.65 | J15: 193502.925 | K15: 187747.7875
E16: Biomass | F16: 52903.83 | G16: 52903.83 | H16: 52903.83 | I16: 52903.83 | J16: 52903.83 | K16: 52903.83
E17: Glycerin | F17: 0 | G17: 0 | H17: 0 | I17: 0 | J17: 0 | K17: 0
E18: Solids Handling | F18: 7402.4557 | G18: 9310.5307 | H18: 9136.2946 | I18: 11315.2596 | J18: 15137.6369 | K18: 14792.5476
E19: Renewable Tax Credit | F19: -90787.4303 | G19: -90784.6799 | H19: -90763.2076 | I19: -90788.4537 | J19: -90782.6331 | K19: -90792.9312
E20: By-products Solid Digestate Credit | F20: -52187.3126 | G20: -65639.2415 | H20: -64410.8767 | I20: -79772.5799 | J20: -106720.3402 | K20: -104287.4609
E21: By-products Liquid Effluent Credit | F21: -14000.881 | G21: -77016.71 | H21: -75575.4286 | I21: -30548.694 | J21: -122980.3582 | K21: -121165.3857
E22: Labor & Maintenance | F22: 218286.0502 | G22: 224895.6975 | H22: 224307.9191 | I22: 231356.8774 | J22: 242557.5649 | K22: 241594.7248
E23: Capital Depreciation | F23: 104138.7893 | G23: 104138.7893 | H23: 104138.7893 | I23: 104138.7893 | J23: 104138.7893 | K23: 104138.7893
E24: Income Tax | F24: 49085.0432 | G24: 59650.1985 | H24: 59491.6254 | I24: 48180.5905 | J24: 61644.6478 | K24: 61570.6019
E25: Return on Investment | F25: 126545.3672 | G25: 158723.4618 | H25: 159152.6469 | I25: 76041.6027 | J25: 103270.9745 | K25: 106214.4722

Sheet Summary
B3: Summary
B4: Operating Cost | F4: Capital Cost
B5: Data | C5: Cost ($)/year | D5: Cost ($)/kWh | F5: Row Labels | G5: Sum of Installed Capital Cost
B6: Manure | C6: ='Operating Costs'!I4 -> 51307.59375 | D6: =C6/DCFROR!$B$32 -> 0.008262728138 | F6: Digester | G6: 2126505.769
B7: Biomass | C7: =SUM('Operating Costs'!I5:I7) -> 52903.83 | D7: =C7/DCFROR!$B$32 -> 0.008519790791 | F7: Aeration Digester | G7: 0
B8: Glycerin | C8: ='Operating Costs'!I8 -> 0 | D8: =C8/DCFROR!$B$32 -> 0 | F8: Anaerobic Basin | G8: 2101229.688
B9: Solids Handling | C9: ='Operating Costs'!I12 -> 14793.99581 | D9: =C9/DCFROR!$B$32 -> 0.00238246927 | F9: Anaerobic Digester Feed Cooler | G9: 0
B10: Renewable Tax Credit | C10: ='Operating Costs'!I23 -> -147386.8148 | D10: =C10/DCFROR!$B$32 -> -0.02373561286 | F10: Anaerobic Reactor Feed Pump | G10: 18015.16511
B11: By-products Solid Digestate Credit | C11: ='Operating Costs'!I17 -> -104297.6705 | D11: =C11/DCFROR!$B$32 -> -0.01679640836 | F11: Anaerobic Reactor Recirculation Pump | G11: 0
B12: By-products Liquid Effluent Credit | C12: ='Operating Costs'!I18 -> -109357.217 | D12: =C12/DCFROR!$B$32 -> -0.01761121285 | F12: Caustic Feed System | G12: 0
B13: Labor & Maintenance | C13: ='Labor Costs'!H22*1000000 -> 238884.2807 | D13: =C13/DCFROR!$B$32 -> 0.03847063803 | F13: Centrifuge | G13: 0
B14: Capital Depreciation | C14: =DCFROR!B5/30 -> 104138.7893 | D14: =C14/DCFROR!$B$32 -> 0.01677082167 | F14: Membrane Bioreactor | G14: 0
B15: Income Tax | C15: =DCFROR!B82/30 -> 57152.96287 | D15: =C15/DCFROR!$B$32 -> 0.009204083839 | F15: Reverse Osmosis System | G15: 0
B16: Return on Investment | C16: =Table2[[#This Row],[Cost ($)/kWh]]*'Mass & Energy'!C4 -> 239269.6703 | D16: =DCFROR!B36-SUM(Summary!D6:D15) -> 0.03853270233 | F16: Treated Water Pump | G16: 0
B17: Power Cost | C17: =SUBTOTAL(109,Table2[Cost ($)/year]) -> 397409.4204 | D17: =SUM(Table2[Cost ($)/kWh]) -> 0.064 | F17: Waste Anaerobic Sludge Pump | G17: 7260.915923
F18: Other | G18: 4510.250614
B19: Earnings Before Interest, Taxes, Depreciation, and Amortization | C19: $/year | D19: $/kWh | F19: Aerobic Digester Blower | G19: 0
B20: Earnings | C20: =SUM(DCFROR!F50:AI50)/30 -> 605972.1053 | D20: =C20/'Mass & Energy'!$C$4 -> 0.09758755769 | F20: Aerobic Sludge Screw | G20: 1945.583045
B21: Operating Costs | C21: =SUM(DCFROR!F54:AI54)/30 -> 210621.1412 | D21: =C21/'Mass & Energy'!$C$4 -> 0.03391905764 | F21: Biogas blower | G21: 0
B22: EBITDA | C22: =C20-C21 -> 395350.9641 | D22: =C22/'Mass & Energy'!$C$4 -> 0.06366850005 | F22: Biogas Emergency Flare | G22: 2564.66757
B23: Depreciation | C23: =SUM(DCFROR!F60:L60)/30 -> 104138.7893 | D23: =C23/'Mass & Energy'!$C$4 -> 0.01677082167 | F23: Centrate Pump | G23: 0
B24: Interest | C24: =C22-C23-C25 -> 188772.3912 | D24: =C24/'Mass & Energy'!$C$4 -> 0.03040046968 | F24: Centrifuge Feed Pump | G24: 0
B25: Taxes | C25: =SUM(DCFROR!F69:AI69)/30 -> 102439.7836 | D25: =C25/'Mass & Energy'!$C$4 -> 0.0164972087 | F25: Evaporator System | G25: 0
B26: Total | C26: 0 | D26: 0 | F26: Reverse Osmosis Feed Pump | G26: 0
F27: CHP | G27: 903117.6638
F28: Storage | G28: 90030
F29: Grand Total | G29: 3124163.684
C33: =SUM(C6:C15) -> 158139.7501

Sheet Flowsheet

Sheet Mass & Energy
B1: Power Capacity (kW) | C1: =((J13*J3*C34)/(24*3600))*1000 -> 833.9406652 | E1: =C1/Start!B4 -> 0.8824768944 | F1: kW/cow | H1: Methane Potential (m3/ton) | L1: 200 | M1: 348 | N1: 183.6 | O1: 232.5 | P1: 243 | R1: Notes: Ratio of 60% methane in biogas for (glycerin, rye, and wheat)
B2: Heat Generated (kW) | C2: =J13*J3*C33/(24*3600)*1000 -> 893.5078556 | D2: 3672.43 | E2: MJ | H2: Biogas Potential (m3/ton) | L2: 333.33 | M2: 585 | N2: 306 | O2: 387.5 | P2: 405
B3: Hours of Operation | C3: =365*24*DCFROR!C33 -> 7446 | H3: Higher Heating Value (MJ/ton) | J3: 55000 | K3: 0 | L3: 20000 | M3: =18.88*1000 -> 18880 | N3: 16000 | O3: =17.02*1000 -> 17020 | P3: 17677.5 | Q3: 15000
B4: Total Power Generated(kWh/year) | C4: =C1*C3 -> 6209522.193 | D4: =(C2+C1)*C3 -> 12862581.69 | H4: Volatile Solids (kg/kg) | L4: =9.38/11 -> 0.8527272727 | M4: =83.6/88.8 -> 0.9414414414 | N4: =850.3/850.5 -> 0.9997648442 | O4: =19.15/20.05 -> 0.9551122195 | P4: =91.6/93.9 -> 0.9755058573 | Q4: 0.8
H5: Carbon Content | J5: =12/16 -> 0.75 | K5: 0 | L5: =38.82/100 -> 0.3882 | M5: =44.2/100 -> 0.442 | N5: =88.04/100 -> 0.8804 | O5: =49.25/100 -> 0.4925 | P5: =43.1/100 -> 0.431 | Q5: 0.6
A6: Stream No | B6: Stream Name | C6: To | D6: From | E6: Mass Flow (tons/day) | F6: Temperature (deg C) | G6: Heating Value (MJ) | H6: Moisture Content (%) | I6: Biogas (m^3) | J6: Methane (tons) | K6: Water (tons) | L6: Beef Manure solids (tons) | M6: Corn Husk (tons) | N6: Glycerin (tons) | O6: Rye (tons) | P6: Wheat (tons) | Q6: Organic Matter | R6: Carbon Content (tons) | S6: Volume Flow (L/S) | T6: Notes
A7: 1 | B7: Raw Manure | C7: B5 | E7: =Start!B4*C32 -> 33.075 | F7: 8 | G7: =IF(SUM(J7:Q7)=0,0,SUMPRODUCT(J7:Q7,$J$3:$Q$3)) -> 79380 | H7: 0.88 | K7: =E7*H7 -> 29.106 | L7: =(1-H7)*E7 -> 3.969 | R7: =SUMPRODUCT(J7:Q7,$J$5:$Q$5) -> 1.5407658 | S7: =K7*907.18/(24*3600) -> 0.3056062625
A8: 2 | B8: Recycled Hot Water Stream | C8: B5 | D8: B8 | E8: =SUM(K8:Q8) -> 29.66913095 | F8: 104 | G8: =IF(SUM(J8:Q8)=0,0,SUMPRODUCT(J8:Q8,$J$3:$Q$3)) -> 0 | H8: 1 | K8: =K14 -> 29.66913095 | R8: =SUMPRODUCT(J8:Q8,$J$5:$Q$5) -> 0 | S8: =K8*907.18/(24*3600) -> 0.3115190071
A9: 4 | B9: Glycerin Co-Feed | C9: B5 | E9: =SUM(K9:Q9) -> 3.31 | G9: 52960 | N9: =Start!B8 -> 3.31 | R9: 2.914124 | S9: 0
A10: 5 | B10: Biomass Co-Feed | C10: B5 | E10: =SUM(K10:Q10) -> 21.315 | F10: 8 | G10: 160970.88 | H10: 0.6 | K10: =SUM(L10:Q10)*H10/(1-H10) -> 12.789 | M10: =Start!B5 -> 8.526 | O10: =Start!B6 -> 0 | P10: =Start!B7 -> 0 | R10: 3.768492 | S10: 0.1342815396 | T10: Husk Heating Value: https://pdfs.semanticscholar.org/5ec4/254e7092ee2c1189f6c35a147ff461665f80.pdf
A11: 8 | B11: Fresh Water Stream | C11: B5 | E11: =SUM(K11:Q11) -> 80 | F11: 8 | G11: 0 | K11: 80 | R11: 0 | S11: 0.8399814815
A12: 9 | B12: Digester Input | C12: B6 | D12: B5 | E12: =SUM(E7:E11) -> 167.3691309 | F12: 35 | G12: 293310.88 | H12: =K12/(SUM(K12:N12)) -> 0.9055680106 | K12: =SUM(K7:K11) -> 151.5641309 | L12: 3.969 | M12: 8.526 | N12: 3.31 | O12: 0 | P12: 0 | Q12: 0 | R12: 8.2233818 | S12: 1.591388291 | T12: Mesophillic temp
A13: 10 | B13: Gas To Electricity Generation | C13: B7 | D13: B6 | E13: =I13*C36/1000 -> 8.422090286 | G13: 171553.5083 | I13: =SUMPRODUCT(L2:P2,L12:P12) -> 7323.55677 | J13: =SUMPRODUCT(L1:Q1,L12:Q12)*0.714/1000 -> 3.119154696 | K13: =E13*H13 -> 0 | R13: 2.339366022 | S13: 0
A14: 11 | B14: Heat Generation Stream | C14: B8 | D14: B7 | E14: =K14 -> 29.66913095 | G14: 0 | K14: =C2*24*3600/1000/C35/1000 -> 29.66913095 | R14: 0 | S14: 0.3115190071
A15: 12 | B15: Digestate Separation | C15: B10 | D15: B6 | E15: =E12-E13 -> 158.9470407 | G15: 91338.91692 | K15: =E15-Q16-Q18 -> 152.8577795 | Q15: =Q16+Q18 -> 6.089261128 | R15: 3.653556677 | S15: 1.604971301 | T15: Ref: Holm-Nielsen (1997)
A16: 13 | B16: Liquid Effluent Collection | C16: B11 | D16: B10 | E16: =(1-C37)*(E15) -> 149.4102182 | G16: 51770.64061 | K16: =E16-Q16 -> 145.9588422 | Q16: =C38*E16 -> 3.451376041 | R16: 2.070825625 | S16: 1.532534056
A17: 14 | B17: Liquid Effluent Recycle | C17: B5 | D17: B11 | E17: =E15*C41 -> 15.89470407 | G17: 45075.79126 | K17: =E17*(1-C38) -> 15.5275364 | Q17: =Q15-Q20 -> 3.005052751 | R17: 1.80303165 | S17: 0.1630355379
A18: 15 | B18: Solid Digestate Collection | D18: B10 | E18: =E15-E16 -> 9.53682244 | G18: 39568.2763 | K18: =E18-Q18 -> 6.898937353 | Q18: =E18*C39 -> 2.637885087 | R18: 1.582731052 | S18: 0.07243724523
A19: 16 | B19: Knockoff Water | D19: B6 | E19: =SUM(J19:N19) -> 0.3442071682 | G19: 0 | K19: =I13*47/1000000 -> 0.3442071682 | R19: 0 | S19: 0.003614095588 | T19: Biogas Water Cleanup https://www.parker.com/literature/United%20Kingdom/PAR6841_Whitepaper_v3.pdf
A20: 17 | B20: Liquid Effluent Discharge | D20: B11 | E20: =SUM(K20:Q20) -> 133.5155142 | G20: 46263.12566 | K20: =K16-K17 -> 130.4313058 | Q20: =Q16*K20/K16 -> 3.084208377 | R20: 1.850525026 | S20: 1.369498518
M21: =SUMPRODUCT(L1:Q1,L12:Q12) -> 4368.564 | N21: =M21/I13 -> 0.5965085186
J22: Total Input ( dry basis - kg) | K22: =16719.415 -> 16719.415
A23: Component Mass Balance | E23: 0.0315 | J23: Parasitic Load Factor (kW/kg) | K23: 0.0082 | L23: https://www.sciencedirect.com/science/article/pii/S0956053X18301673
J24: Parasitic Load (kW) | K24: =K23*K22 -> 137.099203
A25: Stream No | B25: Manure | C25: Corn | D25: Water | E25: Sum | F25: Source | G25: Assumption | J25: Net Power Capacity (kW) | K25: =C1-K24 -> 696.8414622 | L25: =K25*C3 -> 5188681.528 | N25: =K24/C1 -> 0.1643992297
A26: 1 | B26: =E7*0.12 -> 3.969 | C26: - | D26: =E7*(H7/100) -> 0.29106 | E26: =B26+D26 -> 4.26006 | F26: a
A27: 4 | C27: =0.4*E27 -> 0.3408048 | D27: =0.6*E27 -> 0.5112072 | E27: =0.2*E26 -> 0.852012 | G27: Corn moisture content assumed to be 60% | J27: Heat load
A28: 5 | D28: =(D26-(0.9*E26))/(-0.1) -> 35.42994 | J28: Feedstock Moisture (kW) | K28: =(K12*G31*4.2*(F12-F11))/86400 -> 180.4644268
J29: Recycled Hot Water (kW) | K29: =(K8*G31*G33*(F8-F12))/86400 -> 90.27870583
A30: Assumptions | G30: tons to kg conversion | J30: Total Heat load (kW) | K30: =SUM(K28:K29) -> 270.7431326 | M30: =K30/C2 -> 0.3030114743
B31: Digester Feed Moisture Content | C31: 0.91 | G31: 907.185 | J31: Net Heat generated (kW) | K31: =C2-K30 -> 622.764723
B32: Waste Generated per Cattle | C32: 0.035 | D32: tons/cattle/day | G32: Specific Heat (kJ/kg-K) | J32: Net Heat generated (kWh) | K32: =K31*C3 -> 4637106.127
B33: Heat Efficiency | C33: 0.45 | G33: 4.2
B34: Methane Power Efficiency | C34: 0.42
B35: Energy to Raise Steam (220 F) | C35: 2.602 | J35: Total Power after inclusion of parasitic and heat load | R35: =SUM(L12:Q12) -> 15.805 | S35: =R35/(1-C31)*C31 -> 159.8061111
B36: Biogas Density | C36: 1.15 | D36: MJ/kg | J36: =(K25+K31)*C3 -> 9825787.655 | K36: kWh
B37: Digestate Solid Content | C37: 0.06 | J37: 12.52 | K37: GWh
B38: Solids Content Liquid Recycle | C38: 0.0231
B39: Solids Content Solid Digestate | C39: 0.2766 | E39: DANETV (2010)
B40: Moisture Content of Corn | C40: 0.6 | E40: DANETV (2010)
B41: Digester Recycle | C41: 0.1
A43: Block List | B43: Description
A44: B1 | B44: Raw Manure
A45: B2 | B45: Addition of co-feed: Corn Stover
A46: B3 | B46: Addition of co-feed: Glycerin
A47: B4 | B47: Fresh Water stream
A48: B5 | B48: Mixing of manure, co-feeds and water
A49: B6 | B49: Anaerobic Digester
A50: B7 | B50: Biogas to Power via CHP
A51: B8 | B51: Heated Recycled Water via CHP
A52: B9 | B52: Knockoff Water
A53: B10 | B53: Solid-Liquid Digestate Separation
A54: B11 | B54: Liquid Effluent Collection
B55: Solid Digestate collection

Sheet DCFROR
A4: Assumptions | B4: Value | C4: Source | F4: Sensitivity Analysis
A5: Fixed Capital Investment | B5: 3124163.68 | F5: Factor | G5: Optimistic | H5: Pessimistic | I5: Base Case
A6: Equity | B6: =40% -> 0.4 | F6: Indirect Cost Factor | G6: 0.5 | H6: 1.5 | I6: 1 | J6: 0.1857229044 | K6: 0.05370128626 | L6: 0.1004647489
A7: Loan Interest | B7: =7.5% -> 0.075 | F7: Feedstock Cost ($/MT) | G7: -33 | H7: 65 | I7: 41 | J7: 0.3841158947 | K7: -0.00863474047 | L7: 0.1004647489
A8: Loan Term, years | B8: =10 -> 10 | F8: Sugars Price ($/MT) | G8: 500 | H8: 300 | I8: 385 | J8: 0.2006659748 | K8: 0.02217196007 | L8: 0.1004647489
A9: Annual Loan Payment | B9: =-PMT(B7,B8,B5*(1-B6)) -> 273088.0099
A10: General Plant | B10: =B5 -> 3124163.68 | K10: Pessimistic | L10: Base Case | M10: Optimistic
A11: Steam Plant | B11: 0 | G11: Indirect Cost Factor (1.5x, 1x, 0.5x) | H11: 0.5 | I11: 1.5 | J11: 1 | K11: =K6 -> 0.05370128626 | L11: =L6 -> 0.1004647489 | M11: =J6 -> 0.1857229044
A12: Working Capital (% of FCI) | B12: 0.15 | G12: Price of Sugars ($300, $385, $500/MT) | H12: 500 | I12: 385 | J12: 300 | K12: =K8 -> 0.02217196007 | L12: =L7 -> 0.1004647489 | M12: =J8 -> 0.2006659748
A13: Salvage Value | G13: Feedstock Cost ($65, $41, -$33/MT) | H13: -33 | I13: 65 | J13: 41 | K13: =K7 -> -0.00863474047 | L13: =L8 -> 0.1004647489 | M13: =J7 -> 0.3841158947
A14: General Plant | B14: 0 | C14: P&T
A15: Steam Plant | B15: 0 | C15: P&T
A16: Type of Depreciation | B16: DDB
A17: General Plant | B17: =200 -> 200 | C17: Short et. al
A18: Steam Plant | B18: 150 | C18: Short et. al
A19: Depreciation Period (Years)
A20: General Plant | B20: =7 -> 7 | C20: Short et. al
A21: Steam/Electricity System | B21: =20 -> 20 | C21: Short et. al
A22: Construction Period (Years) | B22: =2.5 -> 2.5
A23: % Spent in Year -3 | B23: =8% -> 0.08
A24: % Spent in Year -2 | B24: =60% -> 0.6
A25: % Spent in Year -1 | B25: =1-SUM(B23:B24) -> 0.32
A26: Start-up Time (Years) | B26: =0.5 -> 0.5
A27: Revenues (% of Normal) | B27: 0.5
A28: Variable Costs (% of Normal) | B28: 0.75
A29: Fixed Cost (% of Normal) | B29: =100% -> 1
A30: Internal Rate of Return | B30: 0.02931997061 | C30: Short et. al
A31: Income Tax Rate | B31: 0.39 | C31: Short et. al
A32: Power Production Per Year (kWh) | B32: ='Mass & Energy'!C4 -> 6209522.193
A33: Operating Hours per Year | B33: ='Mass & Energy'!C3 -> 7446 | C33: 0.85
A34: Cost Year for Analysis | B34: 2011
A35: Cost Year Increment | B35: annual average
A36: Minimum Product Selling Price ($/kWh) | B36: 0.064 | C36: Manipulated Value
A38: Net Present Worth | B38: =E74 -> 3.725290298e-09 | C38: Targeted Value
A41: DCFROR Worksheet | B41: Calculations adapted from NREL Mixed Alcohol Design Report 2007
A42: Year | C42: -2 | D42: -1 | E42: 0 | F42: 1 | G42: 2 | H42: 3 | I42: 4 | J42: 5 | K42: 6 | L42: 7 | M42: 8 | N42: 9 | O42: 10 | P42: 11 | Q42: 12 | R42: 13 | S42: 14 | T42: 15 | U42: 16 | V42: 17 | W42: 18 | X42: 19 | Y42: 20 | Z42: 21 | AA42: 22 | AB42: 23 | AC42: 24 | AD42: 25 | AE42: 26 | AF42: 27 | AG42: 28 | AH42: 29 | AI42: 30
A43: Fixed Capital Investment | C43: =B23*B5 -> 249933.0944 | D43: =B24*B5 -> 1874498.208 | E43: =B25*B5 -> 999732.3776 | AI43: 0
A44: Working Capital | E44: =B12*B5 -> 468624.552 | AI44: =-E44 -> -468624.552
A45: Loan Payment | F45: =B9 -> 273088.0099 | G45: =IF($B$8>1,$B$9,0) -> 273088.0099 | H45: =IF($B$8>2,$B$9,0) -> 273088.0099 | I45: =IF($B$8>3,$B$9,0) -> 273088.0099 | J45: =IF($B$8>4,$B$9,0) -> 273088.0099 | K45: =IF($B$8>5,$B$9,0) -> 273088.0099 | L45: =IF($B$8>6,$B$9,0) -> 273088.0099 | M45: =IF($B$8>7,$B$9,0) -> 273088.0099 | N45: =IF($B$8>8,$B$9,0) -> 273088.0099 | O45: =IF($B$8>9,$B$9,0) -> 273088.0099 | P45: =IF($B$8>10,$B$9,0) -> 0 | Q45: =IF($B$8>11,$B$9,0) -> 0 | R45: =IF($B$8>12,$B$9,0) -> 0 | S45: =IF($B$8>13,$B$9,0) -> 0 | T45: =IF($B$8>14,$B$9,0) -> 0 | U45: =IF($B$8>15,$B$9,0) -> 0 | V45: =IF($B$8>16,$B$9,0) -> 0 | W45: =IF($B$8>17,$B$9,0) -> 0 | X45: =IF($B$8>18,$B$9,0) -> 0 | Y45: =IF($B$8>19,$B$9,0) -> 0 | Z45: =IF($B$8>20,$B$9,0) -> 0 | AA45: =IF($B$8>21,$B$9,0) -> 0 | AB45: =IF($B$8>22,$B$9,0) -> 0 | AC45: =IF($B$8>23,$B$9,0) -> 0 | AD45: =IF($B$8>24,$B$9,0) -> 0 | AE45: =IF($B$8>25,$B$9,0) -> 0 | AF45: =IF($B$8>26,$B$9,0) -> 0 | AG45: =IF($B$8>27,$B$9,0) -> 0 | AH45: =IF($B$8>28,$B$9,0) -> 0 | AI45: =IF($B$8>29,$B$9,0) -> 0
A46: Loan Interest Payment | C46: =$B$7*C47 -> 11246.98925 | D46: =$B$7*D47 -> 95599.40861 | E46: =$B$7*E47 -> 140587.3656 | F46: =B5*(1-B6)*B7 -> 140587.3656 | G46: =$B$7*F47 -> 130649.8173 | H46: =$B$7*G47 -> 119966.9528 | I46: =$B$7*H47 -> 108482.8736 | J46: 96137.48833 | K46: 82866.19921 | L46: 68599.56341 | M46: 53262.92992 | N46: =$B$7*M47 -> 36776.04893 | O46: 19052.65185 | P46: -9.358700481e-11 | Q46: -1.006060302e-10 | R46: -1.081514824e-10 | S46: -1.162628436e-10 | T46: -1.249825569e-10 | U46: -1.343562487e-10 | V46: -1.444329673e-10 | W46: -1.552654399e-10 | X46: -1.669103478e-10 | Y46: -1.794286239e-10 | Z46: -1.928857707e-10 | AA46: -2.073522035e-10 | AB46: -2.229036188e-10 | AC46: -2.396213902e-10 | AD46: -2.575929945e-10 | AE46: -2.769124691e-10 | AF46: -2.976809042e-10 | AG46: -3.200069721e-10 | AH46: -3.44007495e-10 | AI46: =$B$7*X47 -> -1.794286239e-10
A47: Loan Principal | C47: =$B$5*(1-B6)*B23 -> 149959.8566 | D47: =B5*(1-B6)*B24+C47 -> 1274658.781 | E47: =B5*(1-B6)*B25+D47 -> 1874498.208 | F47: =B5*(1-B6)-F45+F46 -> 1741997.564 | G47: =F47-G45+G46 -> 1599559.371 | H47: =G47-H45+H46 -> 1446438.314 | I47: =H47-I45+I46 -> 1281833.178 | J47: 1104882.656 | K47: 914660.8455 | L47: 710172.399 | M47: 490347.319 | N47: =M47-N45+N46 -> 254035.358 | O47: -1.247826731e-09 | P47: -1.341413736e-09 | Q47: -1.442019766e-09 | R47: -1.550171248e-09 | S47: -1.666434092e-09 | T47: -1.791416649e-09 | U47: -1.925772897e-09 | V47: -2.070205865e-09 | W47: -2.225471305e-09 | X47: -2.392381652e-09 | Y47: -2.571810276e-09 | Z47: -2.764696047e-09 | AA47: -2.972048251e-09 | AB47: -3.194951869e-09 | AC47: -3.43457326e-09 | AD47: -3.692166254e-09 | AE47: -3.969078723e-09 | AF47: -4.266759627e-09 | AG47: -4.586766599e-09 | AH47: -4.930774094e-09 | AI47: =X47-AI45+AI46 -> -2.571810276e-09
A48: Product Sales | F48: =($B$32*$B$36)*(1-B26)+($B$32*$B$36)*B26*B27 -> 298057.0653 | G48: =$B$32*$B$36 -> 397409.4204 | H48: =$B$32*$B$36 -> 397409.4204 | I48: 397409.4204 | J48: 397409.4204 | K48: 397409.4204 | L48: 397409.4204 | M48: 397409.4204 | N48: 397409.4204 | O48: 397409.4204 | P48: 397409.4204 | Q48: 397409.4204 | R48: 397409.4204 | S48: 397409.4204 | T48: 397409.4204 | U48: 397409.4204 | V48: =$B$32*$B$36 -> 397409.4204 | W48: 397409.4204 | X48: 397409.4204 | Y48: 397409.4204 | Z48: 397409.4204 | AA48: 397409.4204 | AB48: 397409.4204 | AC48: 397409.4204 | AD48: 397409.4204 | AE48: 397409.4204 | AF48: =$B$32*$B$36 -> 397409.4204 | AG48: 397409.4204 | AH48: 397409.4204 | AI48: 397409.4204
A49: By-Product Credit | F49: =(-'Operating Costs'!I20)*(1-B26)+(-'Operating Costs'!I20)*B26*B27 -> 160241.1656 | G49: =-'Operating Costs'!$I$20 -> 213654.8875 | H49: =-'Operating Costs'!$I$20 -> 213654.8875 | I49: =-'Operating Costs'!$I$20 -> 213654.8875 | J49: =-'Operating Costs'!$I$20 -> 213654.8875 | K49: =-'Operating Costs'!$I$20 -> 213654.8875 | L49: =-'Operating Costs'!$I$20 -> 213654.8875 | M49: =-'Operating Costs'!$I$20 -> 213654.8875 | N49: =-'Operating Costs'!$I$20 -> 213654.8875 | O49: =-'Operating Costs'!$I$20 -> 213654.8875 | P49: =-'Operating Costs'!$I$20 -> 213654.8875 | Q49: =-'Operating Costs'!$I$20 -> 213654.8875 | R49: =-'Operating Costs'!$I$20 -> 213654.8875 | S49: =-'Operating Costs'!$I$20 -> 213654.8875 | T49: =-'Operating Costs'!$I$20 -> 213654.8875 | U49: =-'Operating Costs'!$I$20 -> 213654.8875 | V49: =-'Operating Costs'!$I$20 -> 213654.8875 | W49: =-'Operating Costs'!$I$20 -> 213654.8875 | X49: =-'Operating Costs'!$I$20 -> 213654.8875 | Y49: =-'Operating Costs'!$I$20 -> 213654.8875 | Z49: =-'Operating Costs'!$I$20 -> 213654.8875 | AA49: =-'Operating Costs'!$I$20 -> 213654.8875 | AB49: =-'Operating Costs'!$I$20 -> 213654.8875 | AC49: =-'Operating Costs'!$I$20 -> 213654.8875 | AD49: =-'Operating Costs'!$I$20 -> 213654.8875 | AE49: =-'Operating Costs'!$I$20 -> 213654.8875 | AF49: =-'Operating Costs'!$I$20 -> 213654.8875 | AG49: =-'Operating Costs'!$I$20 -> 213654.8875 | AH49: =-'Operating Costs'!$I$20 -> 213654.8875 | AI49: =-'Operating Costs'!$I$20 -> 213654.8875
A50: Total Annual Sales | F50: =F48+F49 -> 458298.2309 | G50: 611064.3079 | H50: 611064.3079 | I50: 611064.3079 | J50: 611064.3079 | K50: 611064.3079 | L50: 611064.3079 | M50: 611064.3079 | N50: 611064.3079 | O50: 611064.3079 | P50: 611064.3079 | Q50: 611064.3079 | R50: 611064.3079 | S50: 611064.3079 | T50: 611064.3079 | U50: 611064.3079 | V50: 611064.3079 | W50: 611064.3079 | X50: 611064.3079 | Y50: 611064.3079 | Z50: 611064.3079 | AA50: 611064.3079 | AB50: 611064.3079 | AC50: 611064.3079 | AD50: 611064.3079 | AE50: 611064.3079 | AF50: 611064.3079 | AG50: 611064.3079 | AH50: 611064.3079 | AI50: 611064.3079
A51: Annual Manufacturing Cost
A52: Variable Costs | F52: ='Operating Costs'!$I$26*(1-B26)+'Operating Costs'!I26*B26*B28 -> -24833.72086 | G52: ='Operating Costs'!$I$26 -> -28381.39527 | H52: ='Operating Costs'!$I$26 -> -28381.39527 | I52: ='Operating Costs'!$I$26 -> -28381.39527 | J52: ='Operating Costs'!$I$26 -> -28381.39527 | K52: ='Operating Costs'!$I$26 -> -28381.39527 | L52: ='Operating Costs'!$I$26 -> -28381.39527 | M52: ='Operating Costs'!$I$26 -> -28381.39527 | N52: ='Operating Costs'!$I$26 -> -28381.39527 | O52: ='Operating Costs'!$I$26 -> -28381.39527 | P52: ='Operating Costs'!$I$26 -> -28381.39527 | Q52: ='Operating Costs'!$I$26 -> -28381.39527 | R52: ='Operating Costs'!$I$26 -> -28381.39527 | S52: ='Operating Costs'!$I$26 -> -28381.39527 | T52: ='Operating Costs'!$I$26 -> -28381.39527 | U52: ='Operating Costs'!$I$26 -> -28381.39527 | V52: ='Operating Costs'!$I$26 -> -28381.39527 | W52: ='Operating Costs'!$I$26 -> -28381.39527 | X52: ='Operating Costs'!$I$26 -> -28381.39527 | Y52: ='Operating Costs'!$I$26 -> -28381.39527 | Z52: ='Operating Costs'!$I$26 -> -28381.39527 | AA52: ='Operating Costs'!$I$26 -> -28381.39527 | AB52: ='Operating Costs'!$I$26 -> -28381.39527 | AC52: ='Operating Costs'!$I$26 -> -28381.39527 | AD52: ='Operating Costs'!$I$26 -> -28381.39527 | AE52: ='Operating Costs'!$I$26 -> -28381.39527 | AF52: ='Operating Costs'!$I$26 -> -28381.39527 | AG52: ='Operating Costs'!$I$26 -> -28381.39527 | AH52: ='Operating Costs'!$I$26 -> -28381.39527 | AI52: ='Operating Costs'!$I$26 -> -28381.39527
A53: Fixed Operating Costs | F53: =('Labor Costs'!H22*1000000)*(1-B26)+('Labor Costs'!H22*1000000)*B26*B29 -> 238884.2807 | G53: ='Labor Costs'!$H$22*1000000 -> 238884.2807 | H53: ='Labor Costs'!$H$22*1000000 -> 238884.2807 | I53: ='Labor Costs'!$H$22*1000000 -> 238884.2807 | J53: ='Labor Costs'!$H$22*1000000 -> 238884.2807 | K53: ='Labor Costs'!$H$22*1000000 -> 238884.2807 | L53: ='Labor Costs'!$H$22*1000000 -> 238884.2807 | M53: ='Labor Costs'!$H$22*1000000 -> 238884.2807 | N53: ='Labor Costs'!$H$22*1000000 -> 238884.2807 | O53: ='Labor Costs'!$H$22*1000000 -> 238884.2807 | P53: ='Labor Costs'!$H$22*1000000 -> 238884.2807 | Q53: ='Labor Costs'!$H$22*1000000 -> 238884.2807 | R53: ='Labor Costs'!$H$22*1000000 -> 238884.2807 | S53: ='Labor Costs'!$H$22*1000000 -> 238884.2807 | T53: ='Labor Costs'!$H$22*1000000 -> 238884.2807 | U53: ='Labor Costs'!$H$22*1000000 -> 238884.2807 | V53: ='Labor Costs'!$H$22*1000000 -> 238884.2807 | W53: ='Labor Costs'!$H$22*1000000 -> 238884.2807 | X53: ='Labor Costs'!$H$22*1000000 -> 238884.2807 | Y53: ='Labor Costs'!$H$22*1000000 -> 238884.2807 | Z53: ='Labor Costs'!$H$22*1000000 -> 238884.2807 | AA53: ='Labor Costs'!$H$22*1000000 -> 238884.2807 | AB53: ='Labor Costs'!$H$22*1000000 -> 238884.2807 | AC53: ='Labor Costs'!$H$22*1000000 -> 238884.2807 | AD53: ='Labor Costs'!$H$22*1000000 -> 238884.2807 | AE53: ='Labor Costs'!$H$22*1000000 -> 238884.2807 | AF53: ='Labor Costs'!$H$22*1000000 -> 238884.2807 | AG53: ='Labor Costs'!$H$22*1000000 -> 238884.2807 | AH53: ='Labor Costs'!$H$22*1000000 -> 238884.2807 | AI53: ='Labor Costs'!$H$22*1000000 -> 238884.2807
A54: Total Product Cost | F54: =SUM(F52:F53) -> 214050.5598 | G54: 210502.8854 | H54: 210502.8854 | I54: 210502.8854 | J54: 210502.8854 | K54: 210502.8854 | L54: 210502.8854 | M54: 210502.8854 | N54: 210502.8854 | O54: 210502.8854 | P54: 210502.8854 | Q54: 210502.8854 | R54: 210502.8854 | S54: 210502.8854 | T54: 210502.8854 | U54: 210502.8854 | V54: 210502.8854 | W54: 210502.8854 | X54: 210502.8854 | Y54: 210502.8854 | Z54: 210502.8854 | AA54: 210502.8854 | AB54: 210502.8854 | AC54: 210502.8854 | AD54: 210502.8854 | AE54: 210502.8854 | AF54: 210502.8854 | AG54: 210502.8854 | AH54: 210502.8854 | AI54: 210502.8854
A55: Annual Depreciation
A56: General Plant
A57: DDB | F57: =$B$17/(100*$B$20)*($B$10-$B$14) -> 892618.1943 | G57: =$B$17/(100*$B$20)*F59 -> 637584.4245 | H57: 455417.4461 | I57: 325298.1758 | J57: 232355.8398 | K57: 165968.457 | L57: 118548.8979
A58: SL | F58: =B10/($B$20+1-F42) -> 446309.0971 | G58: =IF(F58>F57,F58,F59/($B$20+1-G42)) -> 371924.2476 | H58: 318792.2122 | I58: 284635.9038 | J58: 271081.8131 | K58: 271081.8131 | L58: 271081.8131
A59: Remaining Value | F59: =$B$10-$B$14-F57 -> 2231545.486 | G59: =F59-G57 -> 1593961.061 | H59: 1138543.615 | I59: 813245.4394 | J59: 580889.5996 | K59: 414921.1426 | L59: 296372.2447
A60: Actual | F60: =IF(F58>F57,F58,F57) -> 892618.1943 | G60: 637584.4245 | H60: 455417.4461 | I60: 325298.1758 | J60: 271081.8131 | K60: 271081.8131 | L60: 271081.8131
A61: Steam Plant
A62: DDB | F62: =$B$18/(100*$B$21)*($B$11-$B$15) -> 0 | G62: =$B$18/(100*$B$21)*(F64-$B$15) -> 0 | H62: =$B$18/(100*$B$21)*(G64-$B$15) -> 0 | I62: =$B$18/(100*$B$21)*(H64-$B$15) -> 0 | J62: 0 | K62: 0 | L62: 0 | M62: 0 | N62: =$B$18/(100*$B$21)*(M64-$B$15) -> 0 | O62: 0 | P62: 0 | Q62: 0 | R62: 0 | S62: 0 | T62: 0 | U62: 0 | V62: 0 | W62: 0 | X62: 0 | Y62: 0 | Z62: 0 | AA62: 0 | AB62: 0 | AC62: 0 | AD62: 0 | AE62: 0 | AF62: 0 | AG62: 0 | AH62: 0 | AI62: =$B$18/(100*$B$21)*(X64-$B$15) -> 0
A63: SL | F63: =B11/(B21+1-F42) -> 0 | G63: =IF(F63>F62,F63,F64/($B$21+1-G42)) -> 0 | H63: =IF(G63>G62,G63,G64/($B$21+1-H42)) -> 0 | I63: =IF(H63>H62,H63,H64/($B$21+1-I42)) -> 0 | J63: 0 | K63: 0 | L63: 0 | M63: 0 | N63: =IF(M63>M62,M63,M64/($B$21+1-N42)) -> 0 | O63: 0 | P63: 0 | Q63: 0 | R63: 0 | S63: 0 | T63: 0 | U63: 0 | V63: 0 | W63: 0 | X63: 0 | Y63: 0 | Z63: 0 | AA63: 0 | AB63: 0 | AC63: 0 | AD63: 0 | AE63: 0 | AF63: 0 | AG63: 0 | AH63: 0 | AI63: 0
A64: Remaining Value | F64: =B11-B15-F62 -> 0 | G64: =F64-G62 -> 0 | H64: =G64-H62 -> 0 | I64: =H64-I62 -> 0 | J64: 0 | K64: 0 | L64: 0 | M64: 0 | N64: =M64-N62 -> 0 | O64: 0 | P64: 0 | Q64: 0 | R64: 0 | S64: 0 | T64: 0 | U64: 0 | V64: 0 | W64: 0 | X64: 0 | Y64: 0 | Z64: 0 | AA64: 0 | AB64: 0 | AC64: 0 | AD64: 0 | AE64: 0 | AF64: 0 | AG64: 0 | AH64: 0 | AI64: =X64-AI62 -> 0
A65: Actual | F65: =IF(F63>F62,F63,F62) -> 0 | G65: 0 | H65: 0 | I65: 0 | J65: 0 | K65: 0 | L65: 0 | M65: 0 | N65: 0 | O65: 0 | P65: 0 | Q65: 0 | R65: 0 | S65: 0 | T65: 0 | U65: 0 | V65: 0 | W65: 0 | X65: 0 | Y65: 0 | Z65: 0 | AA65: 0 | AB65: 0 | AC65: 0 | AD65: 0 | AE65: 0 | AF65: 0 | AG65: 0 | AH65: 0 | AI65: 0 | AJ65: =SUM(F65:AI65)*0 -> 0
A66: Net Revenue | F66: =F50-F54-F60-F65-F46 -> -788957.8888 | G66: -367672.8193 | H66: -174822.9764 | I66: -33219.62683 | J66: 33342.12102 | K66: 46613.41014 | L66: 60880.04594 | M66: 347298.4926 | N66: 363785.3736 | O66: 381508.7706 | P66: 400561.4225 | Q66: 400561.4225 | R66: 400561.4225 | S66: 400561.4225 | T66: 400561.4225 | U66: 400561.4225 | V66: 400561.4225 | W66: 400561.4225 | X66: 400561.4225 | Y66: 400561.4225 | Z66: 400561.4225 | AA66: 400561.4225 | AB66: 400561.4225 | AC66: 400561.4225 | AD66: 400561.4225 | AE66: 400561.4225 | AF66: 400561.4225 | AG66: 400561.4225 | AH66: 400561.4225 | AI66: 400561.4225
A67: Losses Forward | G67: =IF(F68<0,F68,0) -> -788957.8888 | H67: =IF(G68<0,G68,0) -> -1156630.708 | I67: =IF(H68<0,H68,0) -> -1331453.684 | J67: -1364673.311 | K67: -1331331.19 | L67: -1284717.78 | M67: -1223837.734 | N67: =IF(M68<0,M68,0) -> -876539.2417 | O67: -512753.8681 | P67: -131245.0975 | Q67: 0 | R67: 0 | S67: 0 | T67: 0 | U67: 0 | V67: 0 | W67: 0 | X67: 0 | Y67: 0 | Z67: 0 | AA67: 0 | AB67: 0 | AC67: 0 | AD67: 0 | AE67: 0 | AF67: 0 | AG67: 0 | AH67: 0 | AI67: =IF(X68<0,X68,0) -> 0
A68: Taxable Income | F68: =F66+F67 -> -788957.8888 | G68: -1156630.708 | H68: -1331453.684 | I68: -1364673.311 | J68: -1331331.19 | K68: -1284717.78 | L68: -1223837.734 | M68: -876539.2417 | N68: -512753.8681 | O68: -131245.0975 | P68: 269316.325 | Q68: 400561.4225 | R68: 400561.4225 | S68: 400561.4225 | T68: 400561.4225 | U68: 400561.4225 | V68: 400561.4225 | W68: 400561.4225 | X68: 400561.4225 | Y68: 400561.4225 | Z68: 400561.4225 | AA68: 400561.4225 | AB68: 400561.4225 | AC68: 400561.4225 | AD68: 400561.4225 | AE68: 400561.4225 | AF68: 400561.4225 | AG68: 400561.4225 | AH68: 400561.4225 | AI68: 400561.4225
A69: Income Tax | F69: =IF(F68*($B$31)<0,0,F68*$B$31) -> 0 | G69: 0 | H69: 0 | I69: 0 | J69: 0 | K69: 0 | L69: 0 | M69: 0 | N69: 0 | O69: 0 | P69: 105033.3667 | Q69: 156218.9548 | R69: 156218.9548 | S69: 156218.9548 | T69: 156218.9548 | U69: 156218.9548 | V69: 156218.9548 | W69: 156218.9548 | X69: 156218.9548 | Y69: 156218.9548 | Z69: 156218.9548 | AA69: 156218.9548 | AB69: 156218.9548 | AC69: 156218.9548 | AD69: 156218.9548 | AE69: 156218.9548 | AF69: 156218.9548 | AG69: 156218.9548 | AH69: 156218.9548 | AI69: 156218.9548
A70: Annual Cash Income | F70: =F50-F54-F69-F45 -> -28840.33879 | G70: 127473.4126 | H70: 127473.4126 | I70: 127473.4126 | J70: 127473.4126 | K70: 127473.4126 | L70: 127473.4126 | M70: 127473.4126 | N70: 127473.4126 | O70: 127473.4126 | P70: 295528.0557 | Q70: 244342.4677 | R70: 244342.4677 | S70: 244342.4677 | T70: 244342.4677 | U70: 244342.4677 | V70: 244342.4677 | W70: 244342.4677 | X70: 244342.4677 | Y70: 244342.4677 | Z70: 244342.4677 | AA70: 244342.4677 | AB70: 244342.4677 | AC70: 244342.4677 | AD70: 244342.4677 | AE70: 244342.4677 | AF70: 244342.4677 | AG70: 244342.4677 | AH70: 244342.4677 | AI70: 244342.4677
A71: Discount Factor | C71: =1/(1+$B$30)^C42 -> 1.059499602 | D71: 1.029319971 | E71: 1 | F71: 0.9715152028 | G71: 0.9438417893 | H71: 0.9169566473 | I71: 0.8908373232 | J71: 0.8654620027 | K71: 0.8408094931 | L71: 0.8168592052 | M71: 0.7935911364 | N71: 0.7709858538 | O71: 0.7490244781 | P71: 0.7276886678 | Q71: 0.7069606036 | R71: 0.6868229742 | S71: 0.6672589611 | T71: 0.6482522249 | U71: 0.6297868917 | V71: 0.6118475398 | W71: 0.5944191868 | X71: 0.5774872768 | Y71: 0.5610376688 | Z71: 0.5450566246 | AA71: 0.5295307972 | AB71: 0.5144472198 | AC71: 0.4997932951 | AD71: 0.4855567844 | AE71: 0.4717257979 | AF71: 0.4582887842 | AG71: 0.4452345211 | AH71: 0.4325521061 | AI71: 0.4202309471
A72: Annual Present Value | B72: =SUM(F72:AI72) -> 3716594.771 | F72: =F71*F70 -> -28018.82758 | G72: 120314.7338 | H72: 116887.593 | I72: 113558.0736 | J72: 110323.3949 | K72: 107180.8554 | L72: 104127.8305 | M72: 101161.7704 | N72: 98280.19784 | O72: 95480.70634 | P72: 215052.4172 | Q72: 172740.4985 | R72: 167820.0204 | S72: 163039.7012 | T72: 158395.5483 | U72: 153883.6833 | V72: 149500.3377 | W72: 145241.8509 | X72: 141104.6663 | Y72: 137085.3285 | Z72: 133180.4807 | AA72: 129386.8617 | AB72: 125701.3032 | AC72: 122120.7271 | AD72: 118642.1429 | AE72: 115262.6455 | AF72: 111979.4125 | AG72: 108789.7016 | AH72: 105690.849 | AI72: 102680.2666
A73: Total Capital Investment + Interest | C73: =(C43+C46)*C71 -> 276720.1947 | D73: =(D43+D46)*D71 -> 2027860.821 | E73: =(E43+E46+E44)*E71 -> 1608944.295 | AI73: =(AI43+AI46+AI44)*AI71 -> -196930.5393
A74: Net Present Worth | E74: =B72-SUM(B73:AI73) -> 3.725290298e-09
F75: =SUM($F$72:F72)-SUM($C$43:$E$43) -> -3152182.508 | G75: =SUM($F$72:G72)-SUM($C$43:$E$43) -> -3031867.774 | H75: =SUM($F$72:H72)-SUM($C$43:$E$43) -> -2914980.181 | I75: =SUM($F$72:I72)-SUM($C$43:$E$43) -> -2801422.107 | J75: =SUM($F$72:J72)-SUM($C$43:$E$43) -> -2691098.712 | K75: =SUM($F$72:K72)-SUM($C$43:$E$43) -> -2583917.857 | L75: =SUM($F$72:L72)-SUM($C$43:$E$43) -> -2479790.026 | M75: =SUM($F$72:M72)-SUM($C$43:$E$43) -> -2378628.256 | N75: =SUM($F$72:N72)-SUM($C$43:$E$43) -> -2280348.058 | O75: =SUM($F$72:O72)-SUM($C$43:$E$43) -> -2184867.352 | P75: =SUM($F$72:P72)-SUM($C$43:$E$43) -> -1969814.935 | Q75: =SUM($F$72:Q72)-SUM($C$43:$E$43) -> -1797074.436 | R75: =SUM($F$72:R72)-SUM($C$43:$E$43) -> -1629254.416 | S75: =SUM($F$72:S72)-SUM($C$43:$E$43) -> -1466214.715 | T75: =SUM($F$72:T72)-SUM($C$43:$E$43) -> -1307819.166 | U75: =SUM($F$72:U72)-SUM($C$43:$E$43) -> -1153935.483 | V75: =SUM($F$72:V72)-SUM($C$43:$E$43) -> -1004435.145 | W75: =SUM($F$72:W72)-SUM($C$43:$E$43) -> -859193.2942 | X75: =SUM($F$72:X72)-SUM($C$43:$E$43) -> -718088.6279 | Y75: =SUM($F$72:Y72)-SUM($C$43:$E$43) -> -581003.2995 | Z75: =SUM($F$72:Z72)-SUM($C$43:$E$43) -> -447822.8188 | AA75: =SUM($F$72:AA72)-SUM($C$43:$E$43) -> -318435.9571 | AB75: =SUM($F$72:AB72)-SUM($C$43:$E$43) -> -192734.6539 | AC75: =SUM($F$72:AC72)-SUM($C$43:$E$43) -> -70613.9268 | AD75: =SUM($F$72:AD72)-SUM($C$43:$E$43) -> 48028.21613 | AE75: =SUM($F$72:AE72)-SUM($C$43:$E$43) -> 163290.8617 | AF75: =SUM($F$72:AF72)-SUM($C$43:$E$43) -> 275270.2741 | AG75: =SUM($F$72:AG72)-SUM($C$43:$E$43) -> 384059.9757 | AH75: =SUM($F$72:AH72)-SUM($C$43:$E$43) -> 489750.8248 | AI75: =SUM($F$72:AI72)-SUM($C$43:$E$43) -> 592431.0914
F77: If income taxable income < 0, tax = $0
F78: Loan Interest subtracted from taxable income.
F79: Loan payment subtracted from annual cash income
F80: Interest on construction loan added to investment
A82: NPV of Income Tax | B82: =SUM(F82:AI82) -> 1714588.886 | F82: =F69*F71 -> 0 | G82: 0 | H82: 0 | I82: 0 | J82: 0 | K82: 0 | L82: 0 | M82: 0 | N82: 0 | O82: 0 | P82: 76431.59072 | Q82: 110440.6466 | R82: 107294.7671 | S82: 104238.4975 | T82: 101269.285 | U82: 98384.64995 | V82: 95582.18315 | W82: 92859.54405 | X82: 90214.45877 | Y82: 87644.71821 | Z82: 85148.17618 | AA82: 82722.74765 | AB82: 80366.40696 | AC82: 78077.18616 | AD82: 75853.17334 | AE82: 73692.51109 | AF82: 71593.39485 | AG82: 69554.07152 | AH82: 67572.8379 | AI82: 65648.03931
A83: NPV of Product Income | B83: =SUM(F83:AI83) -> 7761796.715 | F83: =F48*F71 -> 289566.9702 | G83: 375091.6184 | H83: 364407.2097 | I83: 354027.1443 | J83: 343942.7529 | K83: 334145.6133 | L83: 324627.5433 | M83: 315380.5935 | N83: 306397.0413 | O83: 297669.3837 | P83: 289190.3317 | Q83: 280952.8037 | R83: 272949.9201 | S83: 265174.997 | T83: 257621.541 | U83: 250283.2436 | V83: 243153.9762 | W83: 236227.7845 | X83: 229498.8839 | Y83: 222961.6548 | Z83: 216610.6373 | AA83: 210440.5272 | AB83: 204446.1714 | AC83: 198622.5637 | AD83: 192964.8403 | AE83: 187468.2759 | AF83: 182128.2801 | AG83: 176940.393 | AH83: 171900.2818 | AI83: 167003.7371

Sheet Operating Costs
A1: Raw Material and Utility Cost, US ¢/gal
B2: Quote Year Cost | D2: Year of Price Quote | E2: Current Price (2011) | F2: Consumption Per Year | H2: ="$/MWh" -> $/MWh | I2: $/year
A3: Raw Materials
A4: Manure | B4: 5 | C4: $/metric ton | D4: 2011 | E4: =B4*VLOOKUP($C$28,$A$108:$B$140,2,FALSE)/VLOOKUP(D4,$A$108:$B$140,2,FALSE) -> 5 | F4: ='Mass & Energy'!E7*'Mass & Energy'!$C$3/24 -> 10261.51875 | G4: metric tonne | H4: =E4*F4/('Mass & Energy'!$C$4/1000) -> 8.262728138 | I4: =F4*B4 -> 51307.59375
A5: Corn Husk | B5: 20 | C5: $/metric ton | D5: 2011 | E5: =B5*VLOOKUP($C$28,$A$104:$B$136,2,FALSE)/VLOOKUP(D5,$A$104:$B$136,2,FALSE) -> 20 | F5: ='Mass & Energy'!M10*'Mass & Energy'!$C$3/24 -> 2645.1915 | G5: metric tonne | H5: =E5*F5/('Mass & Energy'!$C$4/1000) -> 8.519790791 | I5: =F5*B5 -> 52903.83
A6: Rye | B6: =B5 -> 20 | C6: $/metric ton | D6: 2011 | E6: =B6*VLOOKUP($C$28,$A$104:$B$136,2,FALSE)/VLOOKUP(D6,$A$104:$B$136,2,FALSE) -> 20 | F6: ='Mass & Energy'!O10*'Mass & Energy'!$C$3/24 -> 0 | G6: metric tonne | H6: =E6*F6/('Mass & Energy'!$C$4/1000) -> 0 | I6: =F6*B6 -> 0
A7: Wheat | B7: =B5 -> 20 | C7: $/metric ton | D7: 2011 | E7: =B7*VLOOKUP($C$28,$A$104:$B$136,2,FALSE)/VLOOKUP(D7,$A$104:$B$136,2,FALSE) -> 20 | F7: ='Mass & Energy'!P10*'Mass & Energy'!$C$3/24 -> 0 | G7: metric tonne | H7: =E7*F7/('Mass & Energy'!$C$4/1000) -> 0 | I7: =F7*B7 -> 0
A8: Glycerin | B8: 0 | C8: $/metric ton | D8: 2011 | E8: =B8*VLOOKUP($C$28,$A$104:$B$136,2,FALSE)/VLOOKUP(D8,$A$104:$B$136,2,FALSE) -> 0 | F8: ='Mass & Energy'!E9*'Mass & Energy'!$C$3/24 -> 1026.9275 | G8: metric tonne | H8: =E8*F8/('Mass & Energy'!$C$4/1000) -> 0 | I8: =F8*B8 -> 0
G9: Gross Raw Material Cost | H9: =SUM(H4:H5) -> 16.78251893 | I9: =SUM(I4:I8) -> 104211.4238
A11: Waste Disposal
A12: Solids handling | B12: 5 | C12: $/metric ton | D12: 2011 | E12: =B12*VLOOKUP($C$28,$A$104:$B$136,2,FALSE)/VLOOKUP(D12,$A$104:$B$136,2,FALSE) -> 5 | F12: ='Mass & Energy'!E18*'Mass & Energy'!$C$3/24 -> 2958.799162 | G12: metric tonne | H12: =E12*F12/('Mass & Energy'!$C$4/1000) -> 2.38246927 | I12: =F12*B12 -> 14793.99581
A13: Liquid Effluent Handling | B13: 0 | C13: $/metric ton | D13: 2018 | E13: 2.64 | F13: ='Mass & Energy'!E16*'Mass & Energy'!$C$3/24 -> 46354.5202 | G13: metric tonne | H13: =E13*F13/('Mass & Energy'!$C$4/1000) -> 19.7077858 | I13: =F13*B13 -> 0
G14: Total | H14: =SUM(H12:H12) -> 2.38246927 | I14: =SUM(I12:I13) -> 14793.99581
A16: By-product credits:
A17: Solids Digestate | B17: -35.25 | C17: $/metric ton | D17: 2011 | E17: =B17*VLOOKUP($C$28,$A$104:$B$136,2,FALSE)/VLOOKUP(D17,$A$104:$B$136,2,FALSE) -> -35.25 | F17: ='Mass & Energy'!E18*'Mass & Energy'!$C$3/24 -> 2958.799162 | G17: metric tonne | H17: =E17*F17/('Mass & Energy'!$C$4/1000) -> -16.79640836 | I17: =F17*B17 -> -104297.6705
A18: Liquid Effluent Credit | B18: -2.64 | C18: $/metric ton | D18: 2017 | E18: -2.64 | F18: ='Mass & Energy'!E20*'Mass & Energy'!$C$3/24 -> 41423.18827 | G18: metric tonne | H18: =E18*F18/('Mass & Energy'!$C$4/1000) -> -17.61121285 | I18: =F18*B18 -> -109357.217
G20: Total by-product credits | H20: =SUM(H17:H17) -> -16.79640836 | I20: =SUM(I17:I19) -> -213654.8875
A21: Utilities/Tax Credits
A22: Electricity | B22: 6.695 | C22: ¢/kwh | D22: 2007 | E22: =B22*VLOOKUP($C$28,$A$104:$B$136,2,FALSE)/VLOOKUP(D22,$A$104:$B$136,2,FALSE) -> 7.884666209 | F22: 0 | G22: kWh | H22: =E22*F22/('Mass & Energy'!$C$4/1000) -> 0 | I22: =F22*B22 -> 0
A23: Renewable Tax Credits | B23: -0.015 | C23: $/kWh | D23: 1990 | E23: =B23*VLOOKUP($C$28,$A$104:$B$136,2,FALSE)/VLOOKUP(D23,$A$104:$B$136,2,FALSE) -> -0.0290564731 | F23: ='Mass & Energy'!J36 -> 9825787.655 | G23: kWh | H23: =E23*F23/('Mass & Energy'!$C$4/1000) -> -45.97821311 | I23: =F23*B23 -> -147386.8148
A24: Chemicals | B24: 100.8 | C24: ¢/1000 gal | D24: 1990 | E24: =B24*VLOOKUP($C$28,$A$104:$B$136,2,FALSE)/VLOOKUP(D24,$A$104:$B$136,2,FALSE) -> 195.2594992 | F24: 0 | G24: metric tonne | H24: =E24*F24/('Mass & Energy'!$C$4/1000) -> 0 | I24: =F24*B24 -> 0
A25: Total Variable Operating Costs | G25: Total Utilities Cost | H25: =SUM(H22:H24) -> -45.97821311 | I25: =SUM(I23:I24) -> -147386.8148
H26: =H25+H20+H14+H9 -> -43.60963326 | I26: =I9+I14+I25 -> -28381.39527
A28: COST YEAR = | B28: annual average | C28: 2011 | D28: * Selling Price is plant gate + ROI before taxes
W48: 8.98
W49: 8.96
W50: 9.09
W51: 9.26
W52: 9.49
W53: 10.33
W54: 10.68
W55: 10.63
W56: 10.31
W57: 9.79
A99: Chemical Price Escalation for all calculations
A100: Source: SRI CEH Producer Price Index
A101: Extracted from B2A program
A103: Year | B103: INDEX
A104: 1990 | B104: 123.6
A105: 1991 | B105: 125.6
A106: 1992 | B106: 125.9
A107: 1993 | B107: 128.2
A108: 1994 | B108: 132.1
A109: 1995 | B109: 139.5
A110: 1996 | B110: 142.1
A111: 1997 | B111: 147.1
A112: 1998 | B112: 148.7
A113: 1999 | B113: 149.7
A114: 2000 | B114: 156.7
A115: 2001 | B115: 158.4
A116: 2002 | B116: 157.3
A117: 2003 | B117: 164.6
A118: 2004 | B118: 172.8
A119: 2005 | B119: 187.3
A120: 2006 | B120: 196.8
A121: 2007 | B121: 203.3
A122: 2008 | B122: 228.4
A123: 2009 | B123: 232.0751128
A124: 2010 | B124: 235.7502256
A125: 2011 | B125: 239.4253383
A126: 2012
A127: 2013
A128: 2014
A129: 2015
A130: 2016
A131: 2017
A132: 2018
A133: 2019
A134: 2020
A135: 2021
A136: 2022

Sheet Capital Cost
C1: Digester Input Mass Flow | E1: 297.87 | F1: tons/day | H1: Lang Factor | I1: 1
A4: # | B4: Group | C4: Ref Eq. No | D4: Equipment Title | E4: Baseline Flow | F4: Scaled Flow | G4: Units | H4: Scaling Exponent | I4: Base Cost | J4: Scaled Cost | K4: Installed Capital Cost
A5: 1 | B5: CHP | C5: Power Generator | D5: Power Generator | E5: 500 | F5: ='Mass & Energy'!C1 -> 833.9406652 | G5: kW | H5: 0.72 | I5: =1136*E5 -> 568000 | J5: =I5*((F5/E5)^H5)*A5 -> 820932.1078 | K5: =J5 -> 820932.1078
A6: 1 | B6: Digester | C6: T-606 | D6: Anaerobic Basin | E6: =393100*24/1000 -> 9434.4 | F6: ='Mass & Energy'!$E$12 -> 167.3691309 | G6: tons/day | H6: 0.6 | I6: 27000000 | J6: =I6*((F6/E6)^H6)*A6 -> 2402926.072 | K6: =J6*$I$1 -> 2402926.072
A7: 1 | B7: Digester | C7: P-602 | D7: Anaerobic Reactor Feed Pump | E7: 9434.4 | F7: ='Mass & Energy'!$E$12 -> 167.3691309 | G7: tons/day | H7: 0.6 | I7: 231488 | J7: =I7*((F7/E7)^H7)*A7 -> 20601.79816 | K7: =J7*$I$1 -> 20601.79816
A8: 1 | B8: Digester | C8: P-606 | D8: Anaerobic Reactor Recirculation Pump | E8: 9434.4 | F8: ='Mass & Energy'!$E$12 -> 167.3691309 | G8: tons/day | H8: 0.6 | I8: Included | J8: 0 | K8: 0
A9: 1 | B9: Digester | C9: P-607 | D9: Waste Anaerobic Sludge Pump | E9: 9434.4 | F9: ='Mass & Energy'!$E$12 -> 167.3691309 | G9: tons/day | H9: 0.6 | I9: 93300 | J9: =I9*((F9/E9)^H9)*A9 -> 8303.444536 | K9: =J9*$I$1 -> 8303.444536
A10: 1 | B10: Digester | C10: P-616 | D10: Treated Water Pump | E10: 9434.4 | F10: ='Mass & Energy'!$E$12 -> 167.3691309 | G10: tons/day | H10: 0.6 | I10: Included | J10: 0 | K10: 0
A11: 1 | B11: Other | C11: B-606 | D11: Biogas blower | E11: 9434.4 | F11: ='Mass & Energy'!$E$12 -> 167.3691309 | G11: tons/day | H11: 0.6 | I11: Included | J11: - | K11: -
A12: 1 | B12: Other | C12: C-614 | D12: Aerobic Sludge Screw | E12: 9434.4 | F12: ='Mass & Energy'!$E$12 -> 167.3691309 | G12: tons/day | H12: 0.6 | I12: 25000 | J12: =I12*((F12/E12)^H12)*A12 -> 2224.931548 | K12: =J12*$I$1 -> 2224.931548
A13: 1 | B13: Other | C13: M-606 | D13: Biogas Emergency Flare | E13: 9434.4 | F13: ='Mass & Energy'!$E$12 -> 167.3691309 | G13: tons/day | H13: 0.6 | I13: 32955 | J13: =I13*((F13/E13)^H13)*A13 -> 2932.904766 | K13: =J13*$I$1 -> 2932.904766
A14: 1 | B14: Storage | C14: T-609 | D14: Sludge Holding Tank | E14: 9434.4 | F14: ='Mass & Energy'!$E$12 -> 167.3691309 | G14: tons/day | H14: 0.6 | I14: Included | J14: -
A15: 1 | B15: Storage | C15: Liquid Effluent Storage | D15: Lagoon | K15: =37.5125*2400 -> 90030
A16: 0 | B16: Digester | C16: T-608 | D16: Aeration Digester | E16: =393100*24/1000 -> 9434.4 | F16: ='Mass & Energy'!$E$12 -> 167.3691309 | G16: tons/day | H16: 0.6 | I16: 2700000 | J16: =I16*((F16/E16)^H16)*A16 -> 0 | K16: 0
A17: 0 | B17: Digester | C17: H-602 | D17: Anaerobic Digester Feed Cooler | E17: 9434.4 | F17: ='Mass & Energy'!$E$12 -> 167.3691309 | G17: tons/day | H17: 0.6 | I17: 83863 | J17: 0 | K17: =J17*$I$1 -> 0
A18: 0 | B18: Digester | C18: M-632 | D18: Caustic Feed System | E18: 9434.4 | F18: ='Mass & Energy'!$E$12 -> 167.3691309 | G18: tons/day | H18: 0.6 | I18: 22800 | J18: 0 | K18: 0
A19: 0 | B19: Digester | C19: R-609 | D19: Membrane Bioreactor | E19: 9434.4 | F19: ='Mass & Energy'!$E$12 -> 167.3691309 | G19: tons/day | H19: 0.6 | I19: 5248750 | J19: 0 | K19: 0
A20: 0 | B20: Digester | C20: R-610 | D20: Reverse Osmosis System | E20: 9434.4 | F20: ='Mass & Energy'!$E$12 -> 167.3691309 | G20: tons/day | H20: 0.6 | I20: 2210979 | J20: 0 | K20: 0
A21: 0 | B21: Digester | C21: S-611 | D21: Centrifuge | E21: 9434.4 | F21: ='Mass & Energy'!$E$12 -> 167.3691309 | G21: tons/day | H21: 0.6 | I21: 6493500 | J21: 0 | K21: 0
A22: 0 | B22: Other | C22: B-608 | D22: Aerobic Digester Blower | E22: 9434.4 | F22: ='Mass & Energy'!$E$12 -> 167.3691309 | G22: tons/day | H22: 0.6 | I22: 1933750 | J22: 0 | K22: 0
A23: 0 | B23: Other | C23: M-640 | D23: Evaporator System | E23: 9434.4 | F23: ='Mass & Energy'!$E$12 -> 167.3691309 | G23: tons/day | H23: 0.6 | I23: 3801095 | J23: 0 | K23: 0
A24: 0 | B24: Other | C24: P-610 | D24: Reverse Osmosis Feed Pump | E24: 9434.4 | F24: ='Mass & Energy'!$E$12 -> 167.3691309 | G24: tons/day | H24: 0.6 | I24: Included | J24: 0 | K24: 0
A25: 0 | B25: Other | C25: P-611 | D25: Centrifuge Feed Pump | E25: 9434.4 | F25: ='Mass & Energy'!$E$12 -> 167.3691309 | G25: tons/day | H25: 0.6 | I25: 61200 | J25: =I25*((F25/E25)^H25)*A25 -> 0 | K25: =J25*$I$1 -> 0
A26: 0 | B26: Other | C26: P-612 | D26: Centrate Pump | E26: 9434.4 | F26: ='Mass & Energy'!$E$12 -> 167.3691309 | G26: tons/day | H26: 0.6 | I26: 70800 | J26: =I26*((F26/E26)^H26)*A26 -> 0 | K26: =J26*$I$1 -> 0
K27: =SUM(K5:K26) -> 3347951.258
B29: Cost Summary
B30: Equipment | C30: Cost
F41: New
F42: digester | G42: =SUM(K6:K10) -> 2431831.314 | H42: =ROUND(G42,-2) -> 2431800
F43: chp | G43: =K5 -> 820932.1078 | H43: =ROUND(G43,-2) -> 820900
F44: other | G44: =SUM(K11:K13) -> 5157.836314 | H44: =ROUND(G44,-2) -> 5200
F45: storage | G45: =SUM(K14:K15) -> 90030 | H45: =ROUND(G45,-2) -> 90000
F46: Total | G46: =SUM(G42:G45) -> 3347951.258 | H46: =ROUND(G46,-2) -> 3348000 | I46: =H46/2400 -> 1395

Sheet Labor Costs
B1: LABOR COSTS | C1: Base salary year= | D1: 2002
B2: Fixed Operating Costs | C2: $/year | D2: # workers | E2: base yr $/hr | F2: ="$/y total in "&D1&"$" -> $/y total in 2002$ | G2: $/y per worker in 2011$ | H2: $/y total in 2011$ | I2: $/hr in 2011$
B3: Plant Manager | C3: 110000 | D3: 0 | E3: =C3/(2080 ) -> 52.88461538 | F3: =D3*C3 -> 0 | G3: 131853.0885 | H3: =D3*G3 -> 0 | I3: =G3/2080 -> 63.39090792
B4: Plant Engineer | C4: 65000 | D4: 0 | E4: 31.25 | F4: 0 | G4: 77913.18865 | H4: 0 | I4: 37.45826377
B5: Maintenance Supr | C5: 60000 | D5: 1 | E5: 28.84615385 | F5: 60000 | G5: 71919.86644 | H5: 71919.86644 | I5: 34.57685887 | J5: =ROUND(H5,-2) -> 71900
B6: Lab Manager | C6: 55000 | D6: 0 | E6: 26.44230769 | F6: 0 | G6: 65926.54424 | H6: 0 | I6: 31.69545396
B7: Shift Supervisor | C7: 55000 | D7: 0 | E7: 26.44230769 | F7: 0 | G7: 65926.54424 | H7: 0 | I7: 31.69545396
B8: Lab Technician | C8: 40000 | D8: 0 | E8: 19.23076923 | F8: 0 | G8: 47946.57763 | H8: 0 | I8: 23.05123924
B9: Maintenance Tech | C9: 43000 | D9: 0 | E9: 20.67307692 | F9: 0 | G9: 51542.57095 | H9: 0 | I9: 24.78008219
B10: Shift Operators | C10: 43000 | D10: 0 | E10: 20.67307692 | F10: 0 | G10: 51542.57095 | H10: 0 | I10: 24.78008219
B11: Yard Employees | C11: 25000 | D11: 2 | E11: 12.01923077 | F11: 50000 | G11: 29966.61102 | H11: 59933.22204 | I11: 14.40702453 | J11: =ROUND(H11,-2) -> 59900
B12: General Manager | C12: 100000 | D12: 0 | E12: 48.07692308 | F12: 0 | G12: 119866.4441 | H12: 0 | I12: 57.62809811
B13: Clerks & Secretaries | C13: 30000 | D13: 0 | E13: 14.42307692 | F13: 0 | G13: 35959.93322 | H13: 0 | I13: 17.28842943
H15: MM$/yr (2011) | I15: Cents/gal (2011)
B16: Total Salaries | D16: =SUM(D3:D13) -> 3 | F16: =SUM(F3:F13) -> 110000 | G16: =SUM(H3:H13) -> 131853.0885 | H16: =SUM(H3:H13)/1000000 -> 0.1318530885 | I16: 0.0007718832015
G17: =ROUND(G16,-2) -> 131900
B18: Overhead/Maint | C18: 0.05 | D18: of Labor & Supervison | F18: =C18*H16*1000000 -> 6592.654424 | G18: =C18*G17 -> 6595 | H18: =F18/1000000 -> 0.006592654424 | I18: 3.859416008e-05
B19: Maintenance | C19: 0.01 | D19: of FCI | F19: ='Capital Cost'!K27*C19 -> 33479.51258 | H19: =F19/1000000 -> 0.03347951258 | I19: 0.0002800457581
B20: Insurance & Taxes | C20: 0.02 | D20: of FCI | F20: ='Capital Cost'!K27*'Labor Costs'!C20 -> 66959.02517 | G20: =ROUND(F20,-2) -> 67000 | H20: =F20/1000000 -> 0.06695902517 | I20: 0.0005600915163
B22: Total Fixed Operating Costs | H22: =SUM(H16:H20) -> 0.2388842807 | I22: =SUM(I16:I20) -> 0.001650614636
B26: Labor Index | J26: Labor Cost Comparison with SRI PEP Yearbook Data:
B27: Source: | C27: Bureau of Labor Statistics | J27: avg salary (w/ benefits) | L27: =(F18+F16)/D16 -> 38864.21814
B28: Series ID: | C28: CEU3232500008 | D28: http://data.bls.gov/cgi-bin/srgate | J28: op labor (w/benefits) | L28: =H10/0.75 -> 0
B29: Chemicals
B30: Average Hourly Earnings of Production Workers | J30: $/h burdened avg labor | L30: =L27/2080 -> 18.68472026
B31: Current indices @ | J31: $/h burdened op labor w 10% shift overlap | L31: =(L28/2080/D10)*1.1 -> 
J32: SRI 2007, $/h op labor | L32: 42.5
J33: burdened & 10% shift overlap
B34: Year | C34: Reported
B35: 1997 | C35: 15.78
B36: 1998 | C36: 16.23
B37: 1999 | C37: 16.4
B38: 2000 | C38: 17.09
B39: 2001 | C39: 17.57
B40: 2002 | C40: 17.97
B41: 2003 | C41: 18.5
B42: 2004 | C42: 19.17
B43: 2005 | C43: 19.67
B44: 2006 | C44: 19.6
B45: 2007 | C45: 19.55
B46: 2008 | C46: 19.5 | F46: 2011 | H46: 2012
B47: 2009 | C47: 20.3 | E47: jan | F47: 21.39 | H47: 22.68 | I47: p
B48: 2010 | C48: 21.07 | E48: feb | F48: 21.1
B49: 2011 | C49: =F59 -> 21.54 | E49: mar | F49: 21.34
B50: 2012 | E50: apr | F50: 21.25
B51: 2013 | E51: may | F51: 21.47
B52: 2014 | E52: jun | F52: 21.6
B53: 2015 | E53: jul | F53: 21.8
B54: 2016 | E54: aug | F54: 21.46
B55: 2017 | E55: sep | F55: 21.5
B56: 2018 | E56: oct | F56: 21.49
B57: 2019 | E57: nov | F57: 21.33
B58: 2020 | E58: dec | F58: 22.67 | G58: p
B59: 2021 | D59: average to date= | F59: 21.54 | G59: p
B60: 2022 | D60: p : Preliminary. All indexes are subject to revision four months after original publication

Sheet Sensitivity
G1: Corn Husk/Glycerin | J1: Rye/Glycerin | M1: Wheat/Glycerin | P1: Corn Husk | S1: Rye | V1: Wheat
A2: Sheet | B2: Range | C2: Variable | D2: Lower | E2: Upper | F2: Base Value | G2: Lower | H2: Upper | I2: Base Value | J2: Lower | K2: Upper | L2: Base Value | M2: Lower | N2: Upper | O2: Base Value | P2: Lower | Q2: Upper | R2: Base Value | S2: Lower | T2: Upper | U2: Base Value | V2: Lower | W2: Upper | X2: Base Value
A3: Operating Costs | B3: B8 | C3: Glycerin Price ($0/ton) | D3: -10 | E3: 10 | F3: 0 | G3: 0.0256491784 | H3: 0.02284427625 | I3: 0.02424883217 | J3: 0.0424087596 | K3: 0.03828884097 | L3: 0.04035283373 | M3: 0.04202730748 | N3: 0.03803052302 | O3: 0.04003399964 | P3: 0.02320459981 | Q3: 0.02320459981 | R3: 0.02320459981 | S3: 0.04475085959 | T3: 0.04475085959 | U3: 0.04475085959 | V3: 0.0445714803 | W3: 0.0445714803 | X3: 0.0445714803 | Y3: 0.0256491784 | Z3: 0.02284427625 | AA3: 0.02424883217
A4: Operating Costs | B4: B5 | C4: Biomass Price ($20/ton) | D4: 24 | E4: 16 | F4: 20 | G4: 0.02280163476 | H4: 0.0256916801 | I4: 0.02424883217 | J4: 0.03892737092 | K4: 0.04177494337 | L4: 0.04035283373 | M4: 0.03860595823 | N4: 0.04145607977 | O4: 0.04003399964 | P4: 0.02175785251 | Q4: 0.02464906127 | R4: 0.02320459981 | S4: 0.04332965733 | T4: 0.04617280922 | U4: 0.04475085959 | V4: 0.04315026018 | W4: 0.04599343329 | X4: 0.0445714803 | Y4: 0.02280163476 | Z4: 0.0256916801 | AA4: 0.02424883217
A5: Operating Costs | B5: B4 | C5: Manure Price ($5/ton) | D5: =F5*1.2 -> 6 | E5: =F5*0.8 -> 4 | F5: 5 | G5: 0.02284533807 | H5: 0.0256481201 | I5: 0.02424883217 | J5: 0.03828821079 | K5: 0.0424093853 | L5: 0.04035283373 | M5: 0.03802893037 | N5: 0.04202888885 | O5: 0.04003399964 | P5: 0.01965430844 | Q5: 0.02674787139 | R5: 0.02320459981 | S5: 0.03955533167 | T5: 0.04992321939 | U5: 0.04475085958 | V5: 0.03953025888 | W5: 0.0495923098 | X5: 0.0445714803 | Y5: 0.02284533807 | Z5: 0.0256481201 | AA5: 0.02424883217
A6: Operating Costs | B6: B17 | C6: Solids Digestate Price (-$35.25/ton) | D6: =F6*0.8 -> -28.2 | E6: =F6*1.2 -> -42.3 | F6: -35.25 | G6: 0.02140242677 | H6: 0.02708763653 | I6: 0.02424883217 | J6: 0.03681874948 | K6: 0.04386805876 | L6: 0.04035283373 | M6: 0.03656377011 | N6: 0.0434833594 | O6: 0.04003399964 | P6: 0.01885466264 | Q6: 0.02754343203 | R6: 0.02320459981 | S6: 0.0390392406 | T6: 0.05042913836 | U6: 0.04475085959 | V6: 0.03898936809 | W6: 0.05012261251 | X6: 0.0445714803 | Y6: 0.02140242677 | Z6: 0.02708763653 | AA6: 0.02424883217
A7: Operating Costs | B7: B18 | C7: Liquid Effluent Price (-$2.64/ton) | D7: =F7*0.8 -> -2.112 | E7: =F7*1.2 -> -3.168 | F7: -2.64 | G7: 0.02348613785 | H7: 0.02500982934 | I7: 0.02424883217 | J7: 0.03620524609 | K7: 0.04447760561 | L7: 0.04035283373 | M7: 0.03596178308 | N7: 0.04408146214 | O7: 0.04003399964 | P7: 0.02153915946 | Q7: 0.02486691989 | R7: 0.02320459981 | S7: 0.03816279217 | T7: 0.0512916201 | U7: 0.04475085959 | V7: 0.03807958303 | W7: 0.05101791273 | X7: 0.0445714803 | Y7: 0.02348613785 | Z7: 0.02500982934 | AA7: 0.02424883217
A8: DCFROR | B8: B5 | C8: Capital Cost ($3.12 MM) | D8: =F8*1.2 -> 3748996.416 | E8: =F8*0.8 -> 2499330.944 | F8: =3124163.68 -> 3124163.68 | G8: 0.01910669407 | H8: 0.03003273862 | I8: 0.02424883217 | J8: 0.03431979605 | K8: 0.04708074522 | L8: 0.04035283373 | M8: 0.03401721566 | N8: 0.04674165441 | O8: 0.04003399964 | P8: 0.01812657437 | Q8: 0.0289223229 | R8: 0.02320459981 | S8: 0.03849836061 | T8: 0.05170882432 | U8: 0.04475085959 | V8: 0.03832901763 | W8: 0.05152033944 | X8: 0.0445714803 | Y8: 0.01910669407 | Z8: 0.03003273862 | AA8: 0.02424883217
A9: Mass & Energy | B9: C32 | C9: Waste per Cattle (0.035 ton/day) | D9: =F9*0.8 -> 0.028 | E9: =F9*1.2 -> 0.042 | F9: 0.035 | G9: 0.02115374555 | H9: 0.02734799345 | I9: 0.02424883217 | J9: 0.03537987914 | K9: 0.04531689885 | L9: 0.04035283373 | M9: 0.03521094257 | N9: 0.04484599428 | O9: 0.04003399964 | P9: 0.01524655318 | Q9: 0.0311695563 | R9: 0.02320459981 | S9: 0.0326165025 | T9: 0.05645419301 | U9: 0.04475085959 | V9: 0.03254305932 | W9: 0.05592628174 | X9: 0.0445714803 | Y9: 0.02115374555 | Z9: 0.02734799345 | AA9: 0.02424883217
A10: Mass & Energy | B10: C34 | C10: Power Efficiency (42%) | D10: =F10*0.8 -> 0.336 | E10: =F10*1.2 -> 0.504 | F10: 0.42 | G10: 0.00957977114 | H10: 0.03882523143 | I10: 0.02424883217 | J10: 0.02582329781 | K10: 0.05469122189 | L10: 0.04035283373 | M10: 0.02550188973 | N10: 0.05437247997 | O10: 0.04003399964 | P10: 0.008548974494 | Q10: 0.03778064344 | R10: 0.0232045998 | S10: 0.0303016916 | T10: 0.0589992585 | U10: 0.04475085959 | V10: 0.03011792695 | W10: 0.05882558375 | X10: 0.0445714803 | Y10: 0.00957977114 | Z10: 0.03882523143 | AA10: 0.02424883217
A11: DCFROR | B11: C33 | C11: Operating Capacity (85%) | D11: =F11*0.8 -> 0.68 | E11: =F11*1.2 -> 1.02 | F11: 0.85 | G11: 0.008889815696 | H11: 0.03947609726 | I11: 0.02424883217 | J11: 0.02170748047 | K11: 0.05863588374 | L11: 0.04035283373 | M11: 0.02146344299 | N11: 0.05824545827 | O11: 0.04003399965 | P11: 0.007709569432 | Q11: 0.03857878756 | R11: 0.02320459981 | S11: 0.02482178771 | T11: 0.06422016266 | U11: 0.04475085959 | V11: 0.02470159101 | W11: 0.06398766522 | X11: 0.0445714803 | Y11: 0.008889815696 | Z11: 0.03947609726 | AA11: 0.02424883217

Sheet LCA
A1: LCA Table | J1: SimaPro:
A2: Scenario | J2: Inputs | K2: kg Co2 eq/ kg input
A3: Inputs | B3: kg of inputs | C3: kg inputs/kWh | D3: EF (kg Co2eq/kg input) | E3: Total (kg CO2eq/kWh) | J3: Manure | K3: -0.0741
A4: Corn/Rye/Wheat | B4: =SUM(Start!B5:B7)*1000 -> 8526 | C4: =B4/$B$14 -> 0.4259895395 | D4: 0.0377 | E4: =C4*D4 -> 0.01605980564 | J4: Corn Stover | K4: 0.0377
A5: Glycerin | B5: ='Mass & Energy'!N9*1000 -> 3310 | C5: =B5/$B$14 -> 0.1653794717 | D5: 2.49 | E5: =C5*D5 -> 0.4117948846 | J5: Rye | K5: 0.00685
A6: Manure | B6: ='Mass & Energy'!L7*1000 -> 3969 | C6: =B6/$B$14 -> 0.1983054753 | D6: -0.0741 | E6: -0.01469443572 | J6: Wheat | K6: 0.0401
J7: Glycerin | K7: 2.49
A8: Avoided Emissions | J8: Avoided Emissions
A9: Digestate | B9: ='Mass & Energy'!Q18*1000 -> 2637.885087 | C9: =B9/$B$14 -> 0.1317982 | D9: -0.00747 | E9: -0.0009845325543 | J9: Digested matter | K9: -0.00747
A10: Heat | B10: ='Mass & Energy'!K19*1000 -> 344.2071682 | C10: =B10/$B$14 -> 0.01719782466 | D10: =K10 -> -0.234 | E10: -0.004024290971 | J10: Steam | K10: -0.234
A11: Total GHG Emissions | E11: =SUM(E4:E10) -> 0.408151431
A12: Products | J12: BO Scenario
A13: Electricity | B13: =Start!B10 -> 833.9406652 | C13: kW | J13: Variable | K13: kg CO2 eq/kWh
B14: ='Mass & Energy'!C4/'Mass & Energy'!C3*24 -> 20014.57597 | C14: kWh/day | J14: Corn Stover | K14: 0.0141
J15: Digested Material | K15: -0.00164
J16: Steam | K16: -0.00401
J17: Cow Manure | K17: -0.0327
J18: Total Emissions | K18: =SUM(K14:K17) -> -0.02425
J20: BG Scenario
J21: Variable | K21: kg CO2 eq/kWh
J22: Corn Stover | K22: 0.0141
J23: Digested Material | K23: -0.000432
J24: Steam | K24: -0.00401
J25: Cow Manure | K25: -0.0129
J26: Glycerin | K26: 0.361
J27: Total | K27: =SUM(K22:K26) -> 0.357758
A31: Sensitivity analysis
C32: Feedstock | F32: Corn/Glycerin | I32: Rye/Glycerin | L32: Wheat/Glycerin | O32: Corn | R32: Rye | U32: Wheat
D33: Lower | E33: Higher | F33: Base Value | G33: Lower | H33: Higher | I33: Base Value | J33: Lower | K33: Higher | L33: Base Value | M33: Lower | N33: Higher | O33: Base Value | P33: Lower | Q33: Higher | R33: Base Value | S33: Lower | T33: Higher | U33: Base Value
A34: LCA | B34: D9 | C34: Organic Matter Emission Factor (-0.00747 kg CO2eq/kg) | D34: =F34*0.8 -> -0.005976 | E34: =F34*1.2 -> -0.008964 | F34: -0.00747 | G34: =I34*0.8 -> -0.005976 | H34: =I34*1.2 -> -0.008964 | I34: -0.00747 | J34: =L34*0.8 -> -0.005976 | K34: =L34*1.2 -> -0.008964 | L34: -0.00747 | M34: =O34*0.8 -> -0.005976 | N34: =O34*1.2 -> -0.008964 | O34: -0.00747 | P34: =R34*0.8 -> -0.005976 | Q34: =R34*1.2 -> -0.008964 | R34: -0.00747 | S34: =U34*0.8 -> -0.005976 | T34: =U34*1.2 -> -0.008964 | U34: -0.00747
A35: LCA | B35: D4 | C35: Biomass Emission Factor (kg Co2eq/kg) | D35: =F35*0.8 -> 0.03016 | E35: =F35*1.2 -> 0.04524 | F35: 0.0377 | G35: =I35*0.8 -> 0.00548 | H35: =I35*1.2 -> 0.00822 | I35: 0.00685 | J35: =L35*0.8 -> 0.03208 | K35: =L35*1.2 -> 0.04812 | L35: 0.0401 | M35: =O35*0.8 -> 0.03016 | N35: =O35*1.2 -> 0.04524 | O35: 0.0377 | P35: =R35*0.8 -> 0.00548 | Q35: =R35*1.2 -> 0.00822 | R35: 0.00685 | S35: =U35*0.8 -> 0.03208 | T35: =U35*1.2 -> 0.04812 | U35: 0.0401
A36: LCA | B36: D6 | C36: Manure Emission Factor (-0.0741 kg CO2eq/kg) | D36: =F36*0.8 -> -0.05928 | E36: =F36*1.2 -> -0.08892 | F36: -0.0741 | G36: =I36*0.8 -> -0.05928 | H36: =I36*1.2 -> -0.08892 | I36: -0.0741 | J36: =L36*0.8 -> -0.05928 | K36: =L36*1.2 -> -0.08892 | L36: -0.0741 | M36: =O36*0.8 -> -0.05928 | N36: =O36*1.2 -> -0.08892 | O36: -0.0741 | P36: =R36*0.8 -> -0.05928 | Q36: =R36*1.2 -> -0.08892 | R36: -0.0741 | S36: =U36*0.8 -> -0.05928 | T36: =U36*1.2 -> -0.08892 | U36: -0.0741
A37: Mass & Energy | B37: C32 | C37: Waste per Cattle (0.035 ton/day) | D37: =F37*0.8 -> 0.028 | E37: =F37*1.2 -> 0.042 | F37: 0.035 | G37: =I37*0.8 -> 0.028 | H37: =I37*1.2 -> 0.042 | I37: 0.035 | J37: =L37*0.8 -> 0.028 | K37: =L37*1.2 -> 0.042 | L37: 0.035 | M37: =O37*0.8 -> 0.028 | N37: =O37*1.2 -> 0.042 | O37: 0.035 | P37: =R37*0.8 -> 0.028 | Q37: =R37*1.2 -> 0.042 | R37: 0.035 | S37: =U37*0.8 -> 0.028 | T37: =U37*1.2 -> 0.042 | U37: 0.035
A38: LCA | B38: D5 | C38: Glycerin Emission Factor (2.49 kg CO2eq/kg) | D38: 1.992 | E38: 2.988 | F38: 2.49 | G38: 1.992 | H38: 2.988 | I38: 2.49 | J38: 1.992 | K38: 2.988 | L38: 2.49 | M38: 1.992 | N38: 2.988 | O38: 2.49 | P38: 1.992 | Q38: 2.988 | R38: 2.49 | S38: 1.992 | T38: 2.988 | U38: 2.49
A39: Mass & Energy | B39: C34 | C39: Power Efficiency (42%) | D39: =F39*0.8 -> 0.336 | E39: =F39*1.2 -> 0.504 | F39: 0.42 | G39: =I39*0.8 -> 0.336 | H39: =I39*1.2 -> 0.504 | I39: 0.42 | J39: =L39*0.8 -> 0.336 | K39: =L39*1.2 -> 0.504 | L39: 0.42 | M39: =O39*0.8 -> 0.336 | N39: =O39*1.2 -> 0.504 | O39: 0.42 | P39: =R39*0.8 -> 0.336 | Q39: =R39*1.2 -> 0.504 | R39: 0.42 | S39: =U39*0.8 -> 0.336 | T39: =U39*1.2 -> 0.504 | U39: 0.42
C41: Results | D41: Lower | E41: Higher | F41: Base Value | G41: Lower | H41: Higher | I41: Base Value | J41: Lower | K41: Higher | L41: Base Value | M41: Lower | N41: Higher | O41: Base Value | P41: Lower | Q41: Higher | R41: Base Value | S41: Lower | T41: Higher | U41: Base Value
C42: Organic Matter Emission Factor (-0.00747 kg CO2eq/kg) | D42: 0.3583366652 | E42: 0.3581636778 | F42: 0.3582501715 | G42: 0.5173409289 | H42: 0.5171233463 | I42: 0.5172321376 | J42: 0.5140818978 | K42: 0.5138683438 | L42: 0.5139751208 | M42: -0.02310402658 | N42: -0.02336844932 | O42: -0.02323623795 | P42: -0.05079989725 | Q42: -0.05115366334 | R42: -0.05097678029 | S42: -0.03689858337 | T42: -0.03724425118 | U42: -0.03707141727
C43: Biomass Emission Factor (kg Co2eq/kg) | D43: 0.3554304632 | E43: 0.3610698797 | F43: 0.3582501715 | G43: 0.5167197901 | H43: 0.5177444852 | I43: 0.5172321376 | J43: 0.5109752237 | K43: 0.5169750179 | L43: 0.5139751208 | M43: -0.026055919 | N43: -0.0204165569 | O43: -0.02323623795 | P43: -0.05148913772 | Q43: -0.05046442287 | R43: -0.05097678029 | S43: -0.040070474 | T43: -0.03407236054 | U43: -0.03707141727
C44: Manure Emission Factor (-0.0741 kg CO2eq/kg) | D44: 0.3608301542 | E44: 0.3556701887 | F44: 0.3582501715 | G44: 0.5210790053 | H44: 0.51338527 | I44: 0.5172321376 | J44: 0.5177075222 | K44: 0.5102427195 | L44: 0.5139751208 | M44: -0.01670580491 | N44: -0.02976667099 | O44: -0.02323623795 | P44: -0.04124611966 | Q44: -0.06070744093 | R44: -0.05097678029 | S44: -0.02763108094 | T44: -0.04651175361 | U44: -0.03707141727
C45: Waste per Cattle (0.035 ton/day) | D45: 0.3728945581 | E45: 0.3445113057 | F45: 0.3582501715 | G45: 0.5473670974 | H45: 0.4898339874 | I45: 0.5172321376 | J45: 0.5430124074 | K45: 0.4874999473 | L45: 0.5139751208 | M45: -0.01771127168 | N45: -0.02793555718 | O45: -0.02323623795 | P45: -0.04616847327 | Q45: -0.05475223238 | R45: -0.05097678029 | S45: -0.03058772825 | T45: -0.04219957865 | U45: -0.03707141727
C46: Glycerin Emission Factor (2.49 kg CO2eq/kg) | D46: 0.2859490828 | E46: 0.4305512602 | F46: 0.3582501715 | G46: 0.409542226 | H46: 0.6249220493 | I46: 0.5172321376 | J46: 0.4095406427 | K46: 0.618409599 | L46: 0.5139751208 | M46: -0.02323623795 | N46: -0.02323623795 | O46: -0.02323623795 | P46: -0.05097678029 | Q46: -0.05097678029 | R46: -0.05097678029 | S46: -0.03707141727 | T46: -0.03707141727 | U46: -0.03707141727
C47: Power Efficiency (42%) | D47: 0.4478127144 | E47: 0.2985418096 | F47: 0.3582501715 | G47: 0.646540172 | H47: 0.4310267814 | I47: 0.5172321376 | J47: 0.6424689011 | K47: 0.4283126007 | L47: 0.5139751208 | M47: -0.02904529744 | N47: -0.01936353162 | O47: -0.02323623795 | P47: -0.06372097537 | Q47: -0.04248065024 | R47: -0.05097678029 | S47: -0.04633927159 | T47: -0.03089284773 | U47: -0.03707141727

Sheet Uncertainty
A1: Biomass Price ($20/ton) | B1: Manure Price ($5/ton) | C1: Solids Digestate Price (-$35.25/ton) | D1: Liquid Effluent Price (-$2.64/ton) | E1: Capital Cost ($3.12 MM) | F1: Waste per Cattle (0.035 ton/day) | G1: Power Efficiency (42%) | H1: Operating Capacity (85%) | I1: Corn Husk Methane Yield | J1: Rye Methane Yield | K1: Wheat Methane Yield | L1: Corn Husk | M1: Rye | N1: Wheat | R1: Corn Husk | S1: Rye | T1: Wheat | V1: Feedstock Test - Wheat | X1: Count for Neg | Y1: Total Number of cells | Z1: Probability of Neg | AB1: Count for Neg | AC1: Total Number of cells | AD1: Probability of Neg
A2: 20.36187504 | B2: 5.662098965 | C2: -38.27845922 | D2: -2.652932448 | E2: 3053803.336 | F2: 0.0315056796 | G2: 0.4619401301 | H2: 0.9698122309 | I2: 404.058 | J2: 406.8860873 | K2: 404.7663271 | L2: -951627.66 | M2: -546824.48 | N2: -562932.17 | R2: 59993.72 | S2: -229956.06 | T2: -110679.17 | V2: -254279.48 | W2: =IF(V2<0,"Neg","Pos") -> Neg | X2: =COUNTIF(W2:W10000,"Neg") -> 258 | Y2: =COUNT(V2:V10000) -> 9999 | Z2: =X2/Y2 -> 0.02580258026 | AB2: 4213 | AC2: 9999 | AD2: 0.4213421342 | AE2: Corn
A3: 18.95775664 | B3: 5.284350105 | C3: -35.41941832 | D3: -2.172483493 | E3: 3309176.835 | F3: 0.03741819345 | G3: 0.4030263959 | H3: 1.000210678 | I3: 350.3002684 | J3: 441.0836627 | K3: 397.3440792 | L3: -1423933.5 | M3: -536240 | N3: -799903.43 | R3: 2104458.6 | S3: 1566138.81 | T3: 1697982.02 | V3: 1591746.78 | W3: =IF(V3<0,"Neg","Pos") -> Pos | AB3: 493 | AC3: 9999 | AD3: 0.04930493049 | AE3: Rye
A4: 17.47014074 | B4: 5.710046492 | C4: -35.69103657 | D4: -2.9269131 | E4: 3217643.08 | F4: 0.0337336309 | G4: 0.4137248416 | H4: 0.7535294551 | I4: 430.875549 | J4: 323.7072615 | K4: 409.6137573 | L4: -2559397.99 | M4: -2752931.7 | N4: -2328611.28 | R4: 1943193.97 | S4: 1570747.87 | T4: 1699213.67 | V4: 2299609.8 | W4: Pos | AB4: 258 | AC4: 9999 | AD4: 0.02580258026 | AE4: Wheat
A5: 16.20917992 | B5: 4.763514563 | C5: -37.80071067 | D5: -2.777382197 | E5: 3473083.79 | F5: 0.03785422931 | G5: 0.4259092153 | H5: 0.840078471 | I5: 348.5831322 | J5: 397.8788643 | K5: 406.604036 | L5: -1971145.6 | M5: -1326173.46 | N5: -1281161.84 | R5: 791866.59 | S5: 558515.88 | T5: 675906.52 | V5: 1734462.22 | W5: Pos
A6: 19.83948101 | B6: 5.125749159 | C6: -40.13805188 | D6: -2.911896542 | E6: 3006663.077 | F6: 0.03296881406 | G6: 0.3942531411 | H6: 0.8161299312 | I6: 227.7670443 | J6: 351.5671984 | K6: 399.1196882 | L6: -3229872.97 | M6: -2102725.18 | N6: -1863437.21 | R6: 1338706.21 | S6: 1003868.21 | T6: 1129606.83 | V6: 2461878.24 | W6: Pos | AD6: =AVERAGE(AD3:AD4) -> 0.03755375538
A7: 19.66194308 | B7: 4.613275641 | C7: -32.87350141 | D7: -2.80596497 | E7: 2557167.576 | F7: 0.03319155994 | G7: 0.3719065095 | H7: 0.8312887435 | I7: 259.0154213 | J7: 470.6027247 | K7: 405.8816737 | L7: -2840064.82 | M7: -1373959.28 | N7: -1684745.9 | R7: 1738438.95 | S7: 1227383.75 | T7: 1350903.22 | V7: 1604736.4 | W7: Pos
A8: 17.44277262 | B8: 4.601397068 | C8: -30.8532965 | D8: -2.757242201 | E8: 3040093.574 | F8: 0.03745160881 | G8: 0.3857624761 | H8: 0.9183151898 | I8: 307.2945882 | J8: 380.2153617 | K8: 399.0545794 | L8: -1973207.54 | M8: -1145710.25 | N8: -1046355.86 | R8: 2222972.79 | S8: 1848295.91 | T8: 1977367.84 | V8: 2523881.74 | W8: Pos
A9: 20.48004428 | B9: 5.339863983 | C9: -36.91024701 | D9: -2.717541932 | E9: 3058900.609 | F9: 0.03348746554 | G9: 0.3531938778 | H9: 0.8889251945 | I9: 407.2017648 | J9: 443.6164896 | K9: 399.7623216 | L9: -2306916.55 | M9: -1743807.85 | N9: -1967443.98 | R9: 1018736.56 | S9: 498021.85 | T9: 614384.48 | V9: 2340894.84 | W9: Pos
A10: 19.26393456 | B10: 5.562616584 | C10: -37.65232829 | D10: -2.27055786 | E10: 3288823.57 | F10: 0.02970340359 | G10: 0.419758148 | H10: 0.8478446319 | I10: 348.5627734 | J10: 457.9540809 | K10: 402.9187138 | L10: -2964769.75 | M10: -2038676.12 | N10: -2342298.72 | R10: -165040.39 | S10: -484238.46 | T10: -374124.97 | V10: 1199053.24 | W10: Pos
A11: 17.74146851 | B11: 5.721482008 | C11: -36.88706762 | D11: -2.638702585 | E11: 3226971.158 | F11: 0.04065603822 | G11: 0.455631281 | H11: 1.001933894 | I11: 244.3192694 | J11: 341.1812529 | K11: 410.3953384 | L11: -935231.36 | M11: 169156.45 | N11: 620916.66 | R11: 1539004.9 | S11: 1015955.8 | T11: 1144848.6 | V11: 2057519.66 | W11: Pos
A12: 17.96554892 | B12: 4.865469421 | C12: -35.91990567 | D12: -2.733572566 | E12: 3012998.256 | F12: 0.03591717548 | G12: 0.4117153556 | H12: 0.7570909173 | I12: 427.4030554 | J12: 446.9916664 | K12: 407.5468527 | L12: -2133460.5 | M12: -1736040.04 | N12: -1925664.12 | R12: 3036610.88 | S12: 2361444.33 | T12: 2519919.07 | V12: 2941884.76 | W12: Pos
A13: 16.96062425 | B13: 4.885349164 | C13: -33.03221281 | D13: -3.096609213 | E13: 2900802.466 | F13: 0.03172311823 | G13: 0.4488660471 | H13: 0.9271772321 | I13: 262.1020926 | J13: 437.4564821 | K13: 414.2444297 | L13: -2066786.24 | M13: -454706.07 | N13: -597644.55 | R13: 852016.6 | S13: 444893.8 | T13: 570895.48 | V13: 203432.66 | W13: Pos
A14: 22.43120361 | B14: 5.2289155 | C14: -30.58370109 | D14: -2.948589876 | E14: 2917224.673 | F14: 0.03466951141 | G14: 0.4765713231 | H14: 0.6894035414 | I14: 358.0135658 | J14: 358.4499569 | K14: 408.3152517 | L14: -2633386.03 | M14: -2290097.57 | N14: -2048518.86 | R14: 1907582.52 | S14: 1323269.43 | T14: 1464947.65 | V14: 3508357.28 | W14: Pos
A15: 18.90469974 | B15: 5.379404156 | C15: -36.38017327 | D15: -2.395397921 | E15: 3208777.856 | F15: 0.0317756361 | G15: 0.4335312901 | H15: 0.7833864804 | I15: 221.094118 | J15: 387.9093043 | K15: 405.6083794 | L15: -3709620.76 | M15: -2403288.85 | N15: -2312556.76 | R15: 807300.13 | S15: 371808.14 | T15: 492611.83 | V15: 982734.35 | W15: Pos
A16: 21.02121133 | B16: 4.737682768 | C16: -37.96137722 | D16: -2.771715715 | E16: 3260709.493 | F16: 0.03039602221 | G16: 0.4342962199 | H16: 0.8237691207 | I16: 335.8669545 | J16: 412.3866158 | K16: 386.6899666 | L16: -2793868.59 | M16: -1959018.8 | N16: -2102006.97 | R16: 1331165.37 | S16: 980162.09 | T16: 1103679.36 | V16: 2659312.43 | W16: Pos
A17: 21.38851456 | B17: 5.495252739 | C17: -30.24000619 | D17: -2.892420598 | E17: 3442611.094 | F17: 0.03882329739 | G17: 0.4146990803 | H17: 0.7323602583 | I17: 293.5806564 | J17: 343.1124561 | K17: 412.9094676 | L17: -3313188.43 | M17: -2697588.85 | N17: -2366180.44 | R17: 1353154.28 | S17: 844708.84 | T17: 964308.75 | V17: 1940293.7 | W17: Pos
A18: 17.60646036 | B18: 5.249603143 | C18: -37.69827754 | D18: -2.550251069 | E18: 2971902.073 | F18: 0.03517042588 | G18: 0.4423968718 | H18: 0.7648261045 | I18: 405.8612675 | J18: 395.4720139 | K18: 412.1128274 | L18: -1998617 | M18: -1756830.94 | N18: -1674544.2 | R18: 2474421.64 | S18: 1822378.78 | T18: 1962695.93 | V18: 1248728.39 | W18: Pos
A19: 20.92264734 | B19: 5.365839526 | C19: -37.79302058 | D19: -2.756883137 | E19: 2989596.948 | F19: 0.03237432555 | G19: 0.3671714225 | H19: 0.8481793349 | I19: 238.6835646 | J19: 394.2723153 | K19: 391.2703647 | L19: -3411001.99 | M19: -2129016.89 | N19: -2146402.92 | R19: -1084238.96 | S19: -1355083.99 | T19: -1251637.55 | V19: 4629923.59 | W19: Pos
A20: 18.71903 | B20: 4.914164176 | C20: -37.39722827 | D20: -2.858196774 | E20: 3647176.187 | F20: 0.03534904176 | G20: 0.4031335545 | H20: 0.883225259 | I20: 350.9028949 | J20: 385.2999225 | K20: 414.6085103 | L20: -2370409.18 | M20: -1755402.42 | N20: -1595640.68 | R20: -391248.72 | S20: -858483.46 | T20: -747708.49 | V20: 2014912.29 | W20: Pos
A21: 20.46927325 | B21: 5.222998676 | C21: -28.8026963 | D21: -2.692959609 | E21: 2854012.986 | F21: 0.03591503484 | G21: 0.4184429525 | H21: 0.8312833198 | I21: 322.6661254 | J21: 453.9373888 | K21: 402.3184229 | L21: -2287967.87 | M21: -1224785.13 | N21: -1492248.24 | R21: 3239578.3 | S21: 2618009.45 | T21: 2762835.21 | V21: 1136317.55 | W21: Pos
A22: 19.37355674 | B22: 5.368520862 | C22: -35.51361918 | D22: -2.655488087 | E22: 3255576.065 | F22: 0.03653401857 | G22: 0.4466648916 | H22: 0.9761140216 | I22: 365.5244047 | J22: 408.6379569 | K22: 407.8107694 | L22: -902324.46 | M22: -231509.59 | N22: -239069.23 | R22: 249029.37 | S22: -300864.29 | T22: -184595.11 | V22: 632233.36 | W22: Pos
A23: 18.7512602 | B23: 4.417123612 | C23: -34.44723855 | D23: -2.359459977 | E23: 3015338.451 | F23: 0.0349072994 | G23: 0.4319723672 | H23: 0.8717293391 | I23: 370.6329888 | J23: 431.1156802 | K23: 419.8884895 | L23: -1692820.05 | M23: -1035967.72 | N23: -1099983.16 | R23: 1363669.22 | S23: 1039918.46 | T23: 1162712.99 | V23: 4630653.6 | W23: Pos
A24: 20.31882958 | B24: 5.649895441 | C24: -32.44085543 | D24: -2.691330812 | E24: 3399442.426 | F24: 0.0324380431 | G24: 0.4369679518 | H24: 0.9183510798 | I24: 295.878404 | J24: 344.4335111 | K24: 416.2728632 | L24: -2606058.25 | M24: -1853881.18 | N24: -1423689.11 | R24: 2484075.63 | S24: 1812264.55 | T24: 1951418.58 | V24: 3153596.78 | W24: Pos
A25: 19.6921937 | B25: 5.371616365 | C25: -40.85192101 | D25: -2.474142684 | E25: 3158777.72 | F25: 0.03210848396 | G25: 0.4745518442 | H25: 0.7887320951 | I25: 393.2480465 | J25: 344.6465252 | K25: 393.1465392 | L25: -2087710.59 | M25: -2051051.42 | N25: -1783213.79 | R25: 1547469.03 | S25: 967849.21 | T25: 1092627.42 | V25: 3400636.71 | W25: Pos
A26: 21.98903728 | B26: 4.579353603 | C26: -32.58987977 | D26: -2.536535008 | E26: 3210252.358 | F26: 0.0329256244 | G26: 0.4524234233 | H26: 0.8172500685 | I26: 307.5069568 | J26: 348.8510555 | K26: 406.6303432 | L26: -2701587.34 | M26: -2093153.79 | N26: -1776952.89 | R26: 2251286.23 | S26: 1439097.14 | T26: 1585580.31 | V26: 427150.31 | W26: Pos
A27: 22.6086784 | B27: 5.127077891 | C27: -38.09954366 | D27: -2.613711249 | E27: 3135149.714 | F27: 0.03440023113 | G27: 0.3969165474 | H27: 0.8133131228 | I27: 355.9347379 | J27: 369.2494614 | K27: 416.641661 | L27: -2609316.36 | M27: -2180158.94 | N27: -1942765.69 | R27: 298132.71 | S27: -36696.9 | T27: 75431.29 | V27: 1539107.65 | W27: Pos
A28: 19.72914718 | B28: 4.281975623 | C28: -33.21780508 | D28: -2.610458939 | E28: 2746475.421 | F28: 0.03741931916 | G28: 0.3952817533 | H28: 0.9377723117 | I28: 329.7052277 | J28: 414.0430826 | K28: 409.4629942 | L28: -1329385.95 | M28: -467252.72 | N28: -494615.77 | R28: 1587872.9 | S28: 1083386.67 | T28: 1207705.83 | V28: 1158033.78 | W28: Pos
A29: 18.21688276 | B29: 4.858089529 | C29: -40.26129765 | D29: -3.000568806 | E29: 2922781.667 | F29: 0.03585523935 | G29: 0.3607897463 | H29: 0.8570412186 | I29: 332.4318253 | J29: 414.043183 | K29: 397.7003142 | L29: -2209835.04 | M29: -1367151.92 | N29: -1450076.25 | R29: 1165993.76 | S29: 497122.54 | T29: 626728.27 | V29: 1965213.42 | W29: Pos
A30: 19.95743396 | B30: 5.740153147 | C30: -40.94775002 | D30: -2.425838448 | E30: 2967436.17 | F30: 0.03638793769 | G30: 0.4653820036 | H30: 0.7444853646 | I30: 346.2780975 | J30: 420.4293524 | K30: 398.6614694 | L30: -2183286.89 | M30: -1507618.63 | N30: -1619956.45 | R30: 1826769.39 | S30: 1262788.61 | T30: 1396378.34 | V30: 2242336.85 | W30: Pos
A31: 17.43023842 | B31: 5.47900247 | C31: -39.49916519 | D31: -2.339703209 | E31: 3313589.335 | F31: 0.03490408578 | G31: 0.3657594976 | H31: 0.8699442669 | I31: 291.6809682 | J31: 432.9504121 | K31: 408.0532721 | L31: -3040101.29 | M31: -1950001.48 | N31: -2078251.94 | R31: 1661361.64 | S31: 949431.05 | T31: 1082891.13 | V31: 2037364.47 | W31: Pos
A32: 21.52411495 | B32: 4.792193145 | C32: -32.66295391 | D32: -2.142803347 | E32: 3211379.992 | F32: 0.03496824577 | G32: 0.4229302266 | H32: 0.8527883182 | I32: 215.2908765 | J32: 433.9388625 | K32: 410.4119754 | L32: -3191428.22 | M32: -1627046.36 | N32: -1755269.14 | R32: -181711.72 | S32: -743477.32 | T32: -625491.78 | V32: 2682959.54 | W32: Pos
A33: 19.63282989 | B33: 4.513459009 | C33: -39.95652172 | D33: -3.055483679 | E33: 3014666.317 | F33: 0.03797158924 | G33: 0.4720775825 | H33: 0.875566967 | I33: 341.6721623 | J33: 438.9461632 | K33: 398.4548443 | L33: -762315.77 | M33: 238007.07 | N33: -5214.49 | R33: 1520030.45 | S33: 1119561.52 | T33: 1244302.38 | V33: 4410080.27 | W33: Pos
A34: 20.97237726 | B34: 4.610955297 | C34: -38.55144901 | D34: -2.569259302 | E34: 3239021.816 | F34: 0.03562436978 | G34: 0.4202404156 | H34: 0.922665115 | I34: 387.6999312 | J34: 408.610972 | K34: 413.6019384 | L34: -1351655.17 | M34: -869825.41 | N34: -843325.25 | R34: 2373646.63 | S34: 2040288.53 | T34: 2172834.74 | V34: 871194.89 | W34: Pos
A35: 19.61386489 | B35: 5.787657058 | C35: -34.19578748 | D35: -2.424561084 | E35: 3223790.215 | F35: 0.03578547696 | G35: 0.4434786209 | H35: 0.9866329568 | I35: 309.4411619 | J35: 353.3896968 | K35: 406.4993733 | L35: -1504761.04 | M35: -819683.42 | N35: -483865.69 | R35: 2593892.37 | S35: 2005935.35 | T35: 2138945.1 | V35: 1107230.67 | W35: Pos
A36: 20.77610612 | B36: 4.963679209 | C36: -31.71799997 | D36: -2.775929126 | E36: 3574934.31 | F36: 0.03493421085 | G36: 0.4294804826 | H36: 0.9248629349 | I36: 374.9381442 | J36: 365.395192 | K36: 409.2172912 | L36: -1878821.23 | M36: -1529519.57 | N36: -1270790.37 | R36: 2756068.81 | S36: 2100252.83 | T36: 2244001.42 | V36: 2203590.19 | W36: Pos
A37: 21.80349835 | B37: 5.052702688 | C37: -37.49633307 | D37: -2.518720296 | E37: 2942341.417 | F37: 0.03215528717 | G37: 0.4747681706 | H37: 0.7700154044 | I37: 327.2401636 | J37: 393.2661192 | K37: 399.3603723 | L37: -2470579.34 | M37: -1772480.18 | N37: -1741661.9 | R37: 837038.96 | S37: 714063.33 | T37: 823134.65 | V37: 3941661.29 | W37: Pos
A38: 18.78743955 | B38: 4.448236405 | C38: -32.17623562 | D38: -2.537113563 | E38: 3395257.993 | F38: 0.03809712986 | G38: 0.4407317172 | H38: 0.737644084 | I38: 327.9877553 | J38: 465.563837 | K38: 404.1405841 | L38: -2798885.9 | M38: -1801147.02 | N38: -2101621.12 | R38: 417610.54 | S38: 188423.56 | T38: 298635.63 | V38: 318792.99 | W38: Pos
A39: 22.73944731 | B39: 4.314965231 | C39: -37.93914334 | D39: -2.682603583 | E39: 3167626.973 | F39: 0.03813035384 | G39: 0.4141742664 | H39: 0.853763869 | I39: 353.0702562 | J39: 478.0019362 | K39: 412.667307 | L39: -1708179.48 | M39: -680602.05 | N39: -1028024.74 | R39: 1557070.54 | S39: 1173796.49 | T39: 1296734.36 | V39: 5107598.61 | W39: Pos
A40: 19.54860171 | B40: 5.581885743 | C40: -35.49978476 | D40: -2.529283378 | E40: 3196069.809 | F40: 0.03866207085 | G40: 0.4267588088 | H40: 0.8891347586 | I40: 284.6057691 | J40: 399.2054986 | K40: 404.5927348 | L40: -1982691.21 | M40: -941188.12 | N40: -913149.28 | R40: 1709648.17 | S40: 1209786.8 | T40: 1343656.08 | V40: 2064292.28 | W40: Pos
A41: 19.1293842 | B41: 5.091626744 | C41: -34.45399816 | D41: -2.569544711 | E41: 2882491.008 | F41: 0.03636294193 | G41: 0.391301452 | H41: 0.8738191087 | I41: 385.1266743 | J41: 412.0999254 | K41: 414.4251554 | L41: -1746379.16 | M41: -1262125.09 | N41: -1252145.14 | R41: -125476.61 | S41: -332965.15 | T41: -226674.87 | V41: 1952304.9 | W41: Pos
A42: 17.59348464 | B42: 4.865945656 | C42: -38.13368711 | D42: -2.583862185 | E42: 2894854.305 | F42: 0.03298658175 | G42: 0.4413243828 | H42: 0.8068065459 | I42: 345.9765653 | J42: 399.7919758 | K42: 396.7268497 | L42: -2165290.31 | M42: -1528520.19 | N42: -1546759.4 | R42: 3024369.82 | S42: 2374118.82 | T42: 2523535.12 | V42: 2564240.64 | W42: Pos
A43: 20.44553828 | B43: 5.106222369 | C43: -37.89502934 | D43: -2.972780685 | E43: 2906945.422 | F43: 0.03376129354 | G43: 0.404329587 | H43: 0.8585451506 | I43: 296.6176415 | J43: 332.5626886 | K43: 399.7794161 | L43: -2360207.46 | M43: -1703114.5 | N43: -1346472.54 | R43: 1970855.59 | S43: 1686670.53 | T43: 1816731.84 | V43: 2501598.88 | W43: Pos
A44: 21.87511727 | B44: 5.666270236 | C44: -39.36658815 | D44: -2.421714929 | E44: 3197046.685 | F44: 0.03530232678 | G44: 0.37515323 | H44: 0.8427522095 | I44: 263.3413185 | J44: 341.2021051 | K44: 385.8489883 | L44: -3187561.2 | M44: -2399802.35 | N44: -2175327.82 | R44: -200820.55 | S44: -482015.79 | T44: -362309.04 | V44: 1332241.48 | W44: Pos
A45: 22.35237497 | B45: 5.200698233 | C45: -36.23274922 | D45: -2.696414743 | E45: 3459300.039 | F45: 0.03747693799 | G45: 0.4457679468 | H45: 0.7862093496 | I45: 353.9627594 | J45: 375.8139977 | K45: 401.5732965 | L45: -2356003.46 | M45: -1893267.26 | N45: -1759309.43 | R45: 1914909.02 | S45: 1553178.89 | T45: 1687582.02 | V45: 222685.77 | W45: Pos
A46: 20.27551165 | B46: 4.434194487 | C46: -33.21683421 | D46: -2.316351993 | E46: 2956386.553 | F46: 0.03493353259 | G46: 0.3810554214 | H46: 0.7933313795 | I46: 286.6943956 | J46: 407.1788365 | K46: 419.4385209 | L46: -3117605.74 | M46: -2204307.07 | N46: -2148152.72 | R46: 2025275.8 | S46: 1527498.3 | T46: 1660088.51 | V46: 278209.38 | W46: Pos
A47: 21.06734465 | B47: 5.562827816 | C47: -34.6291414 | D47: -2.686529508 | E47: 3226190.193 | F47: 0.03411465269 | G47: 0.4577015253 | H47: 0.9822571875 | I47: 297.087954 | J47: 359.605242 | K47: 418.8242605 | L47: -1588218.58 | M47: -718546.33 | N47: -335058.79 | R47: 2863418.93 | S47: 2231827.35 | T47: 2373416.29 | V47: 3286.65 | W47: Pos
A48: 19.58014989 | B48: 4.729420176 | C48: -31.13523117 | D48: -2.650657888 | E48: 3127679.469 | F48: 0.03666678633 | G48: 0.4414558632 | H48: 0.7935249389 | I48: 294.4286397 | J48: 390.8924102 | K48: 401.9972613 | L48: -2539309.9 | M48: -1656773.62 | N48: -1600972.3 | R48: 4081949.05 | S48: 3460932.61 | T48: 3610851.36 | V48: 2578250.53 | W48: Pos
A49: 16.6232887 | B49: 5.723592204 | C49: -33.45594751 | D49: -2.773183765 | E49: 3075065.017 | F49: 0.03101994865 | G49: 0.3919284323 | H49: 0.6862178494 | I49: 294.2549446 | J49: 430.5592401 | K49: 396.5434878 | L49: -4240236.03 | M49: -3074676.19 | N49: -3231779.33 | R49: 180977.44 | S49: 9796.6 | T49: 116230.89 | V49: 332558.31 | W49: Pos
A50: 19.85283201 | B50: 4.446299322 | C50: -31.89805169 | D50: -2.707150128 | E50: 2963515.652 | F50: 0.03248057374 | G50: 0.4112222396 | H50: 0.8290227688 | I50: 358.7448969 | J50: 394.7686157 | K50: 400.652031 | L50: -2436439.09 | M50: -1870111.47 | N50: -1841644.93 | R50: 2181362.73 | S50: 1628072.56 | T50: 1766296.04 | V50: 2727466.33 | W50: Pos
A51: 21.75436137 | B51: 4.641208995 | C51: -31.63444167 | D51: -2.99263722 | E51: 2689968.553 | F51: 0.03996643428 | G51: 0.4132375815 | H51: 0.858704339 | I51: 314.0304283 | J51: 342.481623 | K51: 404.3045175 | L51: -1412193.3 | M51: -843052.09 | N51: -521180.03 | R51: 402205.84 | S51: 29499.03 | T51: 135996.87 | V51: 2510385.29 | W51: Pos
A52: 19.63886641 | B52: 4.277996396 | C52: -35.82228772 | D52: -2.584719911 | E52: 3077454.227 | F52: 0.03392166262 | G52: 0.4522006917 | H52: 0.8860175103 | I52: 293.9501293 | J52: 310.5664113 | K52: 394.9096433 | L52: -1963101.08 | M52: -1458539.47 | N52: -964933.4 | R52: 232676.28 | S52: 63949.33 | T52: 180653.82 | V52: 2129959.94 | W52: Pos
A53: 22.81965201 | B53: 5.102900156 | C53: -37.34581079 | D53: -2.589907164 | E53: 3027059.621 | F53: 0.03260409587 | G53: 0.4455631552 | H53: 0.7974296533 | I53: 308.0951695 | J53: 424.7602561 | K53: 401.1603847 | L53: -2683127.76 | M53: -1678951.94 | N53: -1806359.26 | R53: 1826764.33 | S53: 1357337.04 | T53: 1491370.14 | V53: 2631042.46 | W53: Pos
A54: 18.49269545 | B54: 5.129938357 | C54: -33.44220006 | D54: -2.985744235 | E54: 3128767.473 | F54: 0.03874565538 | G54: 0.4500988729 | H54: 0.8678789634 | I54: 353.4148613 | J54: 466.3585239 | K54: 404.2290819 | L54: -1235336.78 | M54: -191219.29 | N54: -545287.7 | R54: 872430.78 | S54: 387488.35 | T54: 510107.45 | V54: 433041.27 | W54: Pos
A55: 22.21385417 | B55: 4.647450509 | C55: -34.4099271 | D55: -2.491019686 | E55: 3397167.343 | F55: 0.03546874991 | G55: 0.4697599969 | H55: 0.9870505164 | I55: 370.1717171 | J55: 377.8909447 | K55: 405.3816919 | L55: -829420.14 | M55: -402494.12 | N55: -222796.68 | R55: 1796367.23 | S55: 1182404.61 | T55: 1318647.86 | V55: 1154123.46 | W55: Pos
A56: 20.02603024 | B56: 5.111268708 | C56: -37.93882332 | D56: -2.768844033 | E56: 3356007.936 | F56: 0.03411484969 | G56: 0.4255409385 | H56: 0.7602908951 | I56: 343.896404 | J56: 364.8398137 | K56: 394.4391628 | L56: -2915156.43 | M56: -2459629.6 | N56: -2311652.48 | R56: 1955241.53 | S56: 1600747.89 | T56: 1731832.13 | V56: 968459.08 | W56: Pos
A57: 18.31441246 | B57: 4.596769213 | C57: -31.72513271 | D57: -2.676071342 | E57: 3102312.71 | F57: 0.03994561146 | G57: 0.4196412723 | H57: 0.7449835505 | I57: 317.8149044 | J57: 391.1719745 | K57: 397.6845442 | L57: -2519289.45 | M57: -1831239.6 | N57: -1802383.05 | R57: 477711.74 | S57: 307537.31 | T57: 421547.61 | V57: 1469814.41 | W57: Pos
A58: 18.83712223 | B58: 5.411988225 | C58: -35.47572859 | D58: -2.575493116 | E58: 3186397.322 | F58: 0.03352749137 | G58: 0.4644438268 | H58: 0.7795046908 | I58: 358.7078659 | J58: 369.4715134 | K58: 406.6834201 | L58: -2417432.13 | M58: -2025085.65 | N58: -1826697.52 | R58: 1473467.01 | S58: 1146873.99 | T58: 1279354.24 | V58: 3313679.22 | W58: Pos
A59: 18.5720343 | B59: 4.575596257 | C59: -32.34353308 | D59: -2.636344624 | E59: 3172623.415 | F59: 0.02978383866 | G59: 0.4095928161 | H59: 0.6889687781 | I59: 314.8116028 | J59: 448.6090877 | K59: 410.3226872 | L59: -4124259.72 | M59: -3016847.33 | N59: -3197801.58 | R59: 1806257.56 | S59: 1488789.25 | T59: 1613165.44 | V59: 1168551.81 | W59: Pos
A60: 16.29454194 | B60: 5.15445598 | C60: -36.86417957 | D60: -2.236192687 | E60: 3147167.931 | F60: 0.03523562399 | G60: 0.4032687964 | H60: 0.8320671992 | I60: 358.6058293 | J60: 475.9603549 | K60: 395.7447344 | L60: -2405403.96 | M60: -1498350.34 | N60: -1908730.63 | R60: 1768165.38 | S60: 1285740.27 | T60: 1423006.74 | V60: 2553326.44 | W60: Pos
A61: 18.09172318 | B61: 4.85835738 | C61: -31.342638 | D61: -2.435632683 | E61: 3258055.972 | F61: 0.03671994413 | G61: 0.4584599513 | H61: 0.8589282969 | I61: 339.9212074 | J61: 382.9242681 | K61: 411.9449025 | L61: -1833700.13 | M61: -1248352.91 | N61: -1085321.3 | R61: 887931.98 | S61: 711892.68 | T61: 823430 | V61: 2396115.63 | W61: Pos
A62: 20.55750578 | B62: 5.694660183 | C62: -30.56852966 | D62: -2.654558842 | E62: 2827481.711 | F62: 0.03632056075 | G62: 0.3665064226 | H62: 0.9260191992 | I62: 248.6680669 | J62: 451.0869465 | K62: 391.3108217 | L62: -2643409.58 | M62: -1101462.48 | N62: -1415226.86 | R62: 2986290.79 | S62: 2053039.43 | T62: 2212723.24 | V62: 1718894.66 | W62: Pos
A63: 18.81341586 | B63: 5.049827924 | C63: -34.61892921 | D63: -2.570040092 | E63: 3041164.115 | F63: 0.03970955599 | G63: 0.4623680211 | H63: 0.7941371924 | I63: 384.4140648 | J63: 357.4083048 | K63: 397.5574007 | L63: -1380185.3 | M63: -1224356.09 | N63: -1012673.39 | R63: 4200753.95 | S63: 3539247.1 | T63: 3702687.17 | V63: 980745.21 | W63: Pos
A64: 21.3390428 | B64: 4.581508961 | C64: -31.39730006 | D64: -2.945639957 | E64: 3046510.513 | F64: 0.03073348077 | G64: 0.3690464501 | H64: 0.8436783548 | I64: 358.0882798 | J64: 390.7960218 | K64: 407.3690529 | L64: -2967314.12 | M64: -2381131.96 | N64: -2299731.9 | R64: 2254709.59 | S64: 1849661.7 | T64: 1984268.07 | V64: 890716.84 | W64: Pos
A65: 18.93514968 | B65: 4.885021457 | C65: -37.05126368 | D65: -2.659863021 | E65: 3345560.971 | F65: 0.03778306026 | G65: 0.4408221272 | H65: 0.8750642667 | I65: 338.3984966 | J65: 424.6573928 | K65: 404.2180341 | L65: -1643978.37 | M65: -775224.74 | N65: -893264.5 | R65: 2884568.6 | S65: 2429478.59 | T65: 2572244.24 | V65: 154246.28 | W65: Pos
A66: 22.4904831 | B66: 5.321621995 | C66: -32.56000012 | D66: -2.491377074 | E66: 2970043.145 | F66: 0.03699915574 | G66: 0.3780883598 | H66: 0.9841289284 | I66: 299.1304695 | J66: 452.0344317 | K66: 391.9798321 | L66: -1913536.89 | M66: -623956.42 | N66: -963915.23 | R66: 1125900.29 | S66: 822004.12 | T66: 945302.45 | V66: 2695491.32 | W66: Pos
A67: 20.37650203 | B67: 4.637228369 | C67: -38.18299795 | D67: -2.588912047 | E67: 2791067.442 | F67: 0.03514961317 | G67: 0.386369011 | H67: 0.8413257361 | I67: 270.1592885 | J67: 347.2638184 | K67: 393.4300579 | L67: -2550774.86 | M67: -1748421.19 | N67: -1518852.65 | R67: 986866.89 | S67: 449220.56 | T67: 564831.72 | V67: 1277039.94 | W67: =IF(V67<0,"Neg","Pos") -> Pos
A68: 16.45046405 | B68: 5.232191908 | C68: -36.49748318 | D68: -2.580018741 | E68: 2683656.354 | F68: 0.03467164741 | G68: 0.4105430597 | H68: 0.8874166603 | I68: 327.2064956 | J68: 438.3657716 | K68: 395.0013854 | L68: -1750043.88 | M68: -763135.23 | N68: -999843 | R68: 1852552.87 | S68: 1190116.37 | T68: 1323355.13 | V68: 672794.8 | W68: Pos
A69: 19.48775012 | B69: 5.637513395 | C69: -37.26467587 | D69: -2.615889077 | E69: 3182064.78 | F69: 0.03675942805 | G69: 0.47850281 | H69: 0.8605253337 | I69: 302.8904294 | J69: 360.5359771 | K69: 404.5382512 | L69: -1699843.6 | M69: -971913.53 | N69: -713528.05 | R69: 2748947.73 | S69: 2285457.28 | T69: 2424173.69 | V69: 3360595.65 | W69: Pos
A70: 19.83907452 | B70: 5.113883336 | C70: -36.1422616 | D70: -2.870557814 | E70: 2750656.749 | F70: 0.04039748796 | G70: 0.453782605 | H70: 0.9291632073 | I70: 403.0619619 | J70: 367.2284385 | K70: 405.0587225 | L70: 119190.52 | M70: 271218.68 | N70: 496997.41 | R70: 1255019.2 | S70: 937228.02 | T70: 1054271.17 | V70: 2762943.47 | W70: Pos
A71: 21.76818014 | B71: 5.513305157 | C71: -36.90615732 | D71: -2.212007756 | E71: 3341380.317 | F71: 0.04046663594 | G71: 0.4722433852 | H71: 0.8149232637 | I71: 296.545336 | J71: 313.8327462 | K71: 407.6392201 | L71: -1979468.61 | M71: -1576561.18 | N71: -1056632.65 | R71: 1801029 | S71: 1029378.59 | T71: 1161565.84 | V71: 3085086.55 | W71: Pos
A72: 21.74520142 | B72: 4.900385907 | C72: -40.28900116 | D72: -2.73558843 | E72: 3171161.554 | F72: 0.02904963075 | G72: 0.3917035527 | H72: 0.9641983237 | I72: 275.4617554 | J72: 429.7442584 | K72: 413.3655227 | L72: -2829467.53 | M72: -1396841.77 | N72: -1495621.34 | R72: 917867.55 | S72: 618918.02 | T72: 738486.75 | V72: 1461715.59 | W72: Pos
A73: 18.9383191 | B73: 4.968942632 | C73: -31.80073298 | D73: -2.532877086 | E73: 3339008.814 | F73: 0.0344607224 | G73: 0.3855409277 | H73: 0.8558696357 | I73: 232.72621 | J73: 362.8688012 | K73: 407.8882713 | L73: -3492879.89 | M73: -2359361.1 | N73: -2127417.17 | R73: 2090204.69 | S73: 1651132.26 | T73: 1785987.47 | V73: 3893019.39 | W73: Pos
A74: 23.48967972 | B74: 4.639914447 | C74: -39.44774655 | D74: -2.596971115 | E74: 3080251.3 | F74: 0.03571649413 | G74: 0.4351552946 | H74: 0.7557261094 | I74: 249.3060402 | J74: 316.6273956 | K74: 401.5973795 | L74: -2972201.9 | M74: -2261090 | N74: -1836743.13 | R74: 2301023.11 | S74: 1804699.72 | T74: 1940777.44 | V74: 2551102.23 | W74: Pos
A75: 20.00412546 | B75: 5.495547027 | C75: -34.27415678 | D75: -2.920819059 | E75: 2933493.623 | F75: 0.03481900714 | G75: 0.4755870427 | H75: 0.9361794242 | I75: 275.6458402 | J75: 346.9728814 | K75: 399.6494174 | L75: -1430624.91 | M75: -490056.61 | N75: -156538.5 | R75: -25605.08 | S75: -394258.89 | T75: -282102.15 | V75: 668972.74 | W75: Pos
A76: 21.69048993 | B76: 5.123899398 | C76: -35.26544948 | D76: -2.285715359 | E76: 3121143.855 | F76: 0.03779839121 | G76: 0.4539377713 | H76: 0.8455361886 | I76: 350.3774845 | J76: 411.3061169 | K76: 396.6235143 | L76: -1675988.04 | M76: -1031360.76 | N76: -1114929.13 | R76: 2920336.46 | S76: 2287225.77 | T76: 2432117.44 | V76: 1446193.65 | W76: Pos
A77: 17.19617411 | B77: 5.406135923 | C77: -30.63418362 | D77: -2.809006415 | E77: 3352811.765 | F77: 0.03683653485 | G77: 0.410591381 | H77: 0.8648409924 | I77: 234.1501408 | J77: 428.6811041 | K77: 415.7437639 | L77: -2934325.18 | M77: -1415768.98 | N77: -1487162.92 | R77: 2261019.36 | S77: 1632698.35 | T77: 1770403.96 | V77: 2071748.9 | W77: Pos
A78: 21.86825606 | B78: 5.266901119 | C78: -39.24262348 | D78: -2.844936169 | E78: 3112775.273 | F78: 0.03630442582 | G78: 0.4234310155 | H78: 0.8801295114 | I78: 376.6037289 | J78: 390.2085818 | K78: 394.7583374 | L78: -1475737.38 | M78: -1011673.53 | N78: -988436.11 | R78: 1985707.45 | S78: 1599273.56 | T78: 1729913.68 | V78: 4037687.6 | W78: Pos
A79: 19.29384985 | B79: 5.132672851 | C79: -33.04856357 | D79: -2.506845441 | E79: 2845999.631 | F79: 0.03360602161 | G79: 0.4347432839 | H79: 0.77739706 | I79: 343.4020489 | J79: 398.1256089 | K79: 400.3387114 | L79: -2506295.52 | M79: -1894954.65 | N79: -1885625.15 | R79: 1583441.58 | S79: 1180792.46 | T79: 1302944.82 | V79: 2202245.92 | W79: Pos
A80: 23.00948905 | B80: 5.374720448 | C80: -32.35195948 | D80: -2.71944596 | E80: 3394091.123 | F80: 0.03978443982 | G80: 0.447778542 | H80: 0.85774804 | I80: 317.0271859 | J80: 452.493922 | K80: 415.1227386 | L80: -1876798.98 | M80: -726927.36 | N80: -938201.16 | R80: 3150786.46 | S80: 2595458.38 | T80: 2740129.81 | V80: 1385293.15 | W80: Pos
A81: 21.57956068 | B81: 5.085909733 | C81: -34.65148021 | D81: -2.344506718 | E81: 2764391.719 | F81: 0.03604109942 | G81: 0.4200337621 | H81: 0.8562903948 | I81: 416.4672385 | J81: 325.1797073 | K81: 405.2379731 | L81: -1413058.85 | M81: -1610470.68 | N81: -1185789.15 | R81: 1803790.46 | S81: 1138564.88 | T81: 1266687.44 | V81: 2792436.9 | W81: Pos
A82: 21.57254281 | B82: 4.607130083 | C82: -41.28438602 | D82: -2.716599417 | E82: 2786672.115 | F82: 0.03581704355 | G82: 0.4299030262 | H82: 0.8485350847 | I82: 431.9936546 | J82: 371.9081758 | K82: 405.6315614 | L82: -971102.54 | M82: -972013.45 | N82: -791538.56 | R82: 2093254.67 | S82: 1450820.65 | T82: 1582548.82 | V82: -94728.25 | W82: Neg
A83: 22.55035293 | B83: 4.414773499 | C83: -40.58599008 | D83: -2.541568379 | E83: 3208101.495 | F83: 0.0375362647 | G83: 0.3750136216 | H83: 0.837226693 | I83: 329.6297631 | J83: 309.1582816 | K83: 405.8759732 | L83: -2413903.39 | M83: -2152165.33 | N83: -1672636.24 | R83: 561695.07 | S83: 82010.51 | T83: 203175.49 | V83: 1907087.1 | W83: Pos
A84: 21.76164792 | B84: 4.826608497 | C84: -35.3461196 | D84: -2.537926889 | E84: 3611249.717 | F84: 0.0367722986 | G84: 0.4050631084 | H84: 0.768799943 | I84: 355.3169171 | J84: 303.9060634 | K84: 407.3843224 | L84: -3054187.05 | M84: -2976819.45 | N84: -2489994.16 | R84: 126529.52 | S84: -120180.13 | T84: -3646.57 | V84: 1804127.95 | W84: Pos
A85: 20.24001229 | B85: 4.693252949 | C85: -34.5166362 | D85: -2.505666453 | E85: 3567484.686 | F85: 0.03626611586 | G85: 0.4252506319 | H85: 0.9640722671 | I85: 259.0013134 | J85: 399.5556382 | K85: 395.3155718 | L85: -2246332.63 | M85: -932761.99 | N85: -960833 | R85: 2801553.75 | S85: 1954827.74 | T85: 2098558.37 | V85: 1830960.55 | W85: Pos
A86: 18.52672869 | B86: 4.585378088 | C86: -35.59692946 | D86: -2.835311176 | E86: 3123158.868 | F86: 0.03518943253 | G86: 0.4092163985 | H86: 0.9169182888 | I86: 319.5649267 | J86: 432.5971119 | K86: 411.1774954 | L86: -1856838.46 | M86: -773377.96 | N86: -896170.03 | R86: 75662.41 | S86: -81178.17 | T86: 35435.05 | V86: 1421491.37 | W86: Pos
A87: 20.02348445 | B87: 5.032279484 | C87: -39.68923526 | D87: -2.665378751 | E87: 3142084.915 | F87: 0.03399209571 | G87: 0.4225279395 | H87: 0.7099322611 | I87: 328.6701943 | J87: 441.111151 | K87: 400.6418054 | L87: -3150858.54 | M87: -2290846.57 | N87: -2482517.67 | R87: 1788090.57 | S87: 1062570.41 | T87: 1192433.94 | V87: 1985160.7 | W87: Pos
A88: 16.14362493 | B88: 5.336176867 | C88: -36.36663463 | D88: -2.603212215 | E88: 2861120.41 | F88: 0.0308847606 | G88: 0.3995037925 | H88: 0.9226501626 | I88: 315.2397914 | J88: 424.9192531 | K88: 395.2523221 | L88: -2317156.61 | M88: -1268489.45 | N88: -1436469.13 | R88: 958640.89 | S88: 632933.69 | T88: 751699.43 | V88: 67675.25 | W88: Pos
A89: 22.6220094 | B89: 4.441577218 | C89: -39.59364794 | D89: -2.381629232 | E89: 3268221.466 | F89: 0.03055753746 | G89: 0.4838860771 | H89: 0.8164007497 | I89: 367.75799 | J89: 438.8025577 | K89: 417.6448095 | L89: -2242233.04 | M89: -1508036.2 | N89: -1631852.31 | R89: -267882.68 | S89: -419325.64 | T89: -313376.44 | V89: 2023742.01 | W89: Pos
A90: 22.9090038 | B90: 4.377421826 | C90: -36.33595959 | D90: -2.864162277 | E90: 3399622.171 | F90: 0.03343145955 | G90: 0.3664487327 | H90: 0.8069558027 | I90: 371.63298 | J90: 330.0087946 | K90: 393.3500844 | L90: -3065392.17 | M90: -2881876.55 | N90: -2585210.33 | R90: 1742634.5 | S90: 1222961.92 | T90: 1352308.48 | V90: 1296913.35 | W90: Pos
A91: 18.03941978 | B91: 5.070776587 | C91: -31.26074514 | D91: -2.259974624 | E91: 2567228.067 | F91: 0.02978007781 | G91: 0.4084164303 | H91: 0.8330603131 | I91: 318.3616793 | J91: 288.9244189 | K91: 401.9804922 | L91: -2751487.36 | M91: -2566443.42 | N91: -1978406.76 | R91: 1606293.08 | S91: 1122478.39 | T91: 1260321.59 | V91: -242575.39 | W91: Neg
A92: 19.24396115 | B92: 5.384162218 | C92: -37.57558912 | D92: -2.319139624 | E92: 3117663.432 | F92: 0.03673111289 | G92: 0.4721789402 | H92: 0.8456609351 | I92: 437.5640164 | J92: 374.7308405 | K92: 394.586798 | L92: -1001044.64 | M92: -1094839.47 | N92: -982409.13 | R92: 1880358.71 | S92: 1302192.17 | T92: 1436436.05 | V92: 646062.27 | W92: Pos
A93: 21.81696602 | B93: 5.642199954 | C93: -36.79673242 | D93: -2.792406982 | E93: 3152278.397 | F93: 0.03911861484 | G93: 0.4011245079 | H93: 0.9151300082 | I93: 284.3001146 | J93: 332.234907 | K93: 401.8855821 | L93: -1899687.06 | M93: -1184199.04 | N93: -798471.69 | R93: 1644611.06 | S93: 1005560.86 | T93: 1130390.03 | V93: 2568225.24 | W93: Pos
A94: 20.43226178 | B94: 4.835496959 | C94: -31.97324107 | D94: -2.46941003 | E94: 2930435.325 | F94: 0.0370122585 | G94: 0.3762934566 | H94: 0.834878324 | I94: 400.9051594 | J94: 444.9874492 | K94: 412.5367908 | L94: -2119020.96 | M94: -1593491.4 | N94: -1752096.97 | R94: 969536.34 | S94: 645566.01 | T94: 762312.02 | V94: 2371534.99 | W94: Pos
A95: 21.89092124 | B95: 4.694981221 | C95: -37.09548082 | D95: -2.627123925 | E95: 2639589.148 | F95: 0.03559933738 | G95: 0.3749596931 | H95: 0.7189929132 | I95: 264.8232979 | J95: 385.5841738 | K95: 404.65035 | L95: -3232499.87 | M95: -2335852.07 | N95: -2255936.16 | R95: 2150161.76 | S95: 1657073.29 | T95: 1789572.76 | V95: 3147502.44 | W95: Pos
A96: 17.15635591 | B96: 5.04510223 | C96: -37.54564237 | D96: -2.347825276 | E96: 3220541.097 | F96: 0.02993567647 | G96: 0.4370909593 | H96: 0.8962521097 | I96: 353.7987277 | J96: 379.2795811 | K96: 416.9846586 | L96: -2323061.17 | M96: -1813007.11 | N96: -1593573.96 | R96: 725817.68 | S96: 523673.28 | T96: 635606.85 | V96: 1873206.89 | W96: Pos
A97: 20.13274535 | B97: 5.264011538 | C97: -38.12883921 | D97: -2.378939287 | E97: 2830956.358 | F97: 0.03681232454 | G97: 0.3844106129 | H97: 0.8562116282 | I97: 353.0361476 | J97: 316.1709738 | K97: 400.7074026 | L97: -2004019.22 | M97: -1861556.04 | N97: -1434750.83 | R97: 277388.81 | S97: -290840.54 | T97: -175945.18 | V97: -19283.81 | W97: Neg
A98: 19.95773133 | B98: 4.799533641 | C98: -39.05809783 | D98: -2.736673691 | E98: 3311635.083 | F98: 0.03760501971 | G98: 0.4447073028 | H98: 0.8661137064 | I98: 265.6052295 | J98: 417.6950213 | K98: 414.2114258 | L98: -2045464.82 | M98: -743927.04 | N98: -765876.77 | R98: 2655956.72 | S98: 2329669.27 | T98: 2458630.8 | V98: 2792022.99 | W98: Pos
A99: 17.31171106 | B99: 5.25243633 | C99: -34.68288948 | D99: -3.108562328 | E99: 2768738.694 | F99: 0.03723429773 | G99: 0.472532162 | H99: 0.8538990223 | I99: 330.6607992 | J99: 407.8675863 | K99: 404.8877358 | L99: -1063838.5 | M99: -191561.1 | N99: -210901.7 | R99: 825855.24 | S99: 204384.57 | T99: 326460.57 | V99: 3592830 | W99: Pos
A100: 17.71311672 | B100: 5.524000102 | C100: -33.39798897 | D100: -2.823050908 | E100: 3092377.733 | F100: 0.03720991565 | G100: 0.3595682939 | H100: 0.7610902277 | I100: 370.8434931 | J100: 424.5856907 | K100: 393.3677489 | L100: -2924962.21 | M100: -2348028.48 | N100: -2489149.31 | R100: 1914719.88 | S100: 1418535.35 | T100: 1544999.48 | V100: 4975747.51 | W100: Pos
A101: 21.39275501 | B101: 4.232536154 | C101: -31.04358328 | D101: -2.788484699 | E101: 3188348.117 | F101: 0.03837708592 | G101: 0.4107858643 | H101: 0.8757410567 | I101: 240.2548196 | J101: 376.5997664 | K101: 419.4767969 | L101: -2414452.58 | M101: -1209349.62 | N101: -980675.89 | R101: 2912525.07 | S101: 2428562.84 | T101: 2566766.74 | V101: 1188118.32 | W101: Pos
A102: 21.41370297 | B102: 5.281951443 | C102: -37.22449981 | D102: -2.690648391 | E102: 3125136.038 | F102: 0.03455838906 | G102: 0.4447481604 | H102: 0.8550259174 | I102: 305.7927618 | J102: 383.4747006 | K102: 400.7083963 | L102: -2192293.73 | M102: -1344889.41 | N102: -1250064.77 | R102: 1421889.16 | S102: 907463.01 | T102: 1034237.69 | V102: 1495821.53 | W102: Pos
A103: 18.93854518 | B103: 5.192684353 | C103: -38.40065022 | D103: -2.636981221 | E103: 3047249.12 | F103: 0.03152050979 | G103: 0.4850816301 | H103: 0.7592914335 | I103: 306.0754397 | J103: 380.8817204 | K103: 425.0873812 | L103: -2691734.73 | M103: -1912390.71 | N103: -1675303.85 | R103: 2537794.22 | S103: 2080334.28 | T103: 2212142.94 | V103: 1045658.41 | W103: Pos
A104: 21.41616261 | B104: 5.736534643 | C104: -36.34531493 | D104: -2.708163921 | E104: 2657558.51 | F104: 0.03866935316 | G104: 0.4479232154 | H104: 0.8242432042 | I104: 264.4980742 | J104: 377.8793619 | K104: 407.0765081 | L104: -1814990.55 | M104: -807088.75 | N104: -653433.32 | R104: 1800120.91 | S104: 1333097.3 | T104: 1459449.75 | V104: 3542918.2 | W104: Pos
A105: 22.12116566 | B105: 5.188419818 | C105: -35.78198506 | D105: -2.621192976 | E105: 3275850.555 | F105: 0.04034197124 | G105: 0.4707390934 | H105: 0.7154873622 | I105: 277.6149165 | J105: 421.4993095 | K105: 411.9710594 | L105: -2656459.9 | M105: -1598672.36 | N105: -1647603.63 | R105: 1980912.31 | S105: 1305181.59 | T105: 1431753.17 | V105: 3656966.3 | W105: Pos
A106: 18.9854359 | B106: 5.070946026 | C106: -35.41631441 | D106: -2.593473523 | E106: 3058178.855 | F106: 0.03401360999 | G106: 0.435280249 | H106: 0.7859785013 | I106: 251.6356469 | J106: 370.7324114 | K106: 404.2777962 | L106: -3031372.27 | M106: -2018803.18 | N106: -1847451.7 | R106: 2028903.32 | S106: 1361548.37 | T106: 1502707.04 | V106: 1436199.19 | W106: Pos
A107: 20.38632713 | B107: 5.109028567 | C107: -32.45387219 | D107: -2.769431808 | E107: 3349184.88 | F107: 0.03323799485 | G107: 0.4520116718 | H107: 0.8685874222 | I107: 411.8021125 | J107: 380.5755891 | K107: 402.8698246 | L107: -1781357.05 | M107: -1600679.63 | N107: -1473156.11 | R107: 983830.69 | S107: 476771.84 | T107: 598043.99 | V107: 5360783.61 | W107: Pos
A108: 18.18151624 | B108: 5.516342302 | C108: -37.60799139 | D108: -2.565756083 | E108: 3331698.808 | F108: 0.03009804586 | G108: 0.4732490837 | H108: 0.7002165588 | I108: 244.4447176 | J108: 472.2699935 | K108: 400.8405282 | L108: -4083995.11 | M108: -2437046.64 | N108: -2801478.92 | R108: -282899.9 | S108: -687984.97 | T108: -579965.52 | V108: 3828925.07 | W108: Pos
A109: 20.28609426 | B109: 5.747109864 | C109: -32.49378956 | D109: -2.644585944 | E109: 3057163.297 | F109: 0.03521805 | G109: 0.3815799547 | H109: 0.8554008588 | I109: 339.5565877 | J109: 326.1030171 | K109: 394.6982603 | L109: -2623502.63 | M109: -2302964.79 | N109: -1952585.82 | R109: -17876.75 | S109: -301438.75 | T109: -189305.75 | V109: 3330533.82 | W109: Pos
A110: 16.86189503 | B110: 4.549158359 | C110: -37.14469727 | D110: -2.407541824 | E110: 3288367.76 | F110: 0.0352664337 | G110: 0.4719282519 | H110: 0.8902105079 | I110: 353.8437198 | J110: 436.5028983 | K110: 404.1681526 | L110: -1388460.12 | M110: -549385.77 | N110: -746376.42 | R110: 3387355.15 | S110: 2651617.33 | T110: 2804932.8 | V110: 2660701.99 | W110: Pos
A111: 20.37542153 | B111: 5.669480828 | C111: -40.27065749 | D111: -2.660124988 | E111: 3205444.68 | F111: 0.03368761187 | G111: 0.369794784 | H111: 0.8202257403 | I111: 417.0422477 | J111: 446.612497 | K111: 401.0884362 | L111: -2582746.89 | M111: -2094776.59 | N111: -2320345.83 | R111: 2920290.01 | S111: 2247113.23 | T111: 2392542.98 | V111: 4330729.17 | W111: Pos
A112: 18.74850321 | B112: 5.177367939 | C112: -31.64107368 | D112: -2.758589816 | E112: 3417427.604 | F112: 0.03626206859 | G112: 0.4206631752 | H112: 0.8229042975 | I112: 318.810376 | J112: 428.0850763 | K112: 405.5729506 | L112: -2701781.92 | M112: -1722847.96 | N112: -1842822.02 | R112: 513048.55 | S112: 97121.67 | T112: 210105.07 | V112: 2745792.77 | W112: Pos
A113: 18.24363741 | B113: 4.768615474 | C113: -37.05225991 | D113: -2.910875711 | E113: 2905811.121 | F113: 0.03220698549 | G113: 0.4669052189 | H113: 1.005070494 | I113: 403.3881827 | J113: 334.5691912 | K113: 409.9160359 | L113: -276847.5 | M113: -309950.82 | N113: 196179.27 | R113: -130897.59 | S113: -424184.17 | T113: -310276.07 | V113: 440434.12 | W113: Pos
A114: 20.5021965 | B114: 5.098813494 | C114: -35.6144285 | D114: -2.817599195 | E114: 3011630.546 | F114: 0.03260912818 | G114: 0.4485995292 | H114: 0.9975034162 | I114: 307.6796908 | J114: 373.3383529 | K114: 405.3825724 | L114: -1389837.45 | M114: -475518.69 | N114: -269250.63 | R114: 444497.66 | S114: 224506.4 | T114: 330035 | V114: 2220137.94 | W114: Pos
A115: 22.37566466 | B115: 5.144661924 | C115: -36.12123007 | D115: -3.064505768 | E115: 3213280.118 | F115: 0.03050251461 | G115: 0.4026271162 | H115: 0.8612441989 | I115: 373.3341086 | J115: 359.4734687 | K115: 395.9000218 | L115: -2591700.61 | M115: -2218681.65 | N115: -2021336.11 | R115: 656448.63 | S115: 257701.93 | T115: 378760.14 | V115: 3936385.29 | W115: Pos
A116: 19.8844647 | B116: 4.43600974 | C116: -38.01332112 | D116: -2.398706013 | E116: 3415579.188 | F116: 0.03908210699 | G116: 0.3687994485 | H116: 0.8574571179 | I116: 278.1939679 | J116: 417.3890691 | K116: 397.3208127 | L116: -2753988.27 | M116: -1674089.38 | N116: -1775845.47 | R116: 607461.19 | S116: 201387.01 | T116: 320484.3 | V116: 4012203.06 | W116: Pos
A117: 16.97771597 | B117: 4.467240224 | C117: -39.82551435 | D117: -2.258607413 | E117: 3373036.537 | F117: 0.03378337075 | G117: 0.419679875 | H117: 0.8066158587 | I117: 281.0334 | J117: 387.7499238 | K117: 408.6547148 | L117: -3054505.59 | M117: -2162405.43 | N117: -2055454.08 | R117: 1610231.07 | S117: 1018112.66 | T117: 1146546.59 | V117: 1719742.82 | W117: Pos
A118: 22.23445334 | B118: 4.368760861 | C118: -35.35051444 | D118: -2.22490667 | E118: 3466471.839 | F118: 0.03290555647 | G118: 0.3868620417 | H118: 0.7812308013 | I118: 220.5841302 | J118: 408.126839 | K118: 408.3714876 | L118: -4330902.04 | M118: -2872402.26 | N118: -2872947.71 | R118: 1473142.48 | S118: 1155185.32 | T118: 1275446.93 | V118: 1067410.79 | W118: Pos
A119: 19.78768464 | B119: 5.001519483 | C119: -37.18919874 | D119: -3.023669042 | E119: 3260336.406 | F119: 0.03085580259 | G119: 0.3498927704 | H119: 0.9565703944 | I119: 273.3587001 | J119: 373.3386715 | K119: 404.610586 | L119: -3112470.74 | M119: -1999905.58 | N119: -1830820.28 | R119: 963862.32 | S119: 444991.52 | T119: 564251.36 | V119: 1994435.66 | W119: Pos
A120: 22.25861577 | B120: 5.033937168 | C120: -34.83349691 | D120: -2.656622786 | E120: 2751976.841 | F120: 0.02981738085 | G120: 0.4313681741 | H120: 0.861695032 | I120: 234.8466062 | J120: 358.928516 | K120: 407.3528718 | L120: -2970343.73 | M120: -1807054.02 | N120: -1539659.28 | R120: 2508284.27 | S120: 1771451.86 | T120: 1914401.96 | V120: 1215584.78 | W120: Pos
A121: 19.7577339 | B121: 5.542720512 | C121: -38.40223612 | D121: -2.752909957 | E121: 3173226.993 | F121: 0.03591621275 | G121: 0.4087629921 | H121: 0.9210095985 | I121: 389.8465575 | J121: 399.1020946 | K121: 395.4110726 | L121: -1428696.12 | M121: -990223.49 | N121: -1013690.07 | R121: 1114672.77 | S121: 922352.48 | T121: 1035787.86 | V121: 2938113.83 | W121: Pos
A122: 17.02908327 | B122: 4.646663234 | C122: -40.18417307 | D122: -2.838659255 | E122: 2588069.51 | F122: 0.03306669016 | G122: 0.4246456217 | H122: 0.8053194595 | I122: 370.764058 | J122: 410.8573101 | K122: 393.5932598 | L122: -1751487.93 | M122: -1180448.81 | N122: -1270904.26 | R122: -213075.41 | S122: -507520.94 | T122: -397034.82 | V122: 3401098.1 | W122: Pos
A123: 19.92696118 | B123: 4.383667407 | C123: -35.24951696 | D123: -2.173868571 | E123: 3052558.475 | F123: 0.03260565627 | G123: 0.483172627 | H123: 0.8713167289 | I123: 262.5539424 | J123: 424.9918794 | K123: 409.1641824 | L123: -2262040.78 | M123: -924658.02 | N123: -1020844.52 | R123: 1742063.99 | S123: 1238977.8 | T123: 1370855.49 | V123: 1668305.29 | W123: Pos
A124: 19.82238713 | B124: 5.60867868 | C124: -36.5751297 | D124: -2.777787266 | E124: 3162288.599 | F124: 0.03460407965 | G124: 0.4219203355 | H124: 0.9386986012 | I124: 328.2643206 | J124: 331.5448902 | K124: 402.3837187 | L124: -1782136.99 | M124: -1322774.43 | N124: -903834.41 | R124: 420513.43 | S124: 60945.28 | T124: 174396.07 | V124: 3865946.98 | W124: Pos
A125: 19.02314708 | B125: 4.58974267 | C125: -30.49803789 | D125: -2.799015341 | E125: 3284807.17 | F125: 0.03594901587 | G125: 0.4000658021 | H125: 0.8047370311 | I125: 336.8444756 | J125: 394.3872032 | K125: 397.8555857 | L125: -2766171.23 | M125: -2086041.6 | N125: -2070743.02 | R125: 363006.23 | S125: -111042.83 | T125: 3253.08 | V125: 2125523.05 | W125: Pos
A126: 20.09457072 | B126: 4.845847966 | C126: -40.52318521 | D126: -2.852970905 | E126: 3575656.306 | F126: 0.0376784988 | G126: 0.3659221422 | H126: 0.8709052253 | I126: 295.8606501 | J126: 414.8124776 | K126: 406.0953013 | L126: -2741071.83 | M126: -1673412.75 | N126: -1720364.13 | R126: 1735158.21 | S126: 1424882.93 | T126: 1548821.58 | V126: 2086382.21 | W126: Pos
A127: 21.66047649 | B127: 4.960499734 | C127: -31.76893233 | D127: -2.576118679 | E127: 2803478.498 | F127: 0.03432893831 | G127: 0.4365943503 | H127: 1.004352798 | I127: 426.5868045 | J127: 449.8910086 | K127: 399.8936615 | L127: -416687.53 | M127: 91977.24 | N127: -224982.05 | R127: 1609784.68 | S127: 1240435.99 | T127: 1356321.86 | V127: 1440468.26 | W127: Pos
A128: 20.53212787 | B128: 5.86751299 | C128: -35.21710297 | D128: -2.807845019 | E128: 2994501.134 | F128: 0.0325310386 | G128: 0.4364806182 | H128: 0.9956141611 | I128: 288.7926603 | J128: 297.551055 | K128: 396.411169 | L128: -1764011.95 | M128: -1207409.1 | N128: -574320.16 | R128: 2698932.99 | S128: 2175553.21 | T128: 2309001.51 | V128: 753007.06 | W128: Pos
A129: 19.68011111 | B129: 4.606717668 | C129: -38.83830519 | D129: -2.927802363 | E129: 3128565.344 | F129: 0.03187788488 | G129: 0.429970908 | H129: 0.8179919024 | I129: 333.1424792 | J129: 351.5886172 | K129: 401.4364242 | L129: -2501872.51 | M129: -1979097.3 | N129: -1712589.28 | R129: -693032.8 | S129: -838795.97 | T129: -738132.1 | V129: 1951130.75 | W129: Pos
A130: 23.06655052 | B130: 4.418734678 | C130: -37.51695841 | D130: -3.040019307 | E130: 3362929.326 | F130: 0.03234675768 | G130: 0.4035904716 | H130: 0.7065908392 | I130: 306.9546821 | J130: 398.3773028 | K130: 407.7685864 | L130: -3774954.54 | M130: -2899263.12 | N130: -2865103.43 | R130: 2399011.22 | S130: 1757223.51 | T130: 1895340.61 | V130: 1965529.51 | W130: Pos
A131: 19.01625159 | B131: 4.950798691 | C131: -35.00988795 | D131: -2.720490949 | E131: 2783549.73 | F131: 0.03743289484 | G131: 0.4417403241 | H131: 0.9708059289 | I131: 362.1019914 | J131: 346.802255 | K131: 390.6643605 | L131: -438008.38 | M131: -133526.13 | N131: 135680.95 | R131: 2177569.66 | S131: 1663423.36 | T131: 1792842.01 | V131: 1680112.33 | W131: =IF(V131<0,"Neg","Pos") -> Pos
A132: 18.37086179 | B132: 5.419807042 | C132: -35.06493809 | D132: -2.516419939 | E132: 3300363.7 | F132: 0.03700582306 | G132: 0.4731798888 | H132: 0.8066905611 | I132: 334.3711228 | J132: 398.500588 | K132: 398.7800379 | L132: -2047175.63 | M132: -1355162.88 | N132: -1355518.79 | R132: 2612681.54 | S132: 1897942.55 | T132: 2037998.41 | V132: 3053370.83 | W132: Pos
A133: 22.25127059 | B133: 5.776923379 | C133: -33.82714365 | D133: -2.952147194 | E133: 3453857.99 | F133: 0.03960425651 | G133: 0.4492042659 | H133: 0.8764222035 | I133: 305.3699807 | J133: 422.5832875 | K133: 396.2590732 | L133: -1808589.98 | M133: -691001.13 | N133: -845200.44 | R133: 1335600.34 | S133: 995816.84 | T133: 1118582.55 | V133: 1555612.83 | W133: Pos
A134: 20.16090146 | B134: 5.394213019 | C134: -31.51711336 | D134: -2.547948339 | E134: 3406292.442 | F134: 0.03541669396 | G134: 0.4262952909 | H134: 0.8626120002 | I134: 269.1712648 | J134: 349.7316759 | K134: 402.3968965 | L134: -2886019.26 | M134: -2025815.64 | N134: -1735066.7 | R134: 1230510.21 | S134: 849150.5 | T134: 970912.33 | V134: 3600855.15 | W134: Pos
A135: 20.93869894 | B135: 5.080226545 | C135: -33.83797062 | D135: -2.55411263 | E135: 3475378.937 | F135: 0.03601258031 | G135: 0.4147955027 | H135: 0.8008935511 | I135: 306.4046137 | J135: 390.8792161 | K135: 409.2174468 | L135: -3039869.54 | M135: -2249821 | N135: -2157649 | R135: 2690531.14 | S135: 2127361.36 | T135: 2259276.7 | V135: 859411.04 | W135: Pos
A136: 22.15893193 | B136: 4.344926472 | C136: -38.89701864 | D136: -2.486989915 | E136: 3013503.629 | F136: 0.03507610729 | G136: 0.4268931213 | H136: 0.8945764327 | I136: 231.526149 | J136: 382.3267121 | K136: 411.5835793 | L136: -2328245.46 | M136: -1030571.47 | N136: -867723.15 | R136: 1886264.89 | S136: 1289520.18 | T136: 1426340.1 | V136: 3101720.19 | W136: Pos
A137: 19.1122977 | B137: 5.117040107 | C137: -36.24301251 | D137: -2.70075952 | E137: 2850862.659 | F137: 0.03256266085 | G137: 0.4574934082 | H137: 0.8693194621 | I137: 338.7582327 | J137: 350.8163592 | K137: 404.0861419 | L137: -1740965.46 | M137: -1278904.89 | N137: -972030.7 | R137: 1531636.77 | S137: 1091330.86 | T137: 1211239.56 | V137: 2113663.73 | W137: Pos
A138: 18.29138917 | B138: 5.457471562 | C138: -37.52365423 | D138: -2.552504905 | E138: 2866249.193 | F138: 0.03620533829 | G138: 0.4744738137 | H138: 0.8160635725 | I138: 324.5893778 | J138: 412.6215785 | K138: 399.0180547 | L138: -1663745.85 | M138: -828922.06 | N138: -906407.45 | R138: 1588731.7 | S138: 821423.96 | T138: 954247.78 | V138: 1542534.11 | W138: Pos
A139: 21.96719803 | B139: 5.23531452 | C139: -35.21796535 | D139: -2.501839252 | E139: 2592725.09 | F139: 0.03309438402 | G139: 0.4408436434 | H139: 0.8793994123 | I139: 318.1928425 | J139: 363.0277276 | K139: 401.8119172 | L139: -1795823.72 | M139: -1165209.94 | N139: -948654.68 | R139: -815575 | S139: -999778.28 | T139: -907094.4 | V139: 948636.11 | W139: Pos
A140: 18.26130762 | B140: 4.569379593 | C140: -38.63699789 | D140: -2.444712318 | E140: 3077383.54 | F140: 0.02927080484 | G140: 0.4183859103 | H140: 0.8544685253 | I140: 270.7395174 | J140: 448.0757018 | K140: 407.2221041 | L140: -3102676.04 | M140: -1717418.14 | N140: -1942028.16 | R140: 1811246.72 | S140: 1237398.83 | T140: 1367100.32 | V140: 2307661.98 | W140: Pos
A141: 20.73648457 | B141: 5.562684897 | C141: -32.85095875 | D141: -2.63741566 | E141: 3258012.663 | F141: 0.03448917141 | G141: 0.4336005518 | H141: 0.8393870884 | I141: 334.1738231 | J141: 330.7273609 | K141: 397.3198292 | L141: -2498951.76 | M141: -2136736.11 | N141: -1771920.93 | R141: 1254278.55 | S141: 713561.08 | T141: 833710.89 | V141: 2596593.59 | W141: Pos
A142: 20.73057436 | B142: 4.891858582 | C142: -36.98989749 | D142: -2.520265338 | E142: 3261780.357 | F142: 0.03083400833 | G142: 0.4739655053 | H142: 0.8819753318 | I142: 296.2220088 | J142: 393.5915867 | K142: 409.5608274 | L142: -2398732.66 | M142: -1389799.77 | N142: -1294316.53 | R142: 1275393.14 | S142: 851873.57 | T142: 970894.67 | V142: 1933449.52 | W142: Pos
A143: 19.36370951 | B143: 4.898499807 | C143: -32.76658097 | D143: -2.803300899 | E143: 3474031.565 | F143: 0.03519282605 | G143: 0.4205325162 | H143: 0.7772511036 | I143: 272.9739917 | J143: 438.1211899 | K143: 400.7595914 | L143: -3352408.72 | M143: -2095708.41 | N143: -2286324.23 | R143: -701283.5 | S143: -873642.65 | T143: -769290.54 | V143: 3775134.99 | W143: Pos
A144: 22.62223309 | B144: 5.540504786 | C144: -38.43329477 | D144: -2.405293672 | E144: 3370680.2 | F144: 0.03567886372 | G144: 0.4173369852 | H144: 0.8446919698 | I144: 267.323884 | J144: 390.9142395 | K144: 405.1840338 | L144: -2913991.39 | M144: -1867484.37 | N144: -1792773.31 | R144: 2244663.37 | S144: 1762727.67 | T144: 1890522.16 | V144: 792449.84 | W144: Pos
A145: 21.49207683 | B145: 4.892063397 | C145: -39.16816516 | D145: -2.63565459 | E145: 3347581.821 | F145: 0.03955319213 | G145: 0.4071996005 | H145: 0.8822865242 | I145: 319.9958236 | J145: 381.6463338 | K145: 393.8396687 | L145: -1821552.55 | M145: -1098191.85 | N145: -1034044 | R145: 699462.27 | S145: 239557.41 | T145: 354364.52 | V145: 4202613.78 | W145: Pos
A146: 18.17093393 | B146: 5.374604174 | C146: -30.81066551 | D146: -2.467428664 | E146: 3509970.904 | F146: 0.03682707679 | G146: 0.4349432564 | H146: 0.935747439 | I146: 380.8308287 | J146: 377.6676889 | K146: 406.2248419 | L146: -1574552.33 | M146: -1242596.37 | N146: -1073726.79 | R146: 1411109.33 | S146: 1077338.12 | T146: 1203200.46 | V146: 5238152.05 | W146: Pos
A147: 20.98556983 | B147: 4.181962765 | C147: -33.84206759 | D147: -2.887061853 | E147: 3443319.413 | F147: 0.03402329341 | G147: 0.3879787751 | H147: 0.7699735546 | I147: 318.2349865 | J147: 398.6610774 | K147: 417.0446386 | L147: -3401312.19 | M147: -2607515.17 | N147: -2520774.6 | R147: 1624008.69 | S147: 1086909.04 | T147: 1218246.45 | V147: 2811249.1 | W147: Pos
A148: 20.5789119 | B148: 5.178553345 | C148: -37.04324109 | D148: -2.851931349 | E148: 3018623.106 | F148: 0.03536789438 | G148: 0.3760842231 | H148: 0.8878182093 | I148: 266.6266578 | J148: 374.8834951 | K148: 393.5923978 | L148: -2616978.44 | M148: -1564157.01 | N148: -1468693.22 | R148: 1531642.93 | S148: 865382.04 | T148: 998065.56 | V148: 25753.18 | W148: Pos
A149: 19.72899336 | B149: 4.408820936 | C149: -34.30060178 | D149: -2.730575224 | E149: 2870947.037 | F149: 0.03789820522 | G149: 0.439425025 | H149: 0.7990384564 | I149: 343.7714173 | J149: 358.2589906 | K149: 405.2196058 | L149: -1729590.52 | M149: -1305045.63 | N149: -1064656.67 | R149: 673998.81 | S149: 204070.94 | T149: 323006.51 | V149: 501394.67 | W149: Pos
A150: 19.37779283 | B150: 5.045740802 | C150: -35.43618759 | D150: -2.652505638 | E150: 2728382.107 | F150: 0.03068575239 | G150: 0.4349481192 | H150: 0.8523388591 | I150: 279.6173381 | J150: 349.6997167 | K150: 390.9337666 | L150: -2547879.84 | M150: -1726022.52 | N150: -1500310.74 | R150: 636394.71 | S150: 359452.32 | T150: 476897.82 | V150: 2171190.83 | W150: Pos
A151: 20.81065726 | B151: 4.275809485 | C151: -36.35994385 | D151: -2.846619274 | E151: 3042565.408 | F151: 0.03792008602 | G151: 0.4762232739 | H151: 0.89449604 | I151: 321.2679166 | J151: 375.123452 | K151: 422.2117541 | L151: -899817.26 | M151: -159877.12 | N151: 123429.79 | R151: 1880116.71 | S151: 1462640.47 | T151: 1584360.14 | V151: 1674872.21 | W151: Pos
A152: 21.15324029 | B152: 4.825859516 | C152: -34.30429512 | D152: -2.693076165 | E152: 3083326.405 | F152: 0.03238558651 | G152: 0.4572676815 | H152: 0.8874602916 | I152: 332.0461942 | J152: 402.7139993 | K152: 391.5667011 | L152: -1943279.56 | M152: -1115768.82 | N152: -1183993.03 | R152: 2583286.55 | S152: 2045772.4 | T152: 2185967.03 | V152: 2559235.02 | W152: Pos
A153: 19.17950731 | B153: 5.206086378 | C153: -34.09013462 | D153: -2.756382093 | E153: 3103224.584 | F153: 0.03486801917 | G153: 0.3994695269 | H153: 0.8281556297 | I153: 359.0227117 | J153: 335.4632559 | K153: 405.5303155 | L153: -2430622.67 | M153: -2172582.9 | N153: -1814530.86 | R153: -742146.62 | S153: -1053397.01 | T153: -942863.82 | V153: 4460010.41 | W153: Pos
A154: 19.44268329 | B154: 5.043039611 | C154: -34.4016294 | D154: -2.82746878 | E154: 3145265.362 | F154: 0.03369312939 | G154: 0.423898561 | H154: 0.8380910788 | I154: 268.563923 | J154: 382.74447 | K154: 404.5281078 | L154: -2815342.86 | M154: -1740170.16 | N154: -1624686.2 | R154: 1097145.02 | S154: 938507.97 | T154: 1057847.56 | V154: 2362213.48 | W154: Pos
A155: 21.15951233 | B155: 5.022269569 | C155: -34.6124992 | D155: -2.519421102 | E155: 3055582.613 | F155: 0.03412097244 | G155: 0.4215870351 | H155: 0.7848903831 | I155: 278.8257833 | J155: 325.7807804 | K155: 404.3124922 | L155: -3033165.57 | M155: -2429176.67 | N155: -2031493.92 | R155: 1540807.31 | S155: 959750.78 | T155: 1091686.08 | V155: 1080509.42 | W155: Pos
A156: 23.19846497 | B156: 4.348409758 | C156: -32.61573244 | D156: -2.678532812 | E156: 3387575.371 | F156: 0.03335075584 | G156: 0.3977607133 | H156: 0.8399583659 | I156: 328.5137833 | J156: 388.7090033 | K156: 407.0715163 | L156: -2965020.68 | M156: -2264627.56 | N156: -2170647.69 | R156: 3062786.48 | S156: 2366993.02 | T156: 2505086.74 | V156: 1841204.14 | W156: Pos
A157: 16.32469656 | B157: 5.212891446 | C157: -35.55695293 | D157: -2.499137081 | E157: 3121614.051 | F157: 0.03926618712 | G157: 0.4866026783 | H157: 0.8612252411 | I157: 324.1969046 | J157: 395.117112 | K157: 420.8212729 | L157: -1122796.56 | M157: -358960.47 | N157: -208914.07 | R157: 2602171.31 | S157: 2053178.74 | T157: 2192298.55 | V157: 1513628.51 | W157: Pos
A158: 22.93247809 | B158: 5.410586165 | C158: -40.09396865 | D158: -2.67764651 | E158: 2801994.642 | F158: 0.03115182376 | G158: 0.4400730133 | H158: 0.9323956964 | I158: 251.7949797 | J158: 399.3774784 | K158: 409.5232274 | L158: -2224357.87 | M158: -840309.27 | N158: -781225.56 | R158: 240337.66 | S158: -144817.16 | T158: -31166.07 | V158: 3449964.78 | W158: Pos
A159: 19.82330843 | B159: 5.331366891 | C159: -32.64531987 | D159: -2.827659041 | E159: 3055605.807 | F159: 0.03330599595 | G159: 0.4195029101 | H159: 0.776486551 | I159: 304.4937995 | J159: 336.3020656 | K159: 412.2508123 | L159: -3030652.22 | M159: -2476369.8 | N159: -2094613.63 | R159: -453013.02 | S159: -681993.94 | T159: -574063.47 | V159: -80623.79 | W159: Neg
A160: 21.90198948 | B160: 5.783034882 | C160: -41.25835919 | D160: -2.428273365 | E160: 2586970.921 | F160: 0.0358263177 | G160: 0.4087345679 | H160: 0.8608446182 | I160: 361.7264691 | J160: 412.1252425 | K160: 407.1627841 | L160: -1562917.01 | M160: -967385.34 | N160: -995595.3 | R160: 845549.24 | S160: 594323.09 | T160: 711547.06 | V160: 2914854.18 | W160: Pos
A161: 17.17913764 | B161: 5.813130922 | C161: -41.94157203 | D161: -2.764192604 | E161: 2839279.521 | F161: 0.03742486164 | G161: 0.4015881504 | H161: 0.7530366824 | I161: 353.0567872 | J161: 393.2286489 | K161: 407.5147328 | L161: -2279678.44 | M161: -1749195.57 | N161: -1684295 | R161: 2016952.65 | S161: 1614071.69 | T161: 1744241.52 | V161: 1244513.35 | W161: Pos
A162: 20.337851 | B162: 4.938046133 | C162: -30.51153222 | D162: -2.969356759 | E162: 3293204.634 | F162: 0.02980452364 | G162: 0.4768366256 | H162: 0.8478554361 | I162: 345.2717171 | J162: 343.2678154 | K162: 415.6490491 | L162: -2463247.67 | M162: -2037277.48 | N162: -1606367.61 | R162: -1060.22 | S162: -149325.29 | T162: -44605.76 | V162: 1134294.3 | W162: Pos
A163: 20.42477709 | B163: 4.107895201 | C163: -34.53951103 | D163: -2.718347798 | E163: 3109629.883 | F163: 0.03568025956 | G163: 0.4843606099 | H163: 0.8946578236 | I163: 274.9946045 | J163: 326.3145625 | K163: 415.9740112 | L163: -1541703.34 | M163: -792744.95 | N163: -241546.48 | R163: 189501.21 | S163: -172231.56 | T163: -67385.82 | V163: 2251727.08 | W163: Pos
A164: 21.31345364 | B164: 4.183281451 | C164: -31.37816719 | D164: -2.345476322 | E164: 3099522.174 | F164: 0.0384966515 | G164: 0.4688831815 | H164: 0.7357908644 | I164: 346.5498612 | J164: 400.3209029 | K164: 398.1439075 | L164: -2223225.94 | M164: -1675303.35 | N164: -1687805.63 | R164: 2700343.16 | S164: 2270299.28 | T164: 2412702.38 | V164: -222158.42 | W164: Neg
A165: 22.08991557 | B165: 5.453829368 | C165: -38.76016648 | D165: -2.771229422 | E165: 2954138.272 | F165: 0.0393379373 | G165: 0.3872129691 | H165: 0.9079944451 | I165: 332.1296477 | J165: 444.2552773 | K165: 406.4036539 | L165: -1517307.2 | M165: -508469 | N165: -712922.34 | R165: 1011381.47 | S165: 568491.24 | T165: 683598.95 | V165: 2464603.6 | W165: Pos
A166: 20.19750797 | B166: 5.168272314 | C166: -30.82992237 | D166: -2.427823775 | E166: 2868199.587 | F166: 0.03322783359 | G166: 0.3699880635 | H166: 0.8462530646 | I166: 238.4572421 | J166: 369.7443539 | K166: 406.6725485 | L166: -3421779.71 | M166: -2331413.53 | N166: -2150734.53 | R166: 1175738.2 | S166: 891982.3 | T166: 1009706.44 | V166: 2112024.3 | W166: Pos
A167: 18.05481161 | B167: 5.469344366 | C167: -36.64490828 | D167: -2.586431442 | E167: 3011100.193 | F167: 0.03477566508 | G167: 0.4102763833 | H167: 0.892006915 | I167: 231.569412 | J167: 383.3853081 | K167: 399.7410013 | L167: -2649881.77 | M167: -1341825.47 | N167: -1254059.48 | R167: 2345938.78 | S167: 1878284.89 | T167: 2015501.83 | V167: 336984.2 | W167: Pos
A168: 21.4577619 | B168: 4.99779424 | C168: -38.53023964 | D168: -2.473603516 | E168: 2910789.157 | F168: 0.03932243926 | G168: 0.4880069512 | H168: 0.8707954083 | I168: 382.3772142 | J168: 409.7742921 | K168: 396.6780902 | L168: -428669.15 | M168: 45107.8 | N168: -35136.41 | R168: 1125938.57 | S168: 766715.09 | T168: 884116.57 | V168: 3049689.92 | W168: Pos
A169: 18.13791728 | B169: 4.999779923 | C169: -36.31028778 | D169: -2.555625233 | E169: 2846590.058 | F169: 0.04033406547 | G169: 0.4475291361 | H169: 0.8472787539 | I169: 270.2537055 | J169: 356.897755 | K169: 396.3611087 | L169: -1526716.53 | M169: -675234.61 | N169: -461629.42 | R169: 4613503.8 | S169: 3894422.22 | T169: 4057844.38 | V169: 1370163.23 | W169: Pos
A170: 21.06374828 | B170: 5.071693695 | C170: -37.11758328 | D170: -2.766702485 | E170: 3432575.899 | F170: 0.02856500662 | G170: 0.3906436907 | H170: 0.7785891827 | I170: 332.7959038 | J170: 323.7979621 | K170: 418.080447 | L170: -3887489.72 | M170: -3483600.26 | N170: -2992326.61 | R170: 106580.8 | S170: -435100.89 | T170: -316930.7 | V170: 2604664.3 | W170: Pos
A171: 18.58858033 | B171: 4.92219115 | C171: -33.02667966 | D171: -2.235534534 | E171: 3344685.856 | F171: 0.03651333936 | G171: 0.4237912813 | H171: 0.9702228313 | I171: 369.1599203 | J171: 409.9283252 | K171: 413.890828 | L171: -1392481.76 | M171: -812430.11 | N171: -790700.87 | R171: 2154389.81 | S171: 1589329.65 | T171: 1727728.66 | V171: 445225.72 | W171: Pos
A172: 20.00599965 | B172: 4.375785337 | C172: -40.13182043 | D172: -2.731427331 | E172: 3218070.36 | F172: 0.03036577696 | G172: 0.4082704824 | H172: 0.7710497599 | I172: 245.9586952 | J172: 379.5932726 | K172: 408.613973 | L172: -3738027.83 | M172: -2594758.87 | N172: -2450742.02 | R172: 964762.33 | S172: 353625.61 | T172: 481082.64 | V172: 2868631.06 | W172: Pos
A173: 20.20610406 | B173: 4.99733642 | C173: -36.8077941 | D173: -2.677417241 | E173: 3145408.079 | F173: 0.0366996871 | G173: 0.3763617488 | H173: 0.9090981094 | I173: 366.2704893 | J173: 372.3903451 | K173: 413.432816 | L173: -1882988.48 | M173: -1463102.71 | N173: -1247161.94 | R173: 1929618.31 | S173: 1591770.7 | T173: 1707969.02 | V173: 2037021.83 | W173: Pos
A174: 21.2099528 | B174: 5.151556964 | C174: -38.90348277 | D174: -2.327251712 | E174: 3139390.23 | F174: 0.0380095552 | G174: 0.4662354878 | H174: 0.8215285816 | I174: 275.6195454 | J174: 394.7572626 | K174: 405.1997172 | L174: -2064517.7 | M174: -1058353 | N174: -1002341.88 | R174: 2835394.48 | S174: 2258185.94 | T174: 2395620.73 | V174: 3323242.83 | W174: Pos
A175: 18.89920983 | B175: 5.287600668 | C175: -31.03344182 | D175: -2.714035201 | E175: 2831381.406 | F175: 0.03777783815 | G175: 0.380510934 | H175: 0.8658123811 | I175: 386.9723564 | J175: 396.0275625 | K175: 402.7658334 | L175: -1781235.38 | M175: -1379099.33 | N175: -1347339.32 | R175: 215353.62 | S175: -194127.25 | T175: -80161.31 | V175: 1179556.52 | W175: Pos
A176: 22.45964148 | B176: 4.384949785 | C176: -33.13681146 | D176: -2.227331375 | E176: 3029037.567 | F176: 0.03532349154 | G176: 0.4107517713 | H176: 0.8487278115 | I176: 297.2862447 | J176: 372.6898206 | K176: 411.704408 | L176: -2557594.34 | M176: -1816386.91 | N176: -1613959.33 | R176: 417005.26 | S176: -54485.17 | T176: 63754.66 | V176: 689424.24 | W176: Pos
A177: 20.62724214 | B177: 4.686225349 | C177: -32.89806208 | D177: -2.532125993 | E177: 3101377.151 | F177: 0.0358355951 | G177: 0.4907949741 | H177: 0.8234244732 | I177: 312.5553771 | J177: 347.8490533 | K177: 407.2824359 | L177: -1855483.23 | M177: -1297749.43 | N177: -957421.86 | R177: 3358120.43 | S177: 2577955.45 | T177: 2732522.31 | V177: 263052.63 | W177: Pos
A178: 18.5267034 | B178: 4.781894836 | C178: -36.89597157 | D178: -2.446656682 | E178: 2992313.283 | F178: 0.03395639054 | G178: 0.3817150249 | H178: 1.008032738 | I178: 332.6239506 | J178: 418.8205934 | K178: 411.5081256 | L178: -1651160.4 | M178: -732806.58 | N178: -777907.67 | R178: 3182295.9 | S178: 2585962.27 | T178: 2734635.55 | V178: 3820541.53 | W178: Pos
A179: 21.25207392 | B179: 5.378213447 | C179: -30.97785903 | D179: -2.585806487 | E179: 3493255.812 | F179: 0.02994685119 | G179: 0.4152047492 | H179: 0.9414092554 | I179: 346.9400392 | J179: 424.2494682 | K179: 412.1129721 | L179: -2769651.34 | M179: -1872776.19 | N179: -1947578.23 | R179: 2034644.45 | S179: 1359815.4 | T179: 1487243.07 | V179: 981860 | W179: Pos
A180: 21.67398984 | B180: 4.566336064 | C180: -36.93419331 | D180: -2.623992892 | E180: 2903723.797 | F180: 0.03472361949 | G180: 0.4021887402 | H180: 0.7521673256 | I180: 381.9320454 | J180: 377.9581081 | K180: 404.1668232 | L180: -2523035.96 | M180: -2220959.41 | N180: -2099331.18 | R180: 1726744.11 | S180: 1393958.77 | T180: 1524116.38 | V180: 1748681.24 | W180: Pos
A181: 19.37844861 | B181: 4.953013869 | C181: -33.26565859 | D181: -3.049782754 | E181: 3103456.858 | F181: 0.04097122736 | G181: 0.3986318562 | H181: 0.8418949979 | I181: 298.6957778 | J181: 384.5443159 | K181: 406.9095568 | L181: -1956094.12 | M181: -1080531.12 | N181: -968467.36 | R181: -917041.75 | S181: -1004602.99 | T181: -905888.45 | V181: 2554601.05 | W181: Pos
A182: 18.97676537 | B182: 4.179812258 | C182: -39.16750909 | D182: -2.60227422 | E182: 3048748.681 | F182: 0.0367885427 | G182: 0.3995614163 | H182: 0.7389904906 | I182: 293.6602613 | J182: 472.2161397 | K182: 408.2937693 | L182: -2885119.26 | M182: -1726943.15 | N182: -2020452.76 | R182: 4258272.12 | S182: 3609138.54 | T182: 3772473.96 | V182: 1570510 | W182: Pos
A183: 20.20048898 | B183: 4.940542162 | C183: -36.13956295 | D183: -2.513788984 | E183: 3167057.019 | F183: 0.03689171818 | G183: 0.385738542 | H183: 0.9086060491 | I183: 236.4944375 | J183: 434.0709279 | K183: 405.1196239 | L183: -2644008.24 | M183: -1125544.58 | N183: -1282385.67 | R183: 1776274.75 | S183: 1290855.18 | T183: 1428338.72 | V183: 1452049.1 | W183: Pos
A184: 17.76057779 | B184: 4.629492154 | C184: -38.73653306 | D184: -2.494306249 | E184: 3267165.497 | F184: 0.03593636195 | G184: 0.4402891795 | H184: 0.8087262995 | I184: 246.254816 | J184: 351.0162628 | K184: 422.6555837 | L184: -2758744.42 | M184: -1797732.27 | N184: -1418363.27 | R184: 3146092.2 | S184: 2374075.47 | T184: 2527467.42 | V184: 657886.06 | W184: Pos
A185: 21.46880245 | B185: 5.252869256 | C185: -34.9112931 | D185: -2.44529407 | E185: 3142826.096 | F185: 0.03141038667 | G185: 0.4477588195 | H185: 0.9377180182 | I185: 248.5343241 | J185: 385.423902 | K185: 403.9838386 | L185: -2581138.54 | M185: -1274453.94 | N185: -1162587.24 | R185: 1741692.06 | S185: 1081496.53 | T185: 1212858.12 | V185: 1124657.83 | W185: Pos
A186: 19.38448641 | B186: 4.887181246 | C186: -40.54387608 | D186: -2.248440829 | E186: 2883447.769 | F186: 0.0355220019 | G186: 0.3845607214 | H186: 0.9688525399 | I186: 291.3085218 | J186: 443.9454564 | K186: 413.5650677 | L186: -1802888.13 | M186: -555062.78 | N186: -727707.77 | R186: 3221661.73 | S186: 2767334.48 | T186: 2914228.14 | V186: 2136804.57 | W186: Pos
A187: 23.85435044 | B187: 5.010845421 | C187: -39.63734628 | D187: -2.492024294 | E187: 3122633.566 | F187: 0.03742394335 | G187: 0.4415614035 | H187: 0.7079864656 | I187: 299.8532291 | J187: 412.1175302 | K187: 390.6891011 | L187: -2888459.53 | M187: -2049608.12 | N187: -2152995.96 | R187: 766577.29 | S187: 437614.9 | T187: 549348.89 | V187: 4160218.46 | W187: Pos
A188: 20.84661315 | B188: 4.918248083 | C188: -41.32729941 | D188: -2.604006608 | E188: 3530023.335 | F188: 0.03885669785 | G188: 0.378915271 | H188: 0.9036539675 | I188: 260.872008 | J188: 315.9209595 | K188: 406.6160603 | L188: -2516242.76 | M188: -1776745.29 | N188: -1290275.78 | R188: 2363290.72 | S188: 1866610.78 | T188: 1995524.51 | V188: 1295759.03 | W188: Pos
A189: 22.2033385 | B189: 5.212419131 | C189: -31.64850653 | D189: -2.906369028 | E189: 3096925.258 | F189: 0.03410473294 | G189: 0.4404884125 | H189: 0.9193812927 | I189: 368.7332177 | J189: 323.1134523 | K189: 409.1165511 | L189: -1534621.55 | M189: -1385654.65 | N189: -873558.71 | R189: 597517.87 | S189: 18397.55 | T189: 137204.59 | V189: 1082631.73 | W189: Pos
A190: 21.6985201 | B190: 4.474161118 | C190: -39.41143353 | D190: -2.887405216 | E190: 2908769.022 | F190: 0.03918667871 | G190: 0.4640307805 | H190: 0.8978228659 | I190: 295.8487784 | J190: 392.8665176 | K190: 397.2051459 | L190: -828032.68 | M190: 184792.84 | N190: 208475.79 | R190: 1620790.12 | S190: 1148721.01 | T190: 1278982.28 | V190: 3085492.11 | W190: Pos
A191: 20.38428665 | B191: 5.884910456 | C191: -34.51034244 | D191: -2.51980764 | E191: 3117997.503 | F191: 0.0319027121 | G191: 0.376519077 | H191: 0.8178754734 | I191: 297.1176973 | J191: 372.6719146 | K191: 412.9025813 | L191: -3516746.81 | M191: -2732475.92 | N191: -2533141.59 | R191: 970662.8 | S191: 488497.61 | T191: 607609.82 | V191: 2674205.79 | W191: Pos
A192: 18.97227871 | B192: 5.207262599 | C192: -33.52843251 | D192: -2.571103706 | E192: 2964802.029 | F192: 0.03495402146 | G192: 0.4110956198 | H192: 0.9095431765 | I192: 251.4196236 | J192: 442.3411206 | K192: 399.0307174 | L192: -2423145.38 | M192: -903779.5 | N192: -1146625.53 | R192: 792179.44 | S192: 423519.62 | T192: 538711.88 | V192: 1906391.1 | W192: Pos
A193: 16.96687207 | B193: 4.155190462 | C193: -33.19155385 | D193: -2.752318051 | E193: 3081848.145 | F193: 0.03405271165 | G193: 0.4329042556 | H193: 0.9322576141 | I193: 322.0699195 | J193: 409.9970459 | K193: 410.9508198 | L193: -1634281.06 | M193: -678326.22 | N193: -674886.8 | R193: 1233371.58 | S193: 845284.72 | T193: 973102.27 | V193: 2588600.44 | W193: Pos
A194: 20.79476541 | B194: 5.620582922 | C194: -35.13448965 | D194: -2.965070389 | E194: 3709103.642 | F194: 0.036131204 | G194: 0.4124416584 | H194: 0.8432880213 | I194: 325.8486094 | J194: 334.9785017 | K194: 388.1426389 | L194: -2813071.67 | M194: -2321756.72 | N194: -2033179.08 | R194: 696125.52 | S194: 539351.46 | T194: 646753.93 | V194: 2132169.93 | W194: Pos
A195: 21.66491581 | B195: 5.069979506 | C195: -30.62408873 | D195: -2.162469939 | E195: 2963643.898 | F195: 0.03371548665 | G195: 0.4866099147 | H195: 0.861919909 | I195: 294.3825009 | J195: 392.5989585 | K195: 410.571315 | L195: -2089679.81 | M195: -1174582.87 | N195: -1069849.9 | R195: 1352861.41 | S195: 969612.16 | T195: 1092863.81 | V195: 2132958.82 | W195: =IF(V195<0,"Neg","Pos") -> Pos
A196: 18.61212878 | B196: 4.607442265 | C196: -35.57836811 | D196: -2.613757549 | E196: 3076513.084 | F196: 0.03496560621 | G196: 0.4359714005 | H196: 0.9566882105 | I196: 309.5454879 | J196: 439.6390966 | K196: 402.6558359 | L196: -1469268.53 | M196: -249771.42 | N196: -476708.83 | R196: 591208.74 | S196: 200444.51 | T196: 308035.45 | V196: 589381.09 | W196: Pos
A197: 21.11692821 | B197: 4.865618972 | C197: -41.32519742 | D197: -2.230630569 | E197: 3284079.334 | F197: 0.0400674578 | G197: 0.420705551 | H197: 0.891715207 | I197: 400.5748776 | J197: 391.5436262 | K197: 403.958943 | L197: -1074165.96 | M197: -839974.74 | N197: -773209.88 | R197: 370426.67 | S197: 49835.18 | T197: 167903.05 | V197: 2897800.27 | W197: Pos
A198: 20.11036401 | B198: 4.932014087 | C198: -34.89493818 | D198: -2.6823401 | E198: 2751788.731 | F198: 0.03382157702 | G198: 0.437879555 | H198: 0.7587816277 | I198: 367.8854763 | J198: 339.8321742 | K198: 409.1221453 | L198: -2256236.09 | M198: -2064706.28 | N198: -1721099.75 | R198: 1660379.98 | S198: 1107812 | T198: 1242841.63 | V198: 3406074.36 | W198: Pos
A199: 19.68742646 | B199: 4.652855099 | C199: -40.02046692 | D199: -2.717896894 | E199: 2876868.817 | F199: 0.03614359818 | G199: 0.3750707534 | H199: 0.9239872303 | I199: 318.3659516 | J199: 392.858318 | K199: 406.2387253 | L199: -1759968.69 | M199: -933505.05 | N199: -864371.14 | R199: 960678.41 | S199: 582177.93 | T199: 694956.54 | V199: 881772.1 | W199: Pos
A200: 17.70291942 | B200: 5.248039783 | C200: -31.5371184 | D200: -3.038501486 | E200: 3112330.567 | F200: 0.03715428881 | G200: 0.4023161772 | H200: 0.8547133335 | I200: 361.3105696 | J200: 329.7060566 | K200: 396.8469211 | L200: -1958941.93 | M200: -1711467.44 | N200: -1359985.48 | R200: 1237787.2 | S200: 757832.05 | T200: 877088.91 | V200: 1281823.33 | W200: Pos
... 2050 more rows

Sheet CostComparison
A1: Dairy | B1: Number of Cows | C1: Capital cost ($) | D1: Capital cost ($2011) | E1: Annual fixed OM | F1: Annual Variable OM | G1: Total OM | H1: Electricity production(kWh) | I1: Year | J1: Digester Type | K1: State | L1: cost/cow | M1: cost/kWh | N1: Reference | O1: Note
A2: Carrell | B2: 400 | C2: 149700 | D2: =C2*1.45 -> 217065 | E2: 22911 | F2: 1000 | G2: 23911 | H2: 214000 | I2: 2003 | J2: PF | L2: =(D2/B2) -> 542.6625 | M2: =D2/H2 -> 1.01432243 | N2: Cady R. Engler, , Ellen R. Jordan, Economics and Environmental Impact of Biogas Production as a Manure Management Strategy, 2003
B3: 650 | C3: 762456 | D3: =C3*1.25 -> 953070 | G3: =(C3*0.02) -> 15249.12 | H3: 1042593 | I3: 2005 | J3: FF | K3: CA | L3: =(D3/B3) -> 1466.261538 | M3: =D3/H3 -> 0.9141342787 | N3: Russ Giesy, Economic Feasibility of Anaerobic Digestion To Produc Electricity on Florida Dairy Farms, 2011
B4: 650 | C4: 479491 | D4: =C4*1.25 -> 599363.75 | G4: 9589.82 | H4: 1042593 | I4: 2005 | J4: CL | K4: CA | L4: 922.0980769 | M4: 0.5748779725 | N4: Russ Giesy, Economic Feasibility of Anaerobic Digestion To Produc Electricity on Florida Dairy Farms, 2011
B5: 2100 | C5: 1144182 | D5: 1430227.5 | G5: 22883.64 | H5: 2245584 | I5: 2005 | J5: FF | K5: CA | L5: 681.0607143 | M5: 0.6369067022 | N5: Russ Giesy, Economic Feasibility of Anaerobic Digestion To Produc Electricity on Florida Dairy Farms, 2011
B6: 2100 | C6: 949478 | D6: 1186847.5 | G6: 18989.56 | H6: 2245584 | I6: 2005 | J6: CL | K6: CA | L6: 565.1654762 | M6: 0.5285250964 | N6: Russ Giesy, Economic Feasibility of Anaerobic Digestion To Produc Electricity on Florida Dairy Farms, 2011
B7: 600 | C7: 627459 | D7: 784323.75 | G7: 12549.18 | H7: 1069326 | I7: 2005 | J7: FF | K7: CA | L7: 1307.20625 | M7: 0.7334748711 | N7: Russ Giesy, Economic Feasibility of Anaerobic Digestion To Produc Electricity on Florida Dairy Farms, 2011
B8: 600 | C8: 530284 | D8: 662855 | G8: 10605.68 | H8: 1069326 | I8: 2005 | J8: CL | K8: CA | L8: 1104.758333 | M8: 0.6198811214 | N8: Russ Giesy, Economic Feasibility of Anaerobic Digestion To Produc Electricity on Florida Dairy Farms, 2011
A9: Blakes Landing | B9: 447 | C9: 334680 | D9: 418350 | G9: 3948 | H9: 252792 | I9: 2005 | J9: CL | K9: CA | L9: 935.9060403 | M9: 1.654917877 | N9: Dairy power production program California 2009
A10: Castelanelli Bros | B10: 3601 | C10: 882136 | D10: 1102670 | G10: 11400 | H10: 1054560 | I10: 2005 | J10: CL | K10: CA | L10: 306.2121633 | M10: 1.045620922 | N10: Dairy power production program California 2009
A11: Cottonwood | B11: 5616 | C11: 2498038 | D11: 3122547.5 | G11: 74400 | H11: 2133084 | I11: 2005 | J11: CL | K11: CA | L11: 556.0091702 | M11: 1.46386523 | N11: Dairy power production program California 2009
A12: Hilarides | B12: 6000 | C12: 1239923 | D12: 1549903.75 | G12: 21000 | H12: 3370464 | I12: 2006 | J12: CL | K12: CA | L12: 258.3172917 | M12: 0.4598487775 | N12: Dairy power production program California 2009
A13: Eden-Vale | B13: 1100 | C13: 802810 | D13: 1003512.5 | G13: 18000 | H13: 453168 | I13: 2006 | J13: PF | K13: CA | L13: 912.2840909 | M13: 2.214438133 | N13: Dairy power production program California 2009
A14: Koetsier | B14: 2285 | C14: 1361087 | D14: 1701358.75 | G14: 27000 | H14: 539892 | I14: 2006 | J14: PF | K14: CA | L14: 744.5771335 | M14: 3.151294611 | N14: Dairy power production program California 2009
A15: Meadowbrook | B15: 3194 | C15: 720605 | D15: 900756.25 | G15: 6720 | H15: 1098636 | I15: 2005 | J15: PF | K15: CA | L15: 282.0151064 | M15: 0.8198859768 | N15: Dairy power production program California 2009
A16: Van Ommering | B16: 717 | C16: 836838 | D16: 1046047.5 | G16: 18000 | H16: 486348 | I16: 2006 | J16: PF | K16: CA | L16: 1458.922594 | M16: 2.150821017 | N16: Dairy power production program California 2009
A17: Futura | B17: 420 | C17: 355666 | D17: 444582.5 | I17: 2006 | J17: PF | K17: IA | L17: 1058.529762 | N17: An Analysis of Energy Production Costs from Anaerobic Digestion Systems on U.S. Livestock Production Facilities, 2007
A18: Northeast IA CC | B18: 120 | C18: 271271 | D18: 339088.75 | I18: 2006 | J18: PF | K18: IA | L18: 2825.739583 | N18: An Analysis of Energy Production Costs from Anaerobic Digestion Systems on U.S. Livestock Production Facilities, 2007
A19: Top Deck Holeteins | B19: 700 | C19: 604633 | D19: 755791.25 | I19: 2006 | J19: PF | K19: IA | L19: 1079.701786 | N19: An Analysis of Energy Production Costs from Anaerobic Digestion Systems on U.S. Livestock Production Facilities, 2007
A20: Fairgrove Farms | B20: 500 | C20: 445971 | D20: 557463.75 | G20: 2676 | I20: 2006 | J20: PF | K20: MI | L20: 1114.9275 | N20: An Analysis of Energy Production Costs from Anaerobic Digestion Systems on U.S. Livestock Production Facilities, 2007
A21: Gordondale Farms | B21: 725 | C21: 626937 | D21: 783671.25 | I21: 2006 | J21: PF | K21: WI | L21: 1080.925862 | N21: An Analysis of Energy Production Costs from Anaerobic Digestion Systems on U.S. Livestock Production Facilities, 2007
A22: Wholesome Dairy | B22: 3000 | C22: 1567343 | D22: 1959178.75 | I22: 2006 | J22: PF | K22: WI | L22: 653.0595833 | N22: An Analysis of Energy Production Costs from Anaerobic Digestion Systems on U.S. Livestock Production Facilities, 2007
A23: Haubenschild Farms | B23: 840 | C23: 461842 | D23: 577302.5 | G23: 4814 | I23: 2006 | J23: PF | K23: MN | L23: 687.264881 | N23: An Analysis of Energy Production Costs from Anaerobic Digestion Systems on U.S. Livestock Production Facilities, 2007
A24: Mason Dixon Farms | B24: 2285 | C24: 682470 | D24: 853087.5 | I24: 2006 | J24: PF | K24: PA | L24: 373.3424508 | N24: An Analysis of Energy Production Costs from Anaerobic Digestion Systems on U.S. Livestock Production Facilities, 2007
A25: Foster Brothers Farm | B25: 600 | C25: 618238 | D25: 772797.5 | G25: 20608 | I25: 2006 | J25: PF | K25: VT | L25: 1287.995833 | N25: An Analysis of Energy Production Costs from Anaerobic Digestion Systems on U.S. Livestock Production Facilities, 2007
A26: Spring Valley Dairy | B26: 236 | C26: 169130 | D26: 211412.5 | G26: 9445 | I26: 2006 | J26: PF | K26: NY | L26: 895.815678 | N26: An Analysis of Energy Production Costs from Anaerobic Digestion Systems on U.S. Livestock Production Facilities, 2007
A27: DDI | B27: 850 | C27: 1285298 | D27: 1606622.5 | G27: 36860 | I27: 2006 | J27: PF | K27: NY | L27: 1890.144118 | N27: An Analysis of Energy Production Costs from Anaerobic Digestion Systems on U.S. Livestock Production Facilities, 2007
A28: Matlink Dairy Farm | B28: 675 | C28: 732940 | D28: 916175 | G28: 136470 | I28: 2006 | J28: CM | K28: NY | L28: 1357.296296 | N28: An Analysis of Energy Production Costs from Anaerobic Digestion Systems on U.S. Livestock Production Facilities, 2007
A29: This Study | B29: 2400 | C29: ='Capital Cost'!K27 -> 3347951.258 | D29: =C29 -> 3347951.258 | H29: ='Mass & Energy'!C4 -> 6209522.193 | J29: CM | L29: 1394.979691 | M29: =C29/H29 -> 0.53916407
A34: Lourenco | B34: 2640 | C34: 372912 | G34: 6000 | I34: 2009 | J34: CL | L34: =(C34/B34) -> 141.2545455 | N34: Dairy power production program California 2009
A35: Agway Farm | B35: 500 | C35: 390224 | G35: 8139 | I35: 2006 | J35: UASB | K35: NY | L35: =(C35/B35) -> 780.448 | N35: An Analysis of Energy Production Costs from Anaerobic Digestion Systems on U.S. Livestock Production Facilities, 2007
